Workbook

Sheet PLANILHA SEM DESONERAÇÃO
D1: MINISTÉRIO DO DESENVOLVIMENTO REGIONAL COMPANHIA DE DESENVOLVIMENTO DOS VALES DO SÃO FRANCISCO E PARNAÍBA
A2: ORÇAMENTO DISCRIMINATIVO
A3: Setor Público - REPASSE
A4: Proponente: | P4: Data – base
A5: COMPANHIA DE DESENVOLVIMENTO DOS VALES DO SÃO FRANCISCO E PARNAÍBA | P5: SINAPI – AP – DEZEMBRO/2022 (S/ DESON.)
A6: Empreendimento: | M6: Município | U6: UF
A7: CONSTRUÇÃO DA SEDE DA 11ª SUPERINTENDÊNCIA REGIONAL DA CODEVASF NO MUNICÍPIO DE MACAPÁ/AP | M7: MACAPÁ | U7: AP
A8: Endereço | I8: FORMA DE EXECUÇÃO | M8: DATA
A9: RODOVIA JOSMAR CHAVES PINTO, KM 05, S/N, UNIVERSIDADE, MACAPA/AP. | I9: INDIRETA | M9: 2023-01-01
A10: PRAZO DE EXECUÇÃO: 12 MESES | E10: FORMA DE EXECUÇÃO: ( ) DIRETA ( X ) INDIRETA | M10: REGIME DE PREÇOS: ( X ) NÃO DESONERADO ( ) DESONERADO
A11: Composição do BDI sugerida | E11: Intervalos admissíveis sem justificativa | I11: Composição de BDI Adotada | N11: BDI Proposto: | T11: =ROUND(((1+L15+L12+L13)*(1+L14)*(1+L16))/(1-L17-L18-L19-L20)-1,4) -> 0.2308
A12: Seguro + Garantia | E12: De | F12: 0.008 | G12: até | H12: 0.01 | I12: Seguro + Garantia: | L12: ='Planilha de BDI S. DESON'!E15 -> 0.0085 | V12: Observação:
A13: Risco (R) | E13: De | F13: 0.0097 | G13: até | H13: 0.0127 | I13: Risco: | L13: 0.012 | V13: Composição do BDI, intervalos admissíveis e Fórmula de Cálculo nos termos do Acórdão 2622/2013 do TCU.
A14: Despesas financeiras (DF) | E14: De | F14: 0.0059 | G14: até | H14: 0.0139 | I14: Despesas financeiras: | L14: 0.0123
A15: Administração Central (AC) | E15: De | F15: 0.03 | G15: até | H15: 0.055 | I15: Administração central: | L15: 0.04
A16: Lucro (L) | E16: De | F16: 0.0616 | G16: até | H16: 0.0896 | I16: Lucro: | L16: 0.076
A17: =I17 -> Tributos: PIS | E17: De | F17: 0.0365 | G17: até | H17: 0.0615 | I17: Tributos: PIS | L17: 0.0065
A18: =I18 -> Tributos: COFINS | E18: De | F18: 0.0365 | G18: até | H18: 0.0615 | I18: Tributos: COFINS | L18: 0.03
A19: =I19 -> Tributos: ISSQN | E19: De | F19: 0.0365 | G19: até | H19: 0.0615 | I19: Tributos: ISSQN | L19: 0.025 | V19: Coloca-se 50% do valor do ISS do munícipio. Verificar primeiro a legislação municipal.
A20: =I20 -> Tributos: CPRB | E20: De | F20: 0.0365 | G20: até | H20: 0.0615 | I20: Tributos: CPRB
A22: ITEM | B22: CÓDIGO | C22: FONTE | D22: DESCRIÇÃO DOS SERVIÇOS | J22: UN | K22: QUANT | N22: VALORES (R$)
N23: CUSTO | Q23: PREÇO
N24: UNITÁRIO | O24: TOTAL ITEM | Q24: UNITÁRIO | S24: TOTAL ITEM
A25: CONSTRUÇÃO DA SEDE DA 11ª SUPERINTENDÊNCIA REGIONAL DA CODEVASF NO MUNICÍPIO DE MACAPÁ/AP
A26: 1.0 | D26: ='[4]Planilha Orcamentaria'!$D$14 -> INSTALAÇÕES INICIAIS DA OBRA
A27: 1.1 | B27: ='Relatório de composições'!B18 -> COMP. 01 | C27: ='Relatório de composições'!C18 -> COMP. PRÓPRIA 11° SR | D27: ='Relatório de composições'!D18 -> FORNECIMENTO E COLOCAÇÃO DE PLACA DE OBRA (4,80 X 2,4 0 M) - EM CHAPA GALVANIZADA *N. 22*, ADESIVADA E FIXADA COM SUPORTE EM EUCALIPTO AUTOCLAVADO. | J27: UN | K27: ='MEMORIA DE CÁLCULO'!O12 -> 1 | N27: ='Relatório de composições'!I23 -> 1483.08 | O27: =IF(J27="","",ROUND(K27*N27,2)) -> 1483.08 | Q27: =IF(J27="","",ROUND(N27*(1+$T$11),2)) -> 1825.37 | S27: =IF(J27="","",ROUND(K27*Q27,2)) -> 1825.37 | Y27: =ROUND(K27*Q27,2) -> 1825.37 | Z27: =K27-#REF! ->  | AA27: =Y27/$S$363 -> 0.000234108 | AB27: =AA27 -> 0.0002341
A28: 1.2 | B28: 93206 | C28: SINAPI | D28: EXECUÇÃO DE ESCRITÓRIO EM CANTEIRO DE OBRA EM ALVENARIA, NÃO INCLUSO MOBILIÁRIO E EQUIPAMENTOS. AF_02/2016 | J28: M² | K28: ='MEMORIA DE CÁLCULO'!O19 -> 54.09 | N28: =VLOOKUP(B28,'SINAPI NÃO DESONERADO'!$G$6:$L$7519,5,0) -> 1149.85 | O28: =IF(J28="","",ROUND(K28*N28,2)) -> 62195.39 | Q28: =IF(J28="","",ROUND(N28*(1+$T$11),2)) -> 1415.24 | S28: =IF(J28="","",ROUND(K28*Q28,2)) -> 76550.33 | Y28: =ROUND(K28*Q28,2) -> 76550.33 | Z28: =K28-#REF! ->  | AA28: =Y28/$S$363 -> 0.009817741 | AB28: =AA28+AB27 -> 0.0100518
A29: 1.3 | B29: 93209 | C29: SINAPI | D29: EXECUÇÃO DE ALMOXARIFADO EM CANTEIRO DE OBRA EM ALVENARIA, INCLUSO PRATELEIRAS. AF_02/2016 | J29: M² | K29: ='MEMORIA DE CÁLCULO'!O26 -> 57.91 | N29: =VLOOKUP(B29,'SINAPI NÃO DESONERADO'!$G$6:$L$7519,5,0) -> 882.49 | O29: =IF(J29="","",ROUND(K29*N29,2)) -> 51105 | Q29: =IF(J29="","",ROUND(N29*(1+$T$11),2)) -> 1086.17 | S29: =IF(J29="","",ROUND(K29*Q29,2)) -> 62900.1 | Y29: 62900.1 | Z29: =K29-#REF! ->  | AA29: 0.00806707 | AB29: =AA29+AB28 -> 0.0181189
A30: 1.4 | B30: 93211 | C30: SINAPI | D30: EXECUÇÃO DE REFEITÓRIO EM CANTEIRO DE OBRA EM ALVENARIA, NÃO INCLUSO MOBILIÁRIO E EQUIPAMENTOS. AF_02/2016 | J30: M² | K30: ='MEMORIA DE CÁLCULO'!O33 -> 49.39 | N30: =VLOOKUP(B30,'SINAPI NÃO DESONERADO'!$G$6:$L$7519,5,0) -> 568.04 | O30: =IF(J30="","",ROUND(K30*N30,2)) -> 28055.5 | Q30: =IF(J30="","",ROUND(N30*(1+$T$11),2)) -> 699.14 | S30: =IF(J30="","",ROUND(K30*Q30,2)) -> 34530.52 | Y30: 34530.52 | Z30: =K30-#REF! ->  | AA30: 0.004428612 | AB30: 0.0225475
A31: 1.5 | B31: 93213 | C31: SINAPI | D31: EXECUÇÃO DE SANITÁRIO E VESTIÁRIO EM CANTEIRO DE OBRA EM ALVENARIA, NÃO INCLUSO MOBILIÁRIO. AF_02/2016 | J31: M² | K31: ='MEMORIA DE CÁLCULO'!O40 -> 49.2 | N31: =VLOOKUP(B31,'SINAPI NÃO DESONERADO'!$G$6:$L$7519,5,0) -> 1016.87 | O31: 50030 | Q31: 1251.56 | S31: 61576.75 | Y31: 61576.75 | Z31: =K31-#REF! ->  | AA31: 0.007897348 | AB31: 0.0304448
B32: SUB TOTAL: | S32: =SUM(S27:U31) -> 237383.07 | V32: 232667.66 | Y32: 0 | Z32: =K32-#REF! ->  | AA32: 0 | AB32: 0.0304448
A33: 2.0 | D33: DEMOLIÇÕES | Y33: 0 | Z33: =K33-#REF! ->  | AA33: 0 | AB33: 0.0304448
A34: 2.1 | B34: 97622 | C34: SINAPI | D34: DEMOLIÇÃO DE ALVENARIA DE BLOCO FURADO, DE FORMA MANUAL, SEM REAPROVEITAMENTO. AF_12/2017 | J34: M³ | K34: ='MEMORIA DE CÁLCULO'!O47 -> 3.42 | N34: =VLOOKUP(B34,'SINAPI NÃO DESONERADO'!$G$6:$L$7519,5,0) -> 45.44 | O34: 155.4 | Q34: 55.93 | S34: 191.28 | Y34: 191.28 | Z34: =K34-#REF! ->  | AA34: 2.4532e-05 | AB34: 0.0304693
A35: 2.2 | B35: 97627 | C35: SINAPI | D35: DEMOLIÇÃO DE PILARES E VIGAS EM CONCRETO ARMADO, DE FORMA MECANIZADA COM MARTELETE, SEM REAPROVEITAMENTO. AF_12/2017 | J35: M³ | K35: ='MEMORIA DE CÁLCULO'!O54 -> 0.3 | N35: =VLOOKUP(B35,'SINAPI NÃO DESONERADO'!$G$6:$L$7519,5,0) -> 233.31 | O35: 69.99 | Q35: 287.16 | S35: 86.15 | Y35: 86.15 | Z35: =K35-#REF! ->  | AA35: 1.1049e-05 | AB35: 0.0304803
A36: 2.3 | B36: 100983 | C36: SINAPI | D36: CARGA, MANOBRA E DESCARGA DE ENTULHO EM CAMINHÃO BASCULANTE 14 M³ - CARGA COM ESCAVADEIRA HIDRÁULICA (CAÇAMBA DE 0,80 M³ / 111 HP) E DESCARGA LIVRE (UNIDADE: M3). AF_07/2020 | J36: M³ | K36: ='MEMORIA DE CÁLCULO'!O61 -> 3.72 | N36: =VLOOKUP(B36,'SINAPI NÃO DESONERADO'!$G$6:$L$7519,5,0) -> 8.35 | O36: 31.06 | Q36: 10.28 | S36: 38.24 | Y36: 38.24 | Z36: =K36-#REF! ->  | AA36: 4.904e-06 | AB36: 0.0304852
A37: 2.4 | B37: 95876 | C37: SINAPI | D37: TRANSPORTE COM CAMINHÃO BASCULANTE DE 14 M³, EM VIA URBANA PAVIMENTADA, DMT ATÉ 30 KM (UNIDADE: M3XKM). AF_07/2020 | J37: M³xKM | K37: ='MEMORIA DE CÁLCULO'!O68 -> 135.41 | N37: =VLOOKUP(B37,'SINAPI NÃO DESONERADO'!$G$6:$L$7519,5,0) -> 2.01 | O37: 272.17 | Q37: 2.47 | S37: 334.46 | Y37: 334.46 | Z37: =K37-#REF! ->  | AA37: 4.2895e-05 | AB37: 0.0305281
B38: SUB TOTAL: | S38: =SUM(S34:U37) -> 650.13 | V38: 639.75 | Y38: 0 | Z38: =K38-#REF! ->  | AA38: 0 | AB38: 0.0305281
A39: 3.0 | D39: PREPARO DO TERRENO - MOVIMENTO DE TERRA E LIMPEZA | Y39: 0 | Z39: =K39-#REF! ->  | AA39: 0 | AB39: 0.0305281
A40: 3.1 | B40: 98529 | C40: SINAPI | D40: CORTE RASO E RECORTE DE ÁRVORE COM DIÂMETRO DE TRONCO MAIOR OU IGUAL A 0,20 M E MENOR QUE 0,40 M.AF_05/2018 | J40: UN | K40: ='MEMORIA DE CÁLCULO'!O75 -> 166 | N40: =VLOOKUP(B40,'SINAPI NÃO DESONERADO'!$G$6:$L$7519,5,0) -> 53.15 | O40: =IF(J40="","",ROUND(K40*N40,2)) -> 8822.9 | Q40: =IF(J40="","",ROUND(N40*(1+$T$11),2)) -> 65.42 | S40: =IF(J40="","",ROUND(K40*Q40,2)) -> 10859.72 | Y40: 10859.72 | Z40: =K40-#REF! ->  | AA40: 0.001392782 | AB40: 0.0319209
A41: 3.2 | B41: 98527 | C41: SINAPI | D41: REMOÇÃO DE RAÍZES REMANESCENTES DE TRONCO DE ÁRVORE COM DIÂMETRO MAIOR OU IGUAL A 0,40 M E MENOR QUE 0,60 M.AF_05/2018 | J41: UN | K41: ='MEMORIA DE CÁLCULO'!O82 -> 166 | N41: =VLOOKUP(B41,'SINAPI NÃO DESONERADO'!$G$6:$L$7519,5,0) -> 146.9 | O41: 24385.4 | Q41: 180.8 | S41: 30012.8 | Y41: 30012.8 | Z41: =K41-#REF! ->  | AA41: 0.003849205 | AB41: 0.0357701
A42: 3.3 | B42: 98525 | C42: SINAPI | D42: LIMPEZA MECANIZADA DE CAMADA VEGETAL, VEGETAÇÃO E PEQUENAS ÁRVORES (DIÂMETRO DE TRONCO MENOR QUE 0,20 M), COM TRATOR DE ESTEIRAS.AF_05/2018 | J42: M² | K42: ='MEMORIA DE CÁLCULO'!O89 -> 6600 | N42: =VLOOKUP(B42,'SINAPI NÃO DESONERADO'!$G$6:$L$7519,5,0) -> 0.34 | O42: 2244 | Q42: 0.42 | S42: 2772 | Y42: 2772 | Z42: =K42-#REF! ->  | AA42: 0.000355515 | AB42: 0.0361256
A43: 3.4 | B43: 100575 | C43: SINAPI | D43: REGULARIZAÇÃO DE SUPERFÍCIES COM MOTONIVELADORA. AF_11/2019 | J43: M² | K43: ='MEMORIA DE CÁLCULO'!O96 -> 5000 | N43: =VLOOKUP(B43,'SINAPI NÃO DESONERADO'!$G$6:$L$7519,5,0) -> 0.12 | O43: 600 | Q43: 0.15 | S43: 750 | Y43: 750 | Z43: =K43-#REF! ->  | AA43: 9.6189e-05 | AB43: 0.0362218
A44: 3.5 | B44: 100983 | C44: SINAPI | D44: CARGA, MANOBRA E DESCARGA DE ENTULHO EM CAMINHÃO BASCULANTE 14 M³ - CARGA COM ESCAVADEIRA HIDRÁULICA (CAÇAMBA DE 0,80 M³ / 111 HP) E DESCARGA LIVRE (UNIDADE: M3). AF_07/2020 | J44: M³ | K44: ='MEMORIA DE CÁLCULO'!O103 -> 100 | N44: =VLOOKUP(B44,'SINAPI NÃO DESONERADO'!$G$6:$L$7519,5,0) -> 8.35 | O44: 835 | Q44: 10.28 | S44: 1028 | Y44: 1028 | Z44: =K44-#REF! ->  | AA44: 0.000131843 | AB44: 0.0363536
A45: 3.6 | B45: 96386 | C45: SINAPI | D45: EXECUÇÃO E COMPACTAÇÃO DE ATERRO COM SOLO PREDOMINANTEMENTE ARENOSO - EXCLUSIVE SOLO, ESCAVAÇÃO, CARGA E TRANSPORTE. AF_11/2019 | J45: M³ | K45: ='MEMORIA DE CÁLCULO'!O115 -> 3117.95 | N45: =VLOOKUP(B45,'SINAPI NÃO DESONERADO'!$G$6:$L$7519,5,0) -> 8.23 | O45: 25660.73 | Q45: 10.13 | S45: 31584.83 | Y45: 31584.83 | Z45: =K45-#REF! ->  | AA45: 0.004050821 | AB45: 0.0404044
A46: 3.7 | B46: PREÇO DE MERCADO | C46: COTAÇÃO | D46: AREIA PARA ATERRO - POSTO JAZIDA/FORNECEDOR (RETIRADO NA JAZIDA, SEM TRANSPORTE E SEM CARGA DO MATERIAL EM CAMINHÃO) | J46: M³ | K46: ='MEMORIA DE CÁLCULO'!O122 -> 4330.49 | N46: ='COTAÇÃO MAT DE JAZIDA P. ATERRO'!H15 -> 10.97 | O46: 47505.48 | Q46: 13.5 | S46: 58461.62 | Y46: 58461.62 | Z46: =K46-#REF! ->  | AA46: 0.007497826 | AB46: 0.0479022
A47: 3.8 | B47: 100979 | C47: SINAPI | D47: CARGA, MANOBRA E DESCARGA DE SOLOS E MATERIAIS GRANULARES EM CAMINHÃO BASCULANTE 14 M³ - CARGA COM ESCAVADEIRA HIDRÁULICA (CAÇAMBA DE 1,20 M³ / 155 HP) E DESCARGA LIVRE (UNIDADE: M3). AF_07/2020 | J47: M³ | K47: ='MEMORIA DE CÁLCULO'!O129 -> 4330.49 | N47: =VLOOKUP(B47,'SINAPI NÃO DESONERADO'!$G$6:$L$7519,5,0) -> 6.17 | O47: 26719.12 | Q47: 7.59 | S47: 32868.42 | Y47: 32868.42 | Z47: =K47-#REF! ->  | AA47: 0.004215444 | AB47: 0.0521176
A48: 3.9 | B48: 101136 | C48: SINAPI | D48: ESCAVAÇÃO HORIZONTAL, INCLUINDO CARGA, DESCARGA E TRANSPORTE EM SOLO DE 1A CATEGORIA COM TRATOR DE ESTEIRAS (170HP/LÂMINA: 5,20M3) E CAMINHÃO BASCULANTE DE 10M3, DMT ATÉ 200M. AF_07/2020 | J48: M³ | K48: ='MEMORIA DE CÁLCULO'!O136 -> 1000 | N48: =VLOOKUP(B48,'SINAPI NÃO DESONERADO'!$G$6:$L$7519,5,0) -> 12.59 | O48: 12590 | Q48: 15.5 | S48: 15500 | Y48: 15500 | Z48: =K48-#REF! ->  | AA48: 0.001987908 | AB48: 0.0541055
A49: 3.10 | B49: 95876 | C49: SINAPI | D49: TRANSPORTE COM CAMINHÃO BASCULANTE DE 14 M³, EM VIA URBANA PAVIMENTADA, DMT ATÉ 30 KM (UNIDADE: M3XKM). AF_07/2020 | J49: M³xKM | K49: ='MEMORIA DE CÁLCULO'!O145 -> 126649.8 | N49: =VLOOKUP(B49,'SINAPI NÃO DESONERADO'!$G$6:$L$7519,5,0) -> 2.01 | O49: 254566.1 | Q49: 2.47 | S49: 312825.01 | Y49: 312825.01 | Z49: =K49-#REF! ->  | AA49: 0.040120465 | AB49: 0.094226
B50: SUB TOTAL: | S50: =SUM(S40:U49) -> 496662.4 | V50: 499480.74 | Y50: 0 | Z50: =K50-#REF! ->  | AA50: 0 | AB50: 0.094226
A51: 4.0 | D51: LOCAÇÃO DE OBRA | Y51: 0 | Z51: =K51-#REF! ->  | AA51: 0 | AB51: 0.094226
A52: 4.1 | B52: 99058 | C52: SINAPI | D52: LOCAÇÃO DE PONTO PARA REFERÊNCIA TOPOGRÁFICA. AF_10/2018 | J52: UN | K52: ='MEMORIA DE CÁLCULO'!O152 -> 250 | N52: =VLOOKUP(B52,'SINAPI NÃO DESONERADO'!$G$6:$L$7519,5,0) -> 8.37 | O52: =IF(J52="","",ROUND(K52*N52,2)) -> 2092.5 | Q52: =IF(J52="","",ROUND(N52*(1+$T$11),2)) -> 10.3 | S52: =IF(J52="","",ROUND(K52*Q52,2)) -> 2575 | Y52: 2575 | Z52: =K52-#REF! ->  | AA52: 0.000330249 | AB52: 0.0945562
A53: 4.2 | B53: 99059 | C53: SINAPI | D53: LOCACAO CONVENCIONAL DE OBRA, UTILIZANDO GABARITO DE TÁBUAS CORRIDAS PONTALETADAS A CADA 2,00M - 2 UTILIZAÇÕES. AF_10/2018 | J53: M | K53: ='MEMORIA DE CÁLCULO'!O159 -> 156 | N53: =VLOOKUP(B53,'SINAPI NÃO DESONERADO'!$G$6:$L$7519,5,0) -> 47.35 | O53: =IF(J53="","",ROUND(K53*N53,2)) -> 7386.6 | Q53: =IF(J53="","",ROUND(N53*(1+$T$11),2)) -> 58.28 | S53: =IF(J53="","",ROUND(K53*Q53,2)) -> 9091.68 | Y53: 9091.68 | Z53: =K53-#REF! ->  | AA53: 0.001166027 | AB53: 0.0957222
B54: SUB TOTAL: | S54: =SUM(S52:U53) -> 11666.68 | V54: 11164.44 | Y54: 0 | Z54: =K54-#REF! ->  | AA54: 0 | AB54: 0.0957222
A55: 5.0 | D55: INFRAESTRUTURA | Y55: 0 | Z55: =K55-#REF! ->  | AA55: 0 | AB55: 0.0957222
A56: 5.1 | B56: 96523 | C56: SINAPI | D56: ESCAVAÇÃO MANUAL PARA BLOCO DE COROAMENTO OU SAPATA (INCLUINDO ESCAVAÇÃO PARA COLOCAÇÃO DE FÔRMAS). AF_06/2017 | J56: M³ | K56: ='MEMORIA DE CÁLCULO'!O168 -> 159.25 | N56: =VLOOKUP(B56,'SINAPI NÃO DESONERADO'!$G$6:$L$7519,5,0) -> 80.62 | O56: =IF(J56="","",ROUND(K56*N56,2)) -> 12838.74 | Q56: =IF(J56="","",ROUND(N56*(1+$T$11),2)) -> 99.23 | S56: =IF(J56="","",ROUND(K56*Q56,2)) -> 15802.38 | Y56: 15802.38 | Z56: =K56-#REF! ->  | AA56: 0.002026688 | AB56: 0.0977489
A57: 5.2 | B57: 96527 | C57: SINAPI | D57: ESCAVAÇÃO MANUAL DE VALA PARA VIGA BALDRAME (INCLUINDO ESCAVAÇÃO PARA COLOCAÇÃO DE FÔRMAS). AF_06/2017 | J57: M³ | K57: ='MEMORIA DE CÁLCULO'!O175 -> 21.48 | N57: =VLOOKUP(B57,'SINAPI NÃO DESONERADO'!$G$6:$L$7519,5,0) -> 105.69 | O57: 2270.22 | Q57: 130.08 | S57: 2794.12 | Y57: 2794.12 | Z57: =K57-#REF! ->  | AA57: 0.000358352 | AB57: 0.0981073
A58: 5.3 | B58: 96619 | C58: SINAPI | D58: LASTRO DE CONCRETO MAGRO, APLICADO EM BLOCOS DE COROAMENTO OU SAPATAS, ESPESSURA DE 5 CM. AF_08/2017 | J58: M² | K58: ='MEMORIA DE CÁLCULO'!O182 -> 42 | N58: =VLOOKUP(B58,'SINAPI NÃO DESONERADO'!$G$6:$L$7519,5,0) -> 38.13 | O58: 1601.46 | Q58: 46.93 | S58: 1971.06 | Y58: 1971.06 | Z58: =K58-#REF! ->  | AA58: 0.000252793 | AB58: 0.0983601
A59: 5.4 | B59: 96541 | C59: SINAPI | D59: FABRICAÇÃO, MONTAGEM E DESMONTAGEM DE FÔRMA PARA SAPATA, EM CHAPA DE MADEIRA COMPENSADA RESINADA, E=17 MM, 4 UTILIZAÇÕES. AF_06/2017 | J59: M² | K59: ='MEMORIA DE CÁLCULO'!O189 -> 43.41 | N59: =VLOOKUP(B59,'SINAPI NÃO DESONERADO'!$G$6:$L$7519,5,0) -> 181.25 | O59: 7868.06 | Q59: 223.08 | S59: 9683.9 | Y59: 9683.9 | Z59: =K59-#REF! ->  | AA59: 0.001241981 | AB59: 0.0996021
A60: 5.5 | B60: 96542 | C60: SINAPI | D60: FABRICAÇÃO, MONTAGEM E DESMONTAGEM DE FÔRMA PARA VIGA BALDRAME, EM CHAPA DE MADEIRA COMPENSADA RESINADA, E=17 MM, 4 UTILIZAÇÕES. AF_06/2017 | J60: M² | K60: ='MEMORIA DE CÁLCULO'!O196 -> 545.97 | N60: =VLOOKUP(B60,'SINAPI NÃO DESONERADO'!$G$6:$L$7519,5,0) -> 89 | O60: 48591.33 | Q60: 109.54 | S60: 59805.55 | Y60: 59805.55 | Z60: =K60-#REF! ->  | AA60: 0.007670188 | AB60: 0.1072723
A61: 5.6 | B61: 92419 | C61: SINAPI | D61: MONTAGEM E DESMONTAGEM DE FÔRMA DE PILARES RETANGULARES E ESTRUTURAS SIMILARES, PÉ-DIREITO SIMPLES, EM CHAPA DE MADEIRA COMPENSADA RESINADA, 4 UTILIZAÇÕES. AF_09/2020 | J61: M² | K61: ='MEMORIA DE CÁLCULO'!O203 -> 142.57 | N61: =VLOOKUP(B61,'SINAPI NÃO DESONERADO'!$G$6:$L$7519,5,0) -> 88.3 | O61: =IF(J61="","",ROUND(K61*N61,2)) -> 12588.93 | Q61: =IF(J61="","",ROUND(N61*(1+$T$11),2)) -> 108.68 | S61: =IF(J61="","",ROUND(K61*Q61,2)) -> 15494.51 | Y61: 15494.51 | Z61: =K61-#REF! ->  | AA61: 0.001987203 | AB61: 0.1092595
A62: 5.7 | B62: 96543 | C62: SINAPI | D62: ARMAÇÃO DE BLOCO, VIGA BALDRAME E SAPATA UTILIZANDO AÇO CA-60 DE 5 MM - MONTAGEM. AF_06/2017 | J62: KG | K62: ='MEMORIA DE CÁLCULO'!O212 -> 1554.55 | N62: =VLOOKUP(B62,'SINAPI NÃO DESONERADO'!$G$6:$L$7519,5,0) -> 19.05 | O62: 29614.18 | Q62: 23.45 | S62: 36454.2 | Y62: 36454.2 | Z62: =K62-#REF! ->  | AA62: 0.004675328 | AB62: 0.1139348
A63: 5.8 | B63: 96544 | C63: SINAPI | D63: ARMAÇÃO DE BLOCO, VIGA BALDRAME OU SAPATA UTILIZANDO AÇO CA-50 DE 6,3 MM - MONTAGEM. AF_06/2017 | J63: KG | K63: ='MEMORIA DE CÁLCULO'!O221 -> 1.82 | N63: =VLOOKUP(B63,'SINAPI NÃO DESONERADO'!$G$6:$L$7519,5,0) -> 18.16 | O63: 33.05 | Q63: 22.35 | S63: 40.68 | Y63: 40.68 | Z63: =K63-#REF! ->  | AA63: 5.217e-06 | AB63: 0.11394
A64: 5.9 | B64: 96545 | C64: SINAPI | D64: ARMAÇÃO DE BLOCO, VIGA BALDRAME OU SAPATA UTILIZANDO AÇO CA-50 DE 8 MM - MONTAGEM. AF_06/2017 | J64: KG | K64: ='MEMORIA DE CÁLCULO'!O230 -> 134.55 | N64: =VLOOKUP(B64,'SINAPI NÃO DESONERADO'!$G$6:$L$7519,5,0) -> 17.15 | O64: 2307.53 | Q64: 21.11 | S64: 2840.35 | Y64: 2840.35 | Z64: =K64-#REF! ->  | AA64: 0.000364281 | AB64: 0.1143043
A65: 5.10 | B65: 96546 | C65: SINAPI | D65: ARMAÇÃO DE BLOCO, VIGA BALDRAME OU SAPATA UTILIZANDO AÇO CA-50 DE 10 MM - MONTAGEM. AF_06/2017 | J65: KG | K65: ='MEMORIA DE CÁLCULO'!O239 -> 695.55 | N65: =VLOOKUP(B65,'SINAPI NÃO DESONERADO'!$G$6:$L$7519,5,0) -> 15.43 | O65: 10732.34 | Q65: 18.99 | S65: 13208.49 | Y65: 13208.49 | Z65: =K65-#REF! ->  | AA65: 0.001694017 | AB65: 0.1159983
A66: 5.11 | B66: 96547 | C66: SINAPI | D66: ARMAÇÃO DE BLOCO, VIGA BALDRAME OU SAPATA UTILIZANDO AÇO CA-50 DE 12,5 MM - MONTAGEM. AF_06/2017 | J66: KG | K66: ='MEMORIA DE CÁLCULO'!O248 -> 1349.91 | N66: =VLOOKUP(B66,'SINAPI NÃO DESONERADO'!$G$6:$L$7519,5,0) -> 13.09 | O66: 17670.32 | Q66: 16.11 | S66: 21747.05 | Y66: 21747.05 | Z66: =K66-#REF! ->  | AA66: 0.002789105 | AB66: 0.1187874
A67: 5.12 | B67: 96548 | C67: SINAPI | D67: ARMAÇÃO DE BLOCO, VIGA BALDRAME OU SAPATA UTILIZANDO AÇO CA-50 DE 16 MM - MONTAGEM. AF_06/2017 | J67: KG | K67: ='MEMORIA DE CÁLCULO'!O257 -> 740.91 | N67: =VLOOKUP(B67,'SINAPI NÃO DESONERADO'!$G$6:$L$7519,5,0) -> 12.46 | O67: 9231.74 | Q67: 15.34 | S67: 11365.56 | Y67: 11365.56 | Z67: =K67-#REF! ->  | AA67: 0.001457657 | AB67: 0.1202451
A68: 5.13 | B68: 96558 | C68: SINAPI | D68: CONCRETAGEM DE SAPATAS, FCK 30 MPA, COM USO DE BOMBA LANÇAMENTO, ADENSAMENTO E ACABAMENTO. AF_11/2016 | J68: M³ | K68: ='MEMORIA DE CÁLCULO'!O265 -> 30.61 | N68: =VLOOKUP(B68,'SINAPI NÃO DESONERADO'!$G$6:$L$7519,5,0) -> 902.57 | O68: 27627.67 | Q68: 1110.88 | S68: 34004.04 | Y68: 34004.04 | Z68: =K68-#REF! ->  | AA68: 0.00436109 | AB68: 0.1246062
A69: 5.14 | B69: 96555 | C69: SINAPI | D69: CONCRETAGEM DE BLOCOS DE COROAMENTO E VIGAS BALDRAME, FCK 30 MPA, COM USO DE JERICA LANÇAMENTO, ADENSAMENTO E ACABAMENTO. AF_06/2017 | J69: M³ | K69: ='MEMORIA DE CÁLCULO'!O272 -> 52.86 | N69: =VLOOKUP(B69,'SINAPI NÃO DESONERADO'!$G$6:$L$7519,5,0) -> 885.58 | O69: 46811.76 | Q69: 1089.97 | S69: 57615.81 | Y69: 57615.81 | Z69: =K69-#REF! ->  | AA69: 0.007389349 | AB69: 0.1319955
A70: 5.15 | B70: 98557 | C70: SINAPI | D70: IMPERMEABILIZAÇÃO DE SUPERFÍCIE COM EMULSÃO ASFÁLTICA, 2 DEMÃOS AF_06/2018 | J70: M² | K70: ='MEMORIA DE CÁLCULO'!O279 -> 545.97 | N70: =VLOOKUP(B70,'SINAPI NÃO DESONERADO'!$G$6:$L$7519,5,0) -> 72.7 | O70: 39692.02 | Q70: 89.48 | S70: 48853.4 | Y70: 48853.4 | Z70: =K70-#REF! ->  | AA70: 0.006265551 | AB70: 0.1382611
A71: 5.16 | B71: ='Relatório de composições'!B30 -> COMP. 02 | C71: ='Relatório de composições'!C30 -> COMP. PRÓPRIA 11° SR | D71: ='Relatório de composições'!D30 -> ATERRO MANUAL DE VALAS COM SOLO ARGILO-ARENOSO E COMPACTAÇÃO MECANIZADA. | J71: M³ | K71: ='MEMORIA DE CÁLCULO'!O286 -> 1130 | N71: ='Relatório de composições'!I37 -> 39.92 | O71: 45109.6 | Q71: 49.13 | S71: 55516.9 | Y71: 55516.9 | Z71: =K71-#REF! ->  | AA71: 0.007120159 | AB71: 0.1453813
A72: 5.17 | B72: ='Relatório de composições'!B44 -> COMP. 03 | C72: ='Relatório de composições'!C44 -> COMP. PRÓPRIA 11° SR | D72: ='Relatório de composições'!D44 -> ALVENARIA DE BLOCO DE CONCRETO CHEIO COM ARMAÇÃO, EM CONCRETO COM FCK 15MPA , ESP. 14CM, PARA REVESTIMENTO, INCLUSIVE ARGAMASSA PARA ASSENTAMENTO | J72: M² | K72: ='MEMORIA DE CÁLCULO'!O293 -> 80.5 | N72: ='Relatório de composições'!I48 -> 280.03 | O72: 22542.42 | Q72: 344.66 | S72: 27745.13 | Y72: 27745.13 | Z72: =K72-#REF! ->  | AA72: 0.003558371 | AB72: 0.1489397
A73: 5.18 | B73: 97087 | C73: SINAPI | D73: CAMADA SEPARADORA PARA EXECUÇÃO DE RADIER, PISO DE CONCRETO OU LAJE SOBRE SOLO, EM LONA PLÁSTICA. AF_09/2021 | J73: M² | K73: ='MEMORIA DE CÁLCULO'!O300 -> 1000 | N73: =VLOOKUP(B73,'SINAPI NÃO DESONERADO'!$G$6:$L$7519,5,0) -> 3.64 | O73: 3640 | Q73: 4.48 | S73: 4480 | Y73: 4480 | Z73: =K73-#REF! ->  | AA73: 0.000574569 | AB73: 0.1495143
A74: 5.19 | B74: 92768 | C74: SINAPI | D74: ARMAÇÃO DE LAJE DE ESTRUTURA CONVENCIONAL DE CONCRETO ARMADO UTILIZANDO AÇO CA-60 DE 5,0 MM - MONTAGEM. AF_06/2022 | J74: KG | K74: ='MEMORIA DE CÁLCULO'!O307 -> 1751.98 | N74: =VLOOKUP(B74,'SINAPI NÃO DESONERADO'!$G$6:$L$7519,5,0) -> 15.64 | O74: 27400.97 | Q74: 19.25 | S74: 33725.62 | Y74: 33725.62 | Z74: =K74-#REF! ->  | AA74: 0.004325382 | AB74: 0.1538397
A75: 5.20 | B75: 97096 | C75: SINAPI | D75: CONCRETAGEM DE RADIER, PISO DE CONCRETO OU LAJE SOBRE SOLO, FCK 30 MPA - LANÇAMENTO, ADENSAMENTO E ACABAMENTO. AF_09/2021 | J75: M³ | K75: ='MEMORIA DE CÁLCULO'!O314 -> 111.16 | N75: =VLOOKUP(B75,'SINAPI NÃO DESONERADO'!$G$6:$L$7519,5,0) -> 826.13 | O75: 91832.61 | Q75: 1016.8 | S75: 113027.49 | Y75: 113027.49 | Z75: =K75-#REF! ->  | AA75: 0.014496013 | AB75: 0.1683357
B76: SUB TOTAL: | S76: =SUM(S56:U75) -> 566176.24 | V76: 545095.8 | Y76: 0 | Z76: =K76-#REF! ->  | AA76: 0 | AB76: 0.1683357
A77: 6.0 | D77: SUPRAESTRUTURA | Y77: 0 | Z77: =K77-#REF! ->  | AA77: 0 | AB77: 0.1683357
A78: 6.1 | B78: ='Relatório de composições'!B55 -> COMP. 04 | C78: ='Relatório de composições'!C55 -> COMP. PRÓPRIA 11° SR | D78: ='Relatório de composições'!D55 -> VIGA METÁLICA EM PERFIL W 610 x 113, LAMINADO OU SOLDADO, EM AÇO ESTRUTURAL, COM CONEXÕES SOLDADAS, INCLUSOS MÃO DE OBRA, TRANSPORTE E IÇAMENTO UTILIZANDO GUINDASTE - FORNECIMENTO E INSTALAÇÃO. AF_01/2020_P | J78: KG | K78: ='MEMORIA DE CÁLCULO'!O321 -> 18976 | N78: ='Relatório de composições'!I66 -> 14.85 | O78: =IF(J78="","",ROUND(K78*N78,2)) -> 281793.6 | Q78: =IF(J78="","",ROUND(N78*(1+$T$11),2)) -> 18.28 | S78: =IF(J78="","",ROUND(K78*Q78,2)) -> 346881.28 | Y78: 346881.28 | Z78: =K78-#REF! ->  | AA78: 0.044488254 | AB78: 0.212824 | AC78: 1823896.87 | AE78: =SUM(S78:U93) -> 1684994.69
A79: 6.2 | B79: ='Relatório de composições'!B73 -> COMP. 05 | C79: COMP. PRÓPRIA 11° SR | D79: ='Relatório de composições'!D73 -> VIGA METÁLICA EM PERFIL W 530 x 101, LAMINADO OU SOLDADO, EM AÇO ESTRUTURAL, COM CONEXÕES SOLDADAS, INCLUSOS MÃO DE OBRA, TRANSPORTE E IÇAMENTO UTILIZANDO GUINDASTE - FORNECIMENTO E INSTALAÇÃO. AF_01/2020_P | J79: KG | K79: ='MEMORIA DE CÁLCULO'!O328 -> 8019 | N79: ='Relatório de composições'!I84 -> 14.85 | O79: 119082.15 | Q79: 18.28 | S79: 146587.32 | Y79: 146587.32 | Z79: =K79-#REF! ->  | AA79: 0.018800132 | AB79: 0.2316241 | AC79: 275437.58 | AE79: =AC78+AC79-AE78 -> 414339.76
A80: 6.3 | B80: ='Relatório de composições'!B91 -> COMP. 06 | C80: COMP. PRÓPRIA 11° SR | D80: ='Relatório de composições'!D91 -> VIGA METÁLICA EM PERFIL W 530 x 74, LAMINADO OU SOLDADO, EM AÇO ESTRUTURAL, COM CONEXÕES SOLDADAS, INCLUSOS MÃO DE OBRA, TRANSPORTE E IÇAMENTO UTILIZANDO GUINDASTE - FORNECIMENTO E INSTALAÇÃO. AF_01/2020_P | J80: KG | K80: ='MEMORIA DE CÁLCULO'!O335 -> 5892.7 | N80: ='Relatório de composições'!I102 -> 15.06 | O80: 88744.06 | Q80: 18.54 | S80: 109250.66 | Y80: 109250.66 | Z80: =K80-#REF! ->  | AA80: 0.014011627 | AB80: 0.2456357 | AC80: 1823896.87
A81: 6.4 | B81: ='Relatório de composições'!B109 -> COMP. 07 | C81: COMP. PRÓPRIA 11° SR | D81: ='Relatório de composições'!D109 -> VIGA METÁLICA EM PERFIL W 530 x 72, LAMINADO OU SOLDADO, EM AÇO ESTRUTURAL, COM CONEXÕES SOLDADAS, INCLUSOS MÃO DE OBRA, TRANSPORTE E IÇAMENTO UTILIZANDO GUINDASTE - FORNECIMENTO E INSTALAÇÃO. AF_01/2020_P | J81: KG | K81: ='MEMORIA DE CÁLCULO'!O342 -> 1994.9 | N81: ='Relatório de composições'!I120 -> 15.06 | O81: 30043.19 | Q81: 18.54 | S81: 36985.45 | Y81: 36985.45 | Z81: =K81-#REF! ->  | AA81: 0.004743462 | AB81: 0.2503792 | AC81: 275437.58
A82: 6.5 | B82: ='Relatório de composições'!B127 -> COMP. 08 | C82: COMP. PRÓPRIA 11° SR | D82: ='Relatório de composições'!D127 -> VIGA METÁLICA EM PERFIL W 460 x 60, LAMINADO OU SOLDADO, EM AÇO ESTRUTURAL, COM CONEXÕES SOLDADAS, INCLUSOS MÃO DE OBRA, TRANSPORTE E IÇAMENTO UTILIZANDO GUINDASTE - FORNECIMENTO E INSTALAÇÃO. AF_01/2020_P | J82: KG | K82: ='MEMORIA DE CÁLCULO'!O349 -> 522.6 | N82: ='Relatório de composições'!I138 -> 15.06 | O82: 7870.36 | Q82: 18.54 | S82: 9689 | Y82: 9689 | Z82: =K82-#REF! ->  | AA82: 0.001242635 | AB82: 0.2516218 | AC82: 1823896.87
A83: 6.6 | B83: ='Relatório de composições'!B145 -> COMP. 09 | C83: COMP. PRÓPRIA 11° SR | D83: ='Relatório de composições'!D145 -> VIGA METÁLICA EM PERFIL W 410 x 53, LAMINADO OU SOLDADO, EM AÇO ESTRUTURAL, COM CONEXÕES SOLDADAS, INCLUSOS MÃO DE OBRA, TRANSPORTE E IÇAMENTO UTILIZANDO GUINDASTE - FORNECIMENTO E INSTALAÇÃO. AF_01/2020_P | J83: KG | K83: ='MEMORIA DE CÁLCULO'!O356 -> 15735.9 | N83: ='Relatório de composições'!I156 -> 15.06 | O83: 236982.65 | Q83: 18.54 | S83: 291743.59 | Y83: 291743.59 | Z83: =K83-#REF! ->  | AA83: 0.037416729 | AB83: 0.2890385 | AC83: 275437.58
A84: 6.7 | B84: ='Relatório de composições'!B163 -> COMP. 10 | C84: COMP. PRÓPRIA 11° SR | D84: ='Relatório de composições'!D163 -> VIGA METÁLICA EM PERFIL W 410 x 46.1, LAMINADO OU SOLDADO, EM AÇO ESTRUTURAL, COM CONEXÕES SOLDADAS, INCLUSOS MÃO DE OBRA, TRANSPORTE E IÇAMENTO UTILIZANDO GUINDASTE - FORNECIMENTO E INSTALAÇÃO. AF_01/2020_P | J84: KG | K84: ='MEMORIA DE CÁLCULO'!O363 -> 6878.5 | N84: ='Relatório de composições'!I174 -> 15.06 | O84: 103590.21 | Q84: 18.54 | S84: 127527.39 | Y84: 127527.39 | Z84: =K84-#REF! ->  | AA84: 0.016355656 | AB84: 0.3053942 | AC84: 1823896.87
A85: 6.8 | B85: ='Relatório de composições'!B181 -> COMP. 11 | C85: COMP. PRÓPRIA 11° SR | D85: ='Relatório de composições'!D181 -> VIGA METÁLICA EM PERFIL W 360 x 39, LAMINADO OU SOLDADO, EM AÇO ESTRUTURAL, COM CONEXÕES SOLDADAS, INCLUSOS MÃO DE OBRA, TRANSPORTE E IÇAMENTO UTILIZANDO GUINDASTE - FORNECIMENTO E INSTALAÇÃO. AF_01/2020_P | J85: KG | K85: ='MEMORIA DE CÁLCULO'!O370 -> 10058.8 | N85: ='Relatório de composições'!I192 -> 15.06 | O85: 151485.53 | Q85: 18.54 | S85: 186490.15 | Y85: 186490.15 | Z85: =K85-#REF! ->  | AA85: 0.023917754 | AB85: 0.329312 | AC85: 275437.58
A86: 6.9 | B86: ='Relatório de composições'!B199 -> COMP. 12 | C86: COMP. PRÓPRIA 11° SR | D86: ='Relatório de composições'!D199 -> VIGA METÁLICA EM PERFIL W 310 x 32,7, LAMINADO OU SOLDADO, EM AÇO ESTRUTURAL, COM CONEXÕES SOLDADAS, INCLUSOS MÃO DE OBRA, TRANSPORTE E IÇAMENTO UTILIZANDO GUINDASTE - FORNECIMENTO E INSTALAÇÃO. AF_01/2020_P | J86: KG | K86: ='MEMORIA DE CÁLCULO'!O377 -> 4383 | N86: ='Relatório de composições'!I210 -> 15.9 | O86: 69689.7 | Q86: 19.57 | S86: 85775.31 | Y86: 85775.31 | Z86: =K86-#REF! ->  | AA86: 0.011000864 | AB86: 0.3403129 | AC86: 1823896.87
A87: 6.10 | B87: ='Relatório de composições'!B217 -> COMP. 13 | C87: COMP. PRÓPRIA 11° SR | D87: ='Relatório de composições'!D217 -> PILAR METÁLICO PERFIL LAMINADO/SOLDADO, W 310 x 23.8, EM AÇO ESTRUTURAL, COM CONEXÕES PARAFUSADAS, INCLUSOS MÃO DE OBRA, TRANSPORTE E IÇAMENTO UTILIZANDO GUINDASTE - FORNECIMENTO E INSTALAÇÃO. AF_01/2020_P | J87: KG | K87: ='MEMORIA DE CÁLCULO'!O384 -> 87.9 | N87: ='Relatório de composições'!I227 -> 18.48 | O87: 1624.39 | Q87: 22.75 | S87: 1999.73 | Y87: 1999.73 | Z87: =K87-#REF! ->  | AA87: 0.00025647 | AB87: 0.3405694 | AC87: 275437.58
A88: 6.11 | B88: ='Relatório de composições'!B234 -> COMP. 14 | C88: COMP. PRÓPRIA 11° SR | D88: ='Relatório de composições'!D234 -> VIGA METÁLICA EM PERFIL W 250 x80, LAMINADO OU SOLDADO, EM AÇO ESTRUTURAL, COM CONEXÕES SOLDADAS, INCLUSOS MÃO DE OBRA, TRANSPORTE E IÇAMENTO UTILIZANDO GUINDASTE - FORNECIMENTO E INSTALAÇÃO. AF_01/2020_P | J88: KG | K88: ='MEMORIA DE CÁLCULO'!O391 -> 5184 | N88: ='Relatório de composições'!I245 -> 15.06 | O88: 78071.04 | Q88: 18.54 | S88: 96111.36 | Y88: 96111.36 | Z88: =K88-#REF! ->  | AA88: 0.012326484 | AB88: 0.3528959 | AC88: 1823896.87
A89: 6.12 | B89: ='Relatório de composições'!B252 -> COMP. 15 | C89: COMP. PRÓPRIA 11° SR | D89: ='Relatório de composições'!D252 -> VIGA METÁLICA EM PERFIL W 250 x22.3, LAMINADO OU SOLDADO, EM AÇO ESTRUTURAL, COM CONEXÕES SOLDADAS, INCLUSOS MÃO DE OBRA, TRANSPORTE E IÇAMENTO UTILIZANDO GUINDASTE - FORNECIMENTO E INSTALAÇÃO. AF_01/2020_P | J89: KG | K89: ='MEMORIA DE CÁLCULO'!O398 -> 1564 | N89: ='Relatório de composições'!I263 -> 16.07 | O89: 25133.48 | Q89: 19.78 | S89: 30935.92 | Y89: 30935.92 | Z89: =K89-#REF! ->  | AA89: 0.003967597 | AB89: 0.3568635 | AC89: 275437.58
A90: 6.13 | B90: ='Relatório de composições'!B270 -> COMP. 16 | C90: COMP. PRÓPRIA 11° SR | D90: ='Relatório de composições'!D270 -> PILAR METÁLICO PERFIL LAMINADO/SOLDADO, W 200 x 19.3 EM AÇO ESTRUTURAL, COM CONEXÕES PARAFUSADAS, INCLUSOS MÃO DE OBRA, TRANSPORTE E IÇAMENTO UTILIZANDO GUINDASTE - FORNECIMENTO E INSTALAÇÃO. AF_01/2020_P | J90: KG | K90: ='MEMORIA DE CÁLCULO'!O405 -> 96.5 | N90: ='Relatório de composições'!I280 -> 19.24 | O90: 1856.66 | Q90: 23.68 | S90: 2285.12 | Y90: 2285.12 | Z90: =K90-#REF! ->  | AA90: 0.000293071 | AB90: 0.3571566 | AC90: 1823896.87
A91: 6.14 | B91: ='Relatório de composições'!B287 -> COMP. 17 | C91: COMP. PRÓPRIA 11° SR | D91: ='Relatório de composições'!D287 -> VIGA METÁLICA EM PERFIL W 150 x24, LAMINADO OU SOLDADO, EM AÇO ESTRUTURAL, COM CONEXÕES SOLDADAS, INCLUSOS MÃO DE OBRA, TRANSPORTE E IÇAMENTO UTILIZANDO GUINDASTE - FORNECIMENTO E INSTALAÇÃO. AF_01/2020_P | J91: KG | K91: ='MEMORIA DE CÁLCULO'!O412 -> 466.7 | N91: ='Relatório de composições'!I298 -> 15.9 | O91: 7420.53 | Q91: 19.57 | S91: 9133.32 | Y91: 9133.32 | Z91: =K91-#REF! ->  | AA91: 0.001171367 | AB91: 0.358328 | AC91: 275437.58
A92: 6.15 | B92: ='Relatório de composições'!B305 -> COMP. 18 | C92: COMP. PRÓPRIA 11° SR | D92: ='Relatório de composições'!D305 -> PILAR METÁLICO PERFIL LAMINADO/SOLDADO, W 250 x 85 EM AÇO ESTRUTURAL, COM CONEXÕES PARAFUSADAS, INCLUSOS MÃO DE OBRA, TRANSPORTE E IÇAMENTO UTILIZANDO GUINDASTE - FORNECIMENTO E INSTALAÇÃO. AF_01/2020_P | J92: KG | K92: ='MEMORIA DE CÁLCULO'!O419 -> 725.1 | N92: ='Relatório de composições'!I315 -> 17.81 | O92: 12914.03 | Q92: 21.92 | S92: 15894.19 | Y92: =ROUND(K92*Q92,2) -> 15894.19 | Z92: =K92-#REF! ->  | AA92: =Y92/$S$363 -> 0.002038463 | AB92: 0.3603665 | AC92: 1823896.87
A93: 6.16 | B93: ='Relatório de composições'!B322 -> COMP. 19 | C93: COMP. PRÓPRIA 11° SR | D93: ='Relatório de composições'!D322 -> PILAR METÁLICO PERFIL LAMINADO/SOLDADO, W 250 x 62 EM AÇO ESTRUTURAL, COM CONEXÕES PARAFUSADAS, INCLUSOS MÃO DE OBRA, TRANSPORTE E IÇAMENTO UTILIZANDO GUINDASTE - FORNECIMENTO E INSTALAÇÃO. AF_01/2020_P | J93: KG | K93: ='MEMORIA DE CÁLCULO'!O426 -> 8462.8 | N93: ='Relatório de composições'!I332 -> 18.02 | O93: 152499.66 | Q93: 22.18 | S93: 187704.9 | Y93: 187704.9 | Z93: =K93-#REF! ->  | AA93: 0.024073548 | AB93: =AA93+AB92 -> 0.38444 | AC93: 275437.58
A94: 6.17 | B94: ='Relatório de composições'!B339 -> COMP. 20 | C94: ='Relatório de composições'!C339 -> COMP. PRÓPRIA 11° SR | D94: ='Relatório de composições'!D339 -> LAJE STEEL DECK PARA PISO COM CAPA DE CONCRETO FCK 25 MPA, ESPESSURA DA LAJE 15CM, ESPESSURA DA CHAPA 0,95 MM, INCLUSIVE IÇAMENTO COM GUINDASTE. AF_01/2020 | J94: M² | K94: ='MEMORIA DE CÁLCULO'!O434 -> 2036.1 | N94: ='Relatório de composições'!I351 -> 270.15 | O94: 550052.42 | Q94: 332.5 | S94: 677003.25 | Y94: 677003.25 | Z94: =K94-#REF! ->  | AA94: 0.08682709 | AB94: 0.4712671
A95: 6.18 | B95: 102074 | C95: SINAPI | D95: ESCADA EM CONCRETO ARMADO MOLDADO IN LOCO, FCK 20 MPA, COM 2 LANCES EM "U" E LAJE PLANA, FÔRMA EM CHAPA DE MADEIRA COMPENSADA RESINADA. AF_11/2020 | J95: M³ | K95: ='MEMORIA DE CÁLCULO'!O441 -> 1.4 | N95: =VLOOKUP(B95,'SINAPI NÃO DESONERADO'!$G$6:$L$7519,5,0) -> 4870.11 | O95: 6818.15 | Q95: 5994.13 | S95: 8391.78 | Y95: 8391.78 | Z95: =K95-#REF! ->  | AA95: 0.001076263 | AB95: 0.4723434
B96: SUB TOTAL: | S96: =SUM(S78:U95) -> 2370389.72 | V96: 2665457.83 | Y96: 0 | Z96: =K96-#REF! ->  | AA96: 0 | AB96: 0.4723434
A97: 7.0 | D97: ALVENARIAS E DIVISÕES E ACESSÓRIOS | Y97: 0 | Z97: =K97-#REF! ->  | AA97: 0 | AB97: 0.4723434
A98: 7.1 | B98: 96358 | C98: SINAPI | D98: PAREDE COM PLACAS DE GESSO ACARTONADO (DRYWALL), PARA USO INTERNO, COM DUAS FACES SIMPLES E ESTRUTURA METÁLICA COM GUIAS SIMPLES, SEM VÃOS. AF_06/2017_PS | J98: M² | K98: ='MEMORIA DE CÁLCULO'!O558 -> 454.85 | N98: =VLOOKUP(B98,'SINAPI NÃO DESONERADO'!$G$6:$L$7519,5,0) -> 97.2 | O98: =IF(J98="","",ROUND(K98*N98,2)) -> 44211.42 | Q98: =IF(J98="","",ROUND(N98*(1+$T$11),2)) -> 119.63 | S98: =IF(J98="","",ROUND(K98*Q98,2)) -> 54413.71 | Y98: 54413.71 | Z98: =K98-#REF! ->  | AA98: 0.006978673 | AB98: 0.4793221
A99: 7.2 | B99: 96359 | C99: SINAPI | D99: PAREDE COM PLACAS DE GESSO ACARTONADO (DRYWALL), PARA USO INTERNO, COM DUAS FACES SIMPLES E ESTRUTURA METÁLICA COM GUIAS SIMPLES, COM VÃOS AF_06/2017_PS | J99: M² | K99: ='MEMORIA DE CÁLCULO'!O675 -> 986.86 | N99: =VLOOKUP(B99,'SINAPI NÃO DESONERADO'!$G$6:$L$7519,5,0) -> 110.89 | O99: 109432.91 | Q99: 136.48 | S99: 134686.65 | Y99: 134686.65 | Z99: =K99-#REF! ->  | AA99: 0.017273846 | AB99: 0.4965959
A100: 7.3 | B100: ='Relatório de composições'!B358 -> COMP. 21 | C100: ='Relatório de composições'!C358 -> COMP. PRÓPRIA 11° SR | D100: ='Relatório de composições'!D358 -> PAREDE COM PLACAS DE GESSO ACARTONADO (DRYWALL), PARA USO EXTERNO (PLACAS RU), COM DUAS FACES SIMPLES E ESTRUTURA METÁLICA COM GUIAS SIMPLES, INCLUINDO ISOLAMENTO TÉRMICO/ACÚSTICO COM LÃ DE VIDRO | J100: M | K100: ='MEMORIA DE CÁLCULO'!O792 -> 1303.11 | N100: ='Relatório de composições'!I371 -> 149.48 | O100: 194788.88 | Q100: 183.98 | S100: 239746.18 | Y100: 239746.18 | Z100: =K100-#REF! ->  | AA100: 0.030747952 | AB100: 0.5273439
A101: 7.4 | B101: 96373 | C101: SINAPI | D101: INSTALAÇÃO DE REFORÇO METÁLICO EM PAREDE DRYWALL. AF_06/2017 | J101: M | K101: ='MEMORIA DE CÁLCULO'!O799 -> 250 | N101: =VLOOKUP(B101,'SINAPI NÃO DESONERADO'!$G$6:$L$7519,5,0) -> 13.35 | O101: 3337.5 | Q101: 16.43 | S101: 4107.5 | Y101: 4107.5 | Z101: =K101-#REF! ->  | AA101: 0.000526796 | AB101: 0.5278707
A102: 7.5 | B102: 102253 | C102: SINAPI | D102: DIVISORIA SANITÁRIA, TIPO CABINE, EM GRANITO CINZA POLIDO, ESP = 3CM, ASSENTADO COM ARGAMASSA COLANTE AC III-E, EXCLUSIVE FERRAGENS. AF_01/2021 | J102: M² | K102: ='MEMORIA DE CÁLCULO'!O809 -> 35.28 | N102: =VLOOKUP(B102,'SINAPI NÃO DESONERADO'!$G$6:$L$7519,5,0) -> 1001.24 | O102: 35323.75 | Q102: 1232.33 | S102: 43476.6 | Y102: 43476.6 | Z102: =K102-#REF! ->  | AA102: 0.005575965 | AB102: 0.5334467
A103: 7.6 | B103: 102255 | C103: SINAPI | D103: TAPA VISTA DE MICTÓRIO EM GRANITO CINZA POLIDO, ESP = 3CM, ASSENTADO COM ARGAMASSA COLANTE AC III-E . AF_01/2021 | J103: M² | K103: ='MEMORIA DE CÁLCULO'!O819 -> 2.08 | N103: =VLOOKUP(B103,'SINAPI NÃO DESONERADO'!$G$6:$L$7519,5,0) -> 983.98 | O103: 2046.68 | Q103: 1211.08 | S103: 2519.05 | Y103: 2519.05 | Z103: =K103-#REF! ->  | AA103: 0.000323073 | AB103: 0.5337698
A104: 7.7 | B104: 99857 | C104: SINAPI | D104: CORRIMÃO SIMPLES, DIÂMETRO EXTERNO = 1 1/2", EM ALUMÍNIO. AF_04/2019 | J104: M | K104: ='MEMORIA DE CÁLCULO'!O826 -> 13.3 | N104: =VLOOKUP(B104,'SINAPI NÃO DESONERADO'!$G$6:$L$7519,5,0) -> 80.39 | O104: 1069.19 | Q104: 98.94 | S104: 1315.9 | Y104: 1315.9 | Z104: =K104-#REF! ->  | AA104: 0.000168767 | AB104: 0.5339386
B105: SUB TOTAL: | S105: =SUM(S98:U104) -> 480265.59 | V105: 506437.35 | Y105: 0 | Z105: =K105-#REF! ->  | AA105: 0 | AB105: 0.5339386
A106: 8.0 | D106: IMPERMEABILIZAÇÕES | Y106: =ROUND(K106*Q106,2) -> 0 | Z106: =K106-#REF! ->  | AA106: 0 | AB106: 0.5339386
A107: 8.1 | B107: 98555 | C107: SINAPI | D107: IMPERMEABILIZAÇÃO DE SUPERFÍCIE COM ARGAMASSA POLIMÉRICA / MEMBRANA ACRÍLICA, 3 DEMÃOS. AF_06/2018 | J107: M² | K107: ='MEMORIA DE CÁLCULO'!O835 -> 24.88 | N107: =VLOOKUP(B107,'SINAPI NÃO DESONERADO'!$G$6:$L$7519,5,0) -> 34.11 | O107: =IF(J107="","",ROUND(K107*N107,2)) -> 848.66 | Q107: =IF(J107="","",ROUND(N107*(1+$T$11),2)) -> 41.98 | S107: =IF(J107="","",ROUND(K107*Q107,2)) -> 1044.46 | Y107: 1044.46 | Z107: =K107-#REF! ->  | AA107: 0.000133954 | AB107: 0.5340726
A108: 8.2 | B108: 98558 | C108: SINAPI | D108: TRATAMENTO DE RALO OU PONTO EMERGENTE COM ARGAMASSA POLIMÉRICA / MEMBRANA ACRÍLICA REFORÇADO COM VÉU DE POLIÉSTER (MAV). AF_06/2018 | J108: UN | K108: ='MEMORIA DE CÁLCULO'!O842 -> 4 | N108: =VLOOKUP(B108,'SINAPI NÃO DESONERADO'!$G$6:$L$7519,5,0) -> 11.55 | O108: 46.2 | Q108: 14.22 | S108: 56.88 | Y108: 56.88 | Z108: =K108-#REF! ->  | AA108: 7.295e-06 | AB108: 0.5340799
A109: 8.3 | B109: 98559 | C109: SINAPI | D109: TRATAMENTO DE RODAPÉ COM VÉU DE POLIÉSTER. AF_06/2018 | J109: M | K109: ='MEMORIA DE CÁLCULO'!O849 -> 1663.5 | N109: =VLOOKUP(B109,'SINAPI NÃO DESONERADO'!$G$6:$L$7519,5,0) -> 7.97 | O109: 13258.1 | Q109: 9.81 | S109: 16318.94 | Y109: 16318.94 | Z109: =K109-#REF! ->  | AA109: 0.002092938 | AB109: 0.5361728
A110: 8.4 | B110: 98546 | C110: SINAPI | D110: IMPERMEABILIZAÇÃO DE SUPERFÍCIE COM MANTA ASFÁLTICA, UMA CAMADA, INCLUSIVE APLICAÇÃO DE PRIMER ASFÁLTICO, E=3MM. AF_06/2018 | J110: M² | K110: ='MEMORIA DE CÁLCULO'!O857 -> 1046 | N110: =VLOOKUP(B110,'SINAPI NÃO DESONERADO'!$G$6:$L$7519,5,0) -> 175.94 | O110: 184033.24 | Q110: 216.55 | S110: 226511.3 | Y110: 226511.3 | Z110: =K110-#REF! ->  | AA110: 0.029050551 | AB110: 0.5652234
A111: 8.5 | B111: 98565 | C111: SINAPI | D111: PROTEÇÃO MECÂNICA DE SUPERFICIE HORIZONTAL COM ARGAMASSA DE CIMENTO E AREIA, TRAÇO 1:3, E=3CM. AF_06/2018 | J111: M² | K111: ='MEMORIA DE CÁLCULO'!O865 -> 1046 | N111: =VLOOKUP(B111,'SINAPI NÃO DESONERADO'!$G$6:$L$7519,5,0) -> 53.96 | O111: 56442.16 | Q111: 66.41 | S111: 69464.86 | Y111: 69464.86 | Z111: =K111-#REF! ->  | AA111: 0.008909014 | AB111: 0.5741324
B112: SUB TOTAL: | S112: =SUM(S107:U111) -> 313396.44 | V112: 244900.74 | Y112: 0 | Z112: =K112-#REF! ->  | AA112: 0 | AB112: 0.5741324
A113: 9.0 | D113: PEITORIS E CHAPINS | Y113: 0 | Z113: =K113-#REF! ->  | AA113: 0 | AB113: 0.5741324
A114: 9.1 | B114: 101965 | C114: SINAPI | D114: PEITORIL LINEAR EM GRANITO OU MÁRMORE, L = 15CM, COMPRIMENTO DE ATÉ 2M, ASSENTADO COM ARGAMASSA 1:6 COM ADITIVO. AF_11/2020 | J114: M | K114: ='MEMORIA DE CÁLCULO'!O879 -> 115.25 | N114: =VLOOKUP(B114,'SINAPI NÃO DESONERADO'!$G$6:$L$7519,5,0) -> 143.06 | O114: =IF(J114="","",ROUND(K114*N114,2)) -> 16487.67 | Q114: =IF(J114="","",ROUND(N114*(1+$T$11),2)) -> 176.08 | S114: =IF(J114="","",ROUND(K114*Q114,2)) -> 20293.22 | Y114: 20293.22 | Z114: =K114-#REF! ->  | AA114: 0.002602648 | AB114: 0.576735
A115: 9.2 | B115: 101979 | C115: SINAPI | D115: CHAPIM (RUFO CAPA) EM AÇO GALVANIZADO, CORTE 33. AF_11/2020 | J115: M | K115: ='MEMORIA DE CÁLCULO'!O886 -> 140 | N115: =VLOOKUP(B115,'SINAPI NÃO DESONERADO'!$G$6:$L$7519,5,0) -> 47.6 | O115: =IF(J115="","",ROUND(K115*N115,2)) -> 6664 | Q115: =IF(J115="","",ROUND(N115*(1+$T$11),2)) -> 58.59 | S115: =IF(J115="","",ROUND(K115*Q115,2)) -> 8202.6 | Y115: 8202.6 | Z115: =K115-#REF! ->  | AA115: 0.001052001 | AB115: 0.577787
B116: SUB TOTAL: | S116: =SUM(S114:U115) -> 28495.82 | V116: 30731.93 | Y116: 0 | Z116: =K116-#REF! ->  | AA116: 0 | AB116: 0.577787
A117: 10.0 | D117: REVESTIMENTOS - PAREDES | Y117: 0 | Z117: =K117-#REF! ->  | AA117: 0 | AB117: 0.577787
A118: 10.1 | B118: 87894 | C118: SINAPI | D118: CHAPISCO APLICADO EM ALVENARIA (SEM PRESENÇA DE VÃOS) E ESTRUTURAS DE CONCRETO DE FACHADA, COM COLHER DE PEDREIRO. ARGAMASSA TRAÇO 1:3 COM PREPARO EM BETONEIRA 400L. AF_06/2014 | J118: M² | K118: ='MEMORIA DE CÁLCULO'!O893 -> 12 | N118: =VLOOKUP(B118,'SINAPI NÃO DESONERADO'!$G$6:$L$7519,5,0) -> 6.28 | O118: =IF(J118="","",ROUND(K118*N118,2)) -> 75.36 | Q118: =IF(J118="","",ROUND(N118*(1+$T$11),2)) -> 7.73 | S118: =IF(J118="","",ROUND(K118*Q118,2)) -> 92.76 | Y118: 92.76 | Z118: =K118-#REF! ->  | AA118: 1.1897e-05 | AB118: 0.5777989
A119: 10.2 | B119: 87792 | C119: SINAPI | D119: EMBOÇO OU MASSA ÚNICA EM ARGAMASSA TRAÇO 1:2:8, PREPARO MECÂNICO COM BETONEIRA 400 L, APLICADA MANUALMENTE EM PANOS CEGOS DE FACHADA (SEM PRESENÇA DE VÃOS), ESPESSURA DE 25 MM. AF_08/2022 | J119: M² | K119: ='MEMORIA DE CÁLCULO'!O900 -> 12 | N119: =VLOOKUP(B119,'SINAPI NÃO DESONERADO'!$G$6:$L$7519,5,0) -> 36.1 | O119: 433.2 | Q119: 44.43 | S119: 533.16 | Y119: 533.16 | Z119: =K119-#REF! ->  | AA119: 6.8379e-05 | AB119: 0.5778673
A120: 10.3 | B120: 87265 | C120: SINAPI | D120: REVESTIMENTO CERÂMICO PARA PAREDES INTERNAS COM PLACAS TIPO ESMALTADA EXTRA DE DIMENSÕES 20X20 CM APLICADAS EM AMBIENTES DE ÁREA MAIOR QUE 5M² NA ALTURA INTEIRA DAS PAREDES. AF_06/2014 | J120: M² | K120: ='MEMORIA DE CÁLCULO'!O916 -> 337.42 | N120: =VLOOKUP(B120,'SINAPI NÃO DESONERADO'!$G$6:$L$7519,5,0) -> 78.14 | O120: 26366 | Q120: 96.17 | S120: 32449.68 | Y120: 32449.68 | Z120: =K120-#REF! ->  | AA120: 0.00416174 | AB120: 0.582029
A121: 10.4 | B121: 88650 | C121: SINAPI | D121: RODAPÉ CERÂMICO DE 7CM DE ALTURA COM PLACAS TIPO ESMALTADA EXTRA DE DIMENSÕES 60X60CM. AF_06/2014 | J121: M | K121: ='MEMORIA DE CÁLCULO'!O923 -> 1300.15 | N121: =VLOOKUP(B121,'SINAPI NÃO DESONERADO'!$G$6:$L$7519,5,0) -> 21.25 | O121: 27628.19 | Q121: 26.15 | S121: 33998.92 | Y121: 33998.92 | Z121: =K121-#REF! ->  | AA121: 0.004360433 | AB121: 0.5863894
B122: SUB TOTAL: | S122: =SUM(S118:U121) -> 67074.52 | V122: 68330.55 | Y122: 0 | Z122: =K122-#REF! ->  | AA122: 0 | AB122: 0.5863894
A123: 11.0 | D123: REVESTIMENTOS - PISOS | Y123: 0 | Z123: =K123-#REF! ->  | AA123: 0 | AB123: 0.5863894
A124: 11.1 | B124: 87630 | C124: SINAPI | D124: CONTRAPISO EM ARGAMASSA TRAÇO 1:4 (CIMENTO E AREIA), PREPARO MECÂNICO COM BETONEIRA 400 L, APLICADO EM ÁREAS SECAS SOBRE LAJE, ADERIDO, ACABAMENTO NÃO REFORÇADO, ESPESSURA 3CM. AF_07/2021 | J124: M² | K124: ='MEMORIA DE CÁLCULO'!O930 -> 1916.83 | N124: =VLOOKUP(B124,'SINAPI NÃO DESONERADO'!$G$6:$L$7519,5,0) -> 44.87 | O124: =IF(J124="","",ROUND(K124*N124,2)) -> 86008.16 | Q124: =IF(J124="","",ROUND(N124*(1+$T$11),2)) -> 55.23 | S124: =IF(J124="","",ROUND(K124*Q124,2)) -> 105866.52 | Y124: 105866.52 | Z124: =K124-#REF! ->  | AA124: 0.013577604 | AB124: 0.599967
A125: 11.2 | B125: 87263 | C125: SINAPI | D125: REVESTIMENTO CERÂMICO PARA PISO COM PLACAS TIPO PORCELANATO DE DIMENSÕES 60X60 CM APLICADA EM AMBIENTES DE ÁREA MAIOR QUE 10 M². AF_06/2014 | J125: M² | K125: ='MEMORIA DE CÁLCULO'!O937 -> 1739.96 | N125: =VLOOKUP(B125,'SINAPI NÃO DESONERADO'!$G$6:$L$7519,5,0) -> 200.13 | O125: 348218.19 | Q125: 246.32 | S125: 428586.95 | Y125: 428586.95 | Z125: =K125-#REF! ->  | AA125: 0.054967178 | AB125: 0.6549342
A126: 11.3 | B126: 98689 | C126: SINAPI | D126: SOLEIRA EM GRANITO, LARGURA 15 CM, ESPESSURA 2,0 CM. AF_09/2020 | J126: M | K126: ='MEMORIA DE CÁLCULO'!O944 -> 57.1 | N126: =VLOOKUP(B126,'SINAPI NÃO DESONERADO'!$G$6:$L$7519,5,0) -> 127.42 | O126: 7275.68 | Q126: 156.83 | S126: 8954.99 | Y126: 8954.99 | Z126: =K126-#REF! ->  | AA126: 0.001148496 | AB126: 0.6560827
A127: 11.4 | B127: 00010709 | C127: SINAPI/INSUMO | D127: CARPETE DE NYLON EM MANTA PARA TRAFEGO COMERCIAL PESADO, E = 9 A 10 MM (INSTALADO) | J127: M² | K127: ='MEMORIA DE CÁLCULO'!O951 -> 180.2 | N127: 165.85 | O127: 29886.17 | Q127: 204.13 | S127: 36784.23 | Y127: 36784.23 | Z127: =K127-#REF! ->  | AA127: 0.004717655 | AB127: 0.6608004
A128: 11.5 | B128: 94990 | C128: SINAPI | D128: EXECUÇÃO DE PASSEIO (CALÇADA) OU PISO DE CONCRETO COM CONCRETO MOLDADO IN LOCO, FEITO EM OBRA, ACABAMENTO CONVENCIONAL, NÃO ARMADO. AF_08/2022 | J128: M³ | K128: ='MEMORIA DE CÁLCULO'!O959 -> 51.52 | N128: =VLOOKUP(B128,'SINAPI NÃO DESONERADO'!$G$6:$L$7519,5,0) -> 931.32 | O128: 47981.61 | Q128: 1146.27 | S128: 59055.83 | Y128: 59055.83 | Z128: =K128-#REF! ->  | AA128: 0.007574034 | AB128: 0.6683744
A129: 11.6 | B129: 101094 | C129: SINAPI | D129: PISO PODOTÁTIL DE ALERTA OU DIRECIONAL, DE BORRACHA, ASSENTADO SOBRE ARGAMASSA. AF_05/2020 | J129: M | K129: ='MEMORIA DE CÁLCULO'!O967 -> 194 | N129: =VLOOKUP(B129,'SINAPI NÃO DESONERADO'!$G$6:$L$7519,5,0) -> 190.73 | O129: 37001.62 | Q129: 234.75 | S129: 45541.5 | Y129: 45541.5 | Z129: =K129-#REF! ->  | AA129: 0.005840793 | AB129: 0.6742152
B130: SUB TOTAL: | S130: =SUM(S124:U129) -> 684790.02 | V130: 701979.67 | Y130: 0 | Z130: =K130-#REF! ->  | AA130: 0 | AB130: 0.6742152
A131: 12.0 | D131: INSTALAÇÕES HIDROSSANITÁRIAS | Y131: 0 | Z131: =K131-#REF! ->  | AA131: 0 | AB131: 0.6742152
A132: ÁGUA FRIA | Y132: 0 | Z132: =K132-#REF! ->  | AA132: 0 | AB132: 0.6742152
A133: 12.1 | B133: 103036 | C133: SINAPI | D133: REGISTRO DE ESFERA, PVC, ROSCÁVEL, COM VOLANTE, 1/2" - FORNECIMENTO E INSTALAÇÃO. AF_08/2021 | J133: UN | K133: ='MEMORIA DE CÁLCULO'!O974 -> 1 | N133: =VLOOKUP(B133,'SINAPI NÃO DESONERADO'!$G$6:$L$7519,5,0) -> 22.11 | O133: =IF(J133="","",ROUND(K133*N133,2)) -> 22.11 | Q133: =IF(J133="","",ROUND(N133*(1+$T$11),2)) -> 27.21 | S133: =IF(J133="","",ROUND(K133*Q133,2)) -> 27.21 | Y133: 27.21 | Z133: =K133-#REF! ->  | AA133: 3.49e-06 | AB133: 0.6742187
A134: 12.2 | B134: 89987 | C134: SINAPI | D134: REGISTRO DE GAVETA BRUTO, LATÃO, ROSCÁVEL, 3/4", COM ACABAMENTO E CANOPLA CROMADOS - FORNECIMENTO E INSTALAÇÃO. AF_08/2021 | J134: UN | K134: ='MEMORIA DE CÁLCULO'!O981 -> 15 | N134: =VLOOKUP(B134,'SINAPI NÃO DESONERADO'!$G$6:$L$7519,5,0) -> 102.27 | O134: 1534.05 | Q134: 125.87 | S134: 1888.05 | Y134: 1888.05 | Z134: =K134-#REF! ->  | AA134: 0.000242146 | AB134: 0.6744608
A135: 12.3 | B135: 89985 | C135: SINAPI | D135: REGISTRO DE PRESSÃO BRUTO, LATÃO, ROSCÁVEL, 3/4", COM ACABAMENTO E CANOPLA CROMADOS - FORNECIMENTO E INSTALAÇÃO. AF_08/2021 | J135: UN | K135: ='MEMORIA DE CÁLCULO'!O988 -> 8 | N135: =VLOOKUP(B135,'SINAPI NÃO DESONERADO'!$G$6:$L$7519,5,0) -> 96.98 | O135: 775.84 | Q135: 119.36 | S135: 954.88 | Y135: 954.88 | Z135: =K135-#REF! ->  | AA135: 0.000122465 | AB135: 0.6745833
A136: 12.4 | B136: 103041 | C136: SINAPI | D136: REGISTRO DE ESFERA, PVC, ROSCÁVEL, COM BORBOLETA, 1/2" - FORNECIMENTO E INSTALAÇÃO. AF_08/2021 | J136: UN | K136: ='MEMORIA DE CÁLCULO'!O995 -> 1 | N136: =VLOOKUP(B136,'SINAPI NÃO DESONERADO'!$G$6:$L$7519,5,0) -> 18.41 | O136: 18.41 | Q136: 22.66 | S136: 22.66 | Y136: 22.66 | Z136: =K136-#REF! ->  | AA136: 2.906e-06 | AB136: 0.6745862
A137: 12.5 | B137: 89986 | C137: SINAPI | D137: REGISTRO DE GAVETA BRUTO, LATÃO, ROSCÁVEL, 1/2", COM ACABAMENTO E CANOPLA CROMADOS - FORNECIMENTO E INSTALAÇÃO. AF_08/2021 | J137: UN | K137: ='MEMORIA DE CÁLCULO'!O1002 -> 15 | N137: =VLOOKUP(B137,'SINAPI NÃO DESONERADO'!$G$6:$L$7519,5,0) -> 90.1 | O137: 1351.5 | Q137: 110.9 | S137: 1663.5 | Y137: 1663.5 | Z137: =K137-#REF! ->  | AA137: 0.000213347 | AB137: 0.6747995
A138: 12.6 | B138: 94793 | C138: SINAPI | D138: REGISTRO DE GAVETA BRUTO, LATÃO, ROSCÁVEL, 1 1/4", COM ACABAMENTO E CANOPLA CROMADOS - FORNECIMENTO E INSTALAÇÃO. AF_08/2021 | J138: UN | K138: ='MEMORIA DE CÁLCULO'!O1009 -> 2 | N138: =VLOOKUP(B138,'SINAPI NÃO DESONERADO'!$G$6:$L$7519,5,0) -> 171.42 | O138: 342.84 | Q138: 210.98 | S138: 421.96 | Y138: 421.96 | Z138: =K138-#REF! ->  | AA138: 5.4117e-05 | AB138: 0.6748536
A139: 12.7 | B139: 86886 | C139: SINAPI | D139: ENGATE FLEXÍVEL EM INOX, 1/2 X 30CM - FORNECIMENTO E INSTALAÇÃO. AF_01/2020 | J139: UN | K139: ='MEMORIA DE CÁLCULO'!O1016 -> 16 | N139: =VLOOKUP(B139,'SINAPI NÃO DESONERADO'!$G$6:$L$7519,5,0) -> 66.91 | O139: 1070.56 | Q139: 82.35 | S139: 1317.6 | Y139: 1317.6 | Z139: =K139-#REF! ->  | AA139: 0.000168985 | AB139: 0.6750226
A140: 12.8 | B140: 86884 | C140: SINAPI | D140: ENGATE FLEXÍVEL EM PLÁSTICO BRANCO, 1/2 X 30CM - FORNECIMENTO E INSTALAÇÃO. AF_01/2020 | J140: UN | K140: ='MEMORIA DE CÁLCULO'!O1023 -> 17 | N140: =VLOOKUP(B140,'SINAPI NÃO DESONERADO'!$G$6:$L$7519,5,0) -> 10.36 | O140: 176.12 | Q140: 12.75 | S140: 216.75 | Y140: 216.75 | Z140: =K140-#REF! ->  | AA140: 2.7799e-05 | AB140: 0.6750504
A141: 12.9 | B141: 104031 | C141: SINAPI | D141: COLAR DE TOMADA, PVC, COM TRAVAS, DE 60 MM X 1/2" OU 60 MM X 3/4", PARA LIGAÇÃO PREDIAL DE ÁGUA. AF_06/2022 | J141: UN | K141: ='MEMORIA DE CÁLCULO'!O1030 -> 1 | N141: =VLOOKUP(B141,'SINAPI NÃO DESONERADO'!$G$6:$L$7519,5,0) -> 16.08 | O141: 16.08 | Q141: 19.79 | S141: 19.79 | Y141: 19.79 | Z141: =K141-#REF! ->  | AA141: 2.538e-06 | AB141: 0.6750529
A142: 12.10 | B142: 89378 | C142: SINAPI | D142: LUVA, PVC, SOLDÁVEL, DN 25MM, INSTALADO EM RAMAL OU SUB-RAMAL DE ÁGUA - FORNECIMENTO E INSTALAÇÃO. AF_06/2022 | J142: UN | K142: ='MEMORIA DE CÁLCULO'!O1037 -> 1 | N142: =VLOOKUP(B142,'SINAPI NÃO DESONERADO'!$G$6:$L$7519,5,0) -> 6.05 | O142: 6.05 | Q142: 7.45 | S142: 7.45 | Y142: 7.45 | Z142: =K142-#REF! ->  | AA142: 9.55e-07 | AB142: 0.6750539
A143: 12.11 | B143: 89372 | C143: SINAPI | D143: LUVA DE CORRER, PVC, SOLDÁVEL, DN 20MM, INSTALADO EM RAMAL OU SUB-RAMAL DE ÁGUA - FORNECIMENTO E INSTALAÇÃO. AF_06/2022 | J143: UN | K143: ='MEMORIA DE CÁLCULO'!O1044 -> 1 | N143: =VLOOKUP(B143,'SINAPI NÃO DESONERADO'!$G$6:$L$7519,5,0) -> 15.41 | O143: 15.41 | Q143: 18.97 | S143: 18.97 | Y143: 18.97 | Z143: =K143-#REF! ->  | AA143: 2.433e-06 | AB143: 0.6750563
A144: 12.12 | B144: 89379 | C144: SINAPI | D144: LUVA DE CORRER, PVC, SOLDÁVEL, DN 25MM, INSTALADO EM RAMAL OU SUB-RAMAL DE ÁGUA - FORNECIMENTO E INSTALAÇÃO. AF_12/2014 | J144: UN | K144: ='MEMORIA DE CÁLCULO'!O1051 -> 2 | N144: =VLOOKUP(B144,'SINAPI NÃO DESONERADO'!$G$6:$L$7519,5,0) -> 18.07 | O144: 36.14 | Q144: 22.24 | S144: 44.48 | Y144: 44.48 | Z144: =K144-#REF! ->  | AA144: 5.705e-06 | AB144: 0.675062
A145: 12.13 | B145: 89387 | C145: SINAPI | D145: LUVA DE CORRER, PVC, SOLDÁVEL, DN 32MM, INSTALADO EM RAMAL OU SUB-RAMAL DE ÁGUA FORNECIMENTO E INSTALAÇÃO. AF_06/2022 | J145: UN | K145: ='MEMORIA DE CÁLCULO'!O1058 -> 3 | N145: =VLOOKUP(B145,'SINAPI NÃO DESONERADO'!$G$6:$L$7519,5,0) -> 29.23 | O145: 87.69 | Q145: 35.98 | S145: 107.94 | Y145: 107.94 | Z145: =K145-#REF! ->  | AA145: 1.3844e-05 | AB145: 0.6750758
A146: 12.14 | B146: 89558 | C146: SINAPI | D146: LUVA, PVC, SOLDÁVEL, DN 40MM, INSTALADO EM PRUMADA DE ÁGUA - FORNECIMENTO E INSTALAÇÃO. AF_06/2022 | J146: UN | K146: ='MEMORIA DE CÁLCULO'!O1065 -> 1 | N146: =VLOOKUP(B146,'SINAPI NÃO DESONERADO'!$G$6:$L$7519,5,0) -> 8.99 | O146: 8.99 | Q146: 11.06 | S146: 11.06 | Y146: 11.06 | Z146: =K146-#REF! ->  | AA146: 1.418e-06 | AB146: 0.6750772
A147: 12.15 | B147: 89380 | C147: SINAPI | D147: LUVA DE REDUÇÃO, PVC, SOLDÁVEL, DN 32MM X 25MM, INSTALADO EM RAMAL OU SUB-RAMAL DE ÁGUA - FORNECIMENTO E INSTALAÇÃO. AF_06/2022 | J147: UN | K147: ='MEMORIA DE CÁLCULO'!O1072 -> 1 | N147: =VLOOKUP(B147,'SINAPI NÃO DESONERADO'!$G$6:$L$7519,5,0) -> 9.05 | O147: 9.05 | Q147: 11.14 | S147: 11.14 | Y147: 11.14 | Z147: =K147-#REF! ->  | AA147: 1.429e-06 | AB147: 0.6750786
A148: 12.16 | B148: 89376 | C148: SINAPI | D148: ADAPTADOR CURTO COM BOLSA E ROSCA PARA REGISTRO, PVC, SOLDÁVEL, DN 20MM X 1/2 , INSTALADO EM RAMAL OU SUB-RAMAL DE ÁGUA - FORNECIMENTO E INSTALAÇÃO. AF_06/2022 | J148: UN | K148: ='MEMORIA DE CÁLCULO'!O1079 -> 5 | N148: =VLOOKUP(B148,'SINAPI NÃO DESONERADO'!$G$6:$L$7519,5,0) -> 4.92 | O148: 24.6 | Q148: 6.06 | S148: 30.3 | Y148: 30.3 | Z148: =K148-#REF! ->  | AA148: 3.886e-06 | AB148: 0.6750825
A149: 12.17 | B149: 89383 | C149: SINAPI | D149: ADAPTADOR CURTO COM BOLSA E ROSCA PARA REGISTRO, PVC, SOLDÁVEL, DN 25MM X 3/4 , INSTALADO EM RAMAL OU SUB-RAMAL DE ÁGUA - FORNECIMENTO E INSTALAÇÃO. AF_06/2022 | J149: UN | K149: ='MEMORIA DE CÁLCULO'!O1086 -> 15 | N149: =VLOOKUP(B149,'SINAPI NÃO DESONERADO'!$G$6:$L$7519,5,0) -> 5.72 | O149: 85.8 | Q149: 7.04 | S149: 105.6 | Y149: 105.6 | Z149: =K149-#REF! ->  | AA149: 1.3543e-05 | AB149: 0.675096
A150: 12.18 | B150: 89572 | C150: SINAPI | D150: ADAPTADOR CURTO COM BOLSA E ROSCA PARA REGISTRO, PVC, SOLDÁVEL, DN 40MM X 1.1/4 , INSTALADO EM PRUMADA DE ÁGUA - FORNECIMENTO E INSTALAÇÃO. AF_06/2022 | J150: UN | K150: ='MEMORIA DE CÁLCULO'!O1093 -> 4 | N150: =VLOOKUP(B150,'SINAPI NÃO DESONERADO'!$G$6:$L$7519,5,0) -> 8 | O150: 32 | Q150: 9.85 | S150: 39.4 | Y150: 39.4 | Z150: =K150-#REF! ->  | AA150: 5.053e-06 | AB150: 0.6751011
A151: 12.19 | B151: 94783 | C151: SINAPI | D151: ADAPTADOR COM FLANGE E ANEL DE VEDAÇÃO, PVC, SOLDÁVEL, DN 20 MM X 1/2, INSTALADO EM RESERVAÇÃO DE ÁGUA DE EDIFICAÇÃO QUE POSSUA RESERVATÓRIO DE FIBRA/FIBROCIMENTO FORNECIMENTO E INSTALAÇÃO. AF_06/2016 | J151: UN | K151: ='MEMORIA DE CÁLCULO'!O1100 -> 2 | N151: =VLOOKUP(B151,'SINAPI NÃO DESONERADO'!$G$6:$L$7519,5,0) -> 19.1 | O151: 38.2 | Q151: 23.51 | S151: 47.02 | Y151: 47.02 | Z151: =K151-#REF! ->  | AA151: 6.03e-06 | AB151: 0.6751071
A152: 12.20 | B152: 103977 | C152: SINAPI | D152: BUCHA DE REDUÇÃO, PVC, SOLDÁVEL, DN 40MM X 32MM, INSTALADO EM PRUMADA DE ÁGUA - FORNECIMENTO E INSTALAÇÃO. AF_06/2022 | J152: UN | K152: ='MEMORIA DE CÁLCULO'!O1107 -> 4 | N152: =VLOOKUP(B152,'SINAPI NÃO DESONERADO'!$G$6:$L$7519,5,0) -> 6.33 | O152: 25.32 | Q152: 7.79 | S152: 31.16 | Y152: 31.16 | Z152: =K152-#REF! ->  | AA152: 3.996e-06 | AB152: 0.6751111
A153: 12.21 | B153: 103948 | C153: SINAPI | D153: BUCHA DE REDUÇÃO, CURTA, PVC, SOLDÁVEL, DN 32 X 25 MM, INSTALADO EM RAMAL OU SUB-RAMAL DE ÁGUA - FORNECIMENTO E INSTALAÇÃO. AF_06/2022 | J153: UN | K153: ='MEMORIA DE CÁLCULO'!O1114 -> 1 | N153: =VLOOKUP(B153,'SINAPI NÃO DESONERADO'!$G$6:$L$7519,5,0) -> 6.8 | O153: 6.8 | Q153: 8.37 | S153: 8.37 | Y153: 8.37 | Z153: =K153-#REF! ->  | AA153: 1.073e-06 | AB153: 0.6751122
A154: 12.22 | B154: 89360 | C154: SINAPI | D154: CURVA 90 GRAUS, PVC, SOLDÁVEL, DN 20MM, INSTALADO EM RAMAL OU SUB-RAMAL DE ÁGUA - FORNECIMENTO E INSTALAÇÃO. AF_06/2022 | J154: UN | K154: ='MEMORIA DE CÁLCULO'!O1121 -> 5 | N154: =VLOOKUP(B154,'SINAPI NÃO DESONERADO'!$G$6:$L$7519,5,0) -> 8.36 | O154: 41.8 | Q154: 10.29 | S154: 51.45 | Y154: 51.45 | Z154: =K154-#REF! ->  | AA154: 6.599e-06 | AB154: 0.6751188
A155: 12.23 | B155: 89361 | C155: SINAPI | D155: CURVA 45 GRAUS, PVC, SOLDÁVEL, DN 20MM, INSTALADO EM RAMAL OU SUB-RAMAL DE ÁGUA - FORNECIMENTO E INSTALAÇÃO. AF_06/2022 | J155: UN | K155: ='MEMORIA DE CÁLCULO'!O1128 -> 1 | N155: =VLOOKUP(B155,'SINAPI NÃO DESONERADO'!$G$6:$L$7519,5,0) -> 8.44 | O155: 8.44 | Q155: 10.39 | S155: 10.39 | Y155: 10.39 | Z155: =K155-#REF! ->  | AA155: 1.333e-06 | AB155: 0.6751201
A156: 12.24 | B156: 89364 | C156: SINAPI | D156: CURVA 90 GRAUS, PVC, SOLDÁVEL, DN 25MM, INSTALADO EM RAMAL OU SUB-RAMAL DE ÁGUA - FORNECIMENTO E INSTALAÇÃO. AF_06/2022 | J156: UN | K156: ='MEMORIA DE CÁLCULO'!O1135 -> 2 | N156: =VLOOKUP(B156,'SINAPI NÃO DESONERADO'!$G$6:$L$7519,5,0) -> 10.42 | O156: 20.84 | Q156: 12.82 | S156: 25.64 | Y156: 25.64 | Z156: =K156-#REF! ->  | AA156: =Y156/$S$363 -> 3.288e-06 | AB156: 0.6751234
A157: 12.25 | B157: 89369 | C157: SINAPI | D157: CURVA 90 GRAUS, PVC, SOLDÁVEL, DN 32MM, INSTALADO EM RAMAL OU SUB-RAMAL DE ÁGUA - FORNECIMENTO E INSTALAÇÃO. AF_06/2022 | J157: UN | K157: ='MEMORIA DE CÁLCULO'!O1142 -> 2 | N157: =VLOOKUP(B157,'SINAPI NÃO DESONERADO'!$G$6:$L$7519,5,0) -> 15.61 | O157: 31.22 | Q157: 19.21 | S157: 38.42 | Y157: 38.42 | Z157: =K157-#REF! ->  | AA157: 4.927e-06 | AB157: =AA157+AB156 -> 0.6751283
A158: 12.26 | B158: 103982 | C158: SINAPI | D158: CURVA 90 GRAUS, PVC, SOLDÁVEL, DN 40MM, INSTALADO EM RAMAL DE DISTRIBUIÇÃO DE ÁGUA - FORNECIMENTO E INSTALAÇÃO. AF_06/2022 | J158: UN | K158: ='MEMORIA DE CÁLCULO'!O1149 -> 5 | N158: =VLOOKUP(B158,'SINAPI NÃO DESONERADO'!$G$6:$L$7519,5,0) -> 22.21 | O158: 111.05 | Q158: 27.34 | S158: 136.7 | Y158: 136.7 | Z158: =K158-#REF! ->  | AA158: 1.7532e-05 | AB158: 0.6751458
A159: 12.27 | B159: 89366 | C159: SINAPI | D159: JOELHO 90 GRAUS COM BUCHA DE LATÃO, PVC, SOLDÁVEL, DN 25MM, X 3/4 INSTALADO EM RAMAL OU SUB-RAMAL DE ÁGUA - FORNECIMENTO E INSTALAÇÃO. AF_06/2022 | J159: UN | K159: ='MEMORIA DE CÁLCULO'!O1156 -> 2 | N159: =VLOOKUP(B159,'SINAPI NÃO DESONERADO'!$G$6:$L$7519,5,0) -> 15.14 | O159: 30.28 | Q159: 18.63 | S159: 37.26 | Y159: 37.26 | Z159: =K159-#REF! ->  | AA159: 4.779e-06 | AB159: 0.6751506
A160: 12.28 | B160: 89358 | C160: SINAPI | D160: JOELHO 90 GRAUS, PVC, SOLDÁVEL, DN 20MM, INSTALADO EM RAMAL OU SUB-RAMAL DE ÁGUA - FORNECIMENTO E INSTALAÇÃO. AF_06/2022 | J160: UN | K160: ='MEMORIA DE CÁLCULO'!O1163 -> 7 | N160: =VLOOKUP(B160,'SINAPI NÃO DESONERADO'!$G$6:$L$7519,5,0) -> 6.78 | O160: 47.46 | Q160: 8.34 | S160: 58.38 | Y160: 58.38 | Z160: =K160-#REF! ->  | AA160: 7.487e-06 | AB160: 0.6751581
A161: 12.29 | B161: 89362 | C161: SINAPI | D161: JOELHO 90 GRAUS, PVC, SOLDÁVEL, DN 25MM, INSTALADO EM RAMAL OU SUB-RAMAL DE ÁGUA - FORNECIMENTO E INSTALAÇÃO. AF_06/2022 | J161: UN | K161: ='MEMORIA DE CÁLCULO'!O1170 -> 19 | N161: =VLOOKUP(B161,'SINAPI NÃO DESONERADO'!$G$6:$L$7519,5,0) -> 8.07 | O161: 153.33 | Q161: 9.93 | S161: 188.67 | Y161: 188.67 | Z161: =K161-#REF! ->  | AA161: 2.4197e-05 | AB161: 0.6751823
A162: 12.30 | B162: 89367 | C162: SINAPI | D162: JOELHO 90 GRAUS, PVC, SOLDÁVEL, DN 32MM, INSTALADO EM RAMAL OU SUB-RAMAL DE ÁGUA - FORNECIMENTO E INSTALAÇÃO. AF_06/2022 | J162: UN | K162: ='MEMORIA DE CÁLCULO'!O1177 -> 18 | N162: =VLOOKUP(B162,'SINAPI NÃO DESONERADO'!$G$6:$L$7519,5,0) -> 11.41 | O162: 205.38 | Q162: 14.04 | S162: 252.72 | Y162: 252.72 | Z162: =K162-#REF! ->  | AA162: 3.2412e-05 | AB162: 0.6752147
A163: 12.31 | B163: 103980 | C163: SINAPI | D163: JOELHO 90 GRAUS, PVC, SOLDÁVEL, DN 40MM, INSTALADO EM RAMAL DE DISTRIBUIÇÃO DE ÁGUA - FORNECIMENTO E INSTALAÇÃO. AF_06/2022 | J163: UN | K163: ='MEMORIA DE CÁLCULO'!O1184 -> 3 | N163: =VLOOKUP(B163,'SINAPI NÃO DESONERADO'!$G$6:$L$7519,5,0) -> 15.83 | O163: 47.49 | Q163: 19.48 | S163: 58.44 | Y163: 58.44 | Z163: =K163-#REF! ->  | AA163: 7.495e-06 | AB163: 0.6752222
A164: 12.32 | B164: 103951 | C164: SINAPI | D164: JOELHO DE REDUÇÃO, 90 GRAUS, PVC, SOLDÁVEL, DN 32 MM X 25 MM, INSTALADO EM RAMAL OU SUB-RAMAL DE ÁGUA - FORNECIMENTO E INSTALAÇÃO. AF_06/2022 | J164: UN | K164: ='MEMORIA DE CÁLCULO'!O1191 -> 3 | N164: =VLOOKUP(B164,'SINAPI NÃO DESONERADO'!$G$6:$L$7519,5,0) -> 13.5 | O164: 40.5 | Q164: 16.62 | S164: 49.86 | Y164: 49.86 | Z164: =K164-#REF! ->  | AA164: 6.395e-06 | AB164: 0.6752286
A165: 12.33 | B165: 103950 | C165: SINAPI | D165: JOELHO DE REDUÇÃO, 90 GRAUS, PVC, SOLDÁVEL, DN 25 MM X 20 MM, INSTALADO EM RAMAL OU SUB-RAMAL DE ÁGUA - FORNECIMENTO E INSTALAÇÃO. AF_06/2022 | J165: UN | K165: ='MEMORIA DE CÁLCULO'!O1198 -> 16 | N165: =VLOOKUP(B165,'SINAPI NÃO DESONERADO'!$G$6:$L$7519,5,0) -> 9.59 | O165: 153.44 | Q165: 11.8 | S165: 188.8 | Y165: 188.8 | Z165: =K165-#REF! ->  | AA165: 2.4214e-05 | AB165: 0.6752528
A166: 12.34 | B166: 90373 | C166: SINAPI | D166: JOELHO 90 GRAUS COM BUCHA DE LATÃO, PVC, SOLDÁVEL, DN 25MM, X 1/2 INSTALADO EM RAMAL OU SUB-RAMAL DE ÁGUA - FORNECIMENTO E INSTALAÇÃO. AF_06/2022 | J166: UN | K166: ='MEMORIA DE CÁLCULO'!O1205 -> 27 | N166: =VLOOKUP(B166,'SINAPI NÃO DESONERADO'!$G$6:$L$7519,5,0) -> 11.88 | O166: 320.76 | Q166: 14.62 | S166: 394.74 | Y166: 394.74 | Z166: =K166-#REF! ->  | AA166: 5.0626e-05 | AB166: 0.6753034
A167: 12.35 | B167: 89359 | C167: SINAPI | D167: JOELHO 45 GRAUS, PVC, SOLDÁVEL, DN 20MM, INSTALADO EM RAMAL OU SUB-RAMAL DE ÁGUA - FORNECIMENTO E INSTALAÇÃO. AF_06/2022 | J167: UN | K167: ='MEMORIA DE CÁLCULO'!O1212 -> 1 | N167: =VLOOKUP(B167,'SINAPI NÃO DESONERADO'!$G$6:$L$7519,5,0) -> 7.34 | O167: 7.34 | Q167: 9.03 | S167: 9.03 | Y167: 9.03 | Z167: =K167-#REF! ->  | AA167: 1.158e-06 | AB167: 0.6753046
A168: 12.36 | B168: 89498 | C168: SINAPI | D168: JOELHO 45 GRAUS, PVC, SOLDÁVEL, DN 40MM, INSTALADO EM PRUMADA DE ÁGUA - FORNECIMENTO E INSTALAÇÃO. AF_06/2022 | J168: UN | K168: ='MEMORIA DE CÁLCULO'!O1219 -> 1 | N168: =VLOOKUP(B168,'SINAPI NÃO DESONERADO'!$G$6:$L$7519,5,0) -> 12.22 | O168: 12.22 | Q168: 15.04 | S168: 15.04 | Y168: 15.04 | Z168: =K168-#REF! ->  | AA168: 1.929e-06 | AB168: 0.6753065
A169: 12.37 | B169: 89440 | C169: SINAPI | D169: TE, PVC, SOLDÁVEL, DN 25MM, INSTALADO EM RAMAL DE DISTRIBUIÇÃO DE ÁGUA - FORNECIMENTO E INSTALAÇÃO. AF_06/2022 | J169: UN | K169: ='MEMORIA DE CÁLCULO'!O1226 -> 39 | N169: =VLOOKUP(B169,'SINAPI NÃO DESONERADO'!$G$6:$L$7519,5,0) -> 10.29 | O169: 401.31 | Q169: 12.66 | S169: 493.74 | Y169: 493.74 | Z169: =K169-#REF! ->  | AA169: 6.3323e-05 | AB169: 0.6753698
A170: 12.38 | B170: 89393 | C170: SINAPI | D170: TE, PVC, SOLDÁVEL, DN 20MM, INSTALADO EM RAMAL OU SUB-RAMAL DE ÁGUA - FORNECIMENTO E INSTALAÇÃO. AF_06/2022 | J170: UN | K170: ='MEMORIA DE CÁLCULO'!O1233 -> 2 | N170: =VLOOKUP(B170,'SINAPI NÃO DESONERADO'!$G$6:$L$7519,5,0) -> 9.45 | O170: 18.9 | Q170: 11.63 | S170: 23.26 | Y170: =ROUND(K170*Q170,2) -> 23.26 | Z170: =K170-#REF! ->  | AA170: 2.983e-06 | AB170: 0.6753728
A171: 12.39 | B171: 89398 | C171: SINAPI | D171: TE, PVC, SOLDÁVEL, DN 32MM, INSTALADO EM RAMAL OU SUB-RAMAL DE ÁGUA - FORNECIMENTO E INSTALAÇÃO. AF_06/2022 | J171: UN | K171: ='MEMORIA DE CÁLCULO'!O1240 -> 6 | N171: =VLOOKUP(B171,'SINAPI NÃO DESONERADO'!$G$6:$L$7519,5,0) -> 16.02 | O171: 96.12 | Q171: 19.72 | S171: 118.32 | Y171: 118.32 | Z171: =K171-#REF! ->  | AA171: 1.5175e-05 | AB171: 0.675388
A172: 12.40 | B172: 89623 | C172: SINAPI | D172: TE, PVC, SOLDÁVEL, DN 40MM, INSTALADO EM PRUMADA DE ÁGUA - FORNECIMENTO E INSTALAÇÃO. AF_06/2022 | J172: UN | K172: ='MEMORIA DE CÁLCULO'!O1247 -> 4 | N172: =VLOOKUP(B172,'SINAPI NÃO DESONERADO'!$G$6:$L$7519,5,0) -> 17.94 | O172: 71.76 | Q172: 22.08 | S172: 88.32 | Y172: 88.32 | Z172: =K172-#REF! ->  | AA172: 1.1327e-05 | AB172: 0.6753993
A173: 12.41 | B173: 89439 | C173: SINAPI | D173: TÊ SOLDÁVEL E COM ROSCA NA BOLSA CENTRAL, PVC, SOLDÁVEL, DN 20MM X 1/2, INSTALADO EM RAMAL DE DISTRIBUIÇÃO DE ÁGUA - FORNECIMENTO E INSTALAÇÃO. AF_06/2022 | J173: UN | K173: ='MEMORIA DE CÁLCULO'!O1254 -> 1 | N173: =VLOOKUP(B173,'SINAPI NÃO DESONERADO'!$G$6:$L$7519,5,0) -> 10.2 | O173: 10.2 | Q173: 12.55 | S173: 12.55 | Y173: 12.55 | Z173: =K173-#REF! ->  | AA173: 1.61e-06 | AB173: 0.6754009
A174: 12.42 | B174: 89401 | C174: SINAPI | D174: TUBO, PVC, SOLDÁVEL, DN 20MM, INSTALADO EM RAMAL DE DISTRIBUIÇÃO DE ÁGUA - FORNECIMENTO E INSTALAÇÃO. AF_06/2022 | J174: M | K174: ='MEMORIA DE CÁLCULO'!O1261 -> 81.14 | N174: =VLOOKUP(B174,'SINAPI NÃO DESONERADO'!$G$6:$L$7519,5,0) -> 9.73 | O174: 789.49 | Q174: 11.98 | S174: 972.06 | Y174: 972.06 | Z174: =K174-#REF! ->  | AA174: 0.000124669 | AB174: 0.6755256
A175: 12.43 | B175: 89402 | C175: SINAPI | D175: TUBO, PVC, SOLDÁVEL, DN 25MM, INSTALADO EM RAMAL DE DISTRIBUIÇÃO DE ÁGUA - FORNECIMENTO E INSTALAÇÃO. AF_06/2022 | J175: M | K175: ='MEMORIA DE CÁLCULO'!O1268 -> 105.12 | N175: =VLOOKUP(B175,'SINAPI NÃO DESONERADO'!$G$6:$L$7519,5,0) -> 11.17 | O175: 1174.19 | Q175: 13.75 | S175: 1445.4 | Y175: 1445.4 | Z175: =K175-#REF! ->  | AA175: 0.000185376 | AB175: 0.675711
A176: 12.44 | B176: 89403 | C176: SINAPI | D176: TUBO, PVC, SOLDÁVEL, DN 32MM, INSTALADO EM RAMAL DE DISTRIBUIÇÃO DE ÁGUA - FORNECIMENTO E INSTALAÇÃO. AF_06/2022 | J176: M | K176: ='MEMORIA DE CÁLCULO'!O1275 -> 288.84 | N176: =VLOOKUP(B176,'SINAPI NÃO DESONERADO'!$G$6:$L$7519,5,0) -> 17.71 | O176: 5115.36 | Q176: 21.8 | S176: 6296.71 | Y176: 6296.71 | Z176: =K176-#REF! ->  | AA176: 0.000807566 | AB176: 0.6765186
A177: 12.45 | B177: 89448 | C177: SINAPI | D177: TUBO, PVC, SOLDÁVEL, DN 40MM, INSTALADO EM PRUMADA DE ÁGUA - FORNECIMENTO E INSTALAÇÃO. AF_06/2022 | J177: M | K177: ='MEMORIA DE CÁLCULO'!O1282 -> 64.89 | N177: =VLOOKUP(B177,'SINAPI NÃO DESONERADO'!$G$6:$L$7519,5,0) -> 16.56 | O177: 1074.58 | Q177: 20.38 | S177: 1322.46 | Y177: 1322.46 | Z177: =K177-#REF! ->  | AA177: 0.000169608 | AB177: 0.6766882
D178: ESGOTO E DRENAGEM | Y178: 0 | Z178: =K178-#REF! ->  | AA178: 0 | AB178: 0.6766882
A179: 12.46 | B179: 104345 | C179: SINAPI | D179: JUNÇÃO DE REDUÇÃO INVERTIDA, PVC, SÉRIE NORMAL, ESGOTO PREDIAL, DN 100 X 50 MM, JUNTA ELÁSTICA, FORNECIDO E INSTALADO EM RAMAL DE DESCARGA OU RAMAL DE ESGOTO SANITÁRIO. AF_08/2022 | J179: UN | K179: ='MEMORIA DE CÁLCULO'!O1289 -> 8 | N179: =VLOOKUP(B179,'SINAPI NÃO DESONERADO'!$G$6:$L$7519,5,0) -> 45.79 | O179: =IF(J179="","",ROUND(K179*N179,2)) -> 366.32 | Q179: =IF(J179="","",ROUND(N179*(1+$T$11),2)) -> 56.36 | S179: =IF(J179="","",ROUND(K179*Q179,2)) -> 450.88 | Y179: 450.88 | Z179: =K179-#REF! ->  | AA179: 5.7826e-05 | AB179: 0.676746
A180: 12.47 | B180: 89785 | C180: SINAPI | D180: JUNÇÃO SIMPLES, PVC, SERIE NORMAL, ESGOTO PREDIAL, DN 50 X 50 MM, JUNTA ELÁSTICA, FORNECIDO E INSTALADO EM RAMAL DE DESCARGA OU RAMAL DE ESGOTO SANITÁRIO. AF_08/2022 | J180: UN | K180: ='MEMORIA DE CÁLCULO'!O1296 -> 12 | N180: =VLOOKUP(B180,'SINAPI NÃO DESONERADO'!$G$6:$L$7519,5,0) -> 28.15 | O180: 337.8 | Q180: 34.65 | S180: 415.8 | Y180: 415.8 | Z180: =K180-#REF! ->  | AA180: 5.3327e-05 | AB180: 0.6767993
A181: 12.48 | B181: 89783 | C181: SINAPI | D181: JUNÇÃO SIMPLES, PVC, SERIE NORMAL, ESGOTO PREDIAL, DN 40 MM, JUNTA SOLDÁVEL, FORNECIDO E INSTALADO EM RAMAL DE DESCARGA OU RAMAL DE ESGOTO SANITÁRIO. AF_08/2022 | J181: UN | K181: ='MEMORIA DE CÁLCULO'!O1303 -> 8 | N181: =VLOOKUP(B181,'SINAPI NÃO DESONERADO'!$G$6:$L$7519,5,0) -> 13.45 | O181: 107.6 | Q181: 16.55 | S181: 132.4 | Y181: 132.4 | Z181: =K181-#REF! ->  | AA181: 1.6981e-05 | AB181: 0.6768163
A182: 12.49 | B182: 89797 | C182: SINAPI | D182: JUNÇÃO SIMPLES, PVC, SERIE NORMAL, ESGOTO PREDIAL, DN 100 X 100 MM, JUNTA ELÁSTICA, FORNECIDO E INSTALADO EM RAMAL DE DESCARGA OU RAMAL DE ESGOTO SANITÁRIO. AF_08/2022 | J182: UN | K182: ='MEMORIA DE CÁLCULO'!O1310 -> 8 | N182: =VLOOKUP(B182,'SINAPI NÃO DESONERADO'!$G$6:$L$7519,5,0) -> 54.96 | O182: 439.68 | Q182: 67.64 | S182: 541.12 | Y182: 541.12 | Z182: =K182-#REF! ->  | AA182: 6.94e-05 | AB182: 0.6768857
A183: 12.50 | B183: 89733 | C183: SINAPI | D183: CURVA CURTA 90 GRAUS, PVC, SERIE NORMAL, ESGOTO PREDIAL, DN 50 MM, JUNTA ELÁSTICA, FORNECIDO E INSTALADO EM RAMAL DE DESCARGA OU RAMAL DE ESGOTO SANITÁRIO. AF_08/2022 | J183: UN | K183: ='MEMORIA DE CÁLCULO'!O1317 -> 6 | N183: =VLOOKUP(B183,'SINAPI NÃO DESONERADO'!$G$6:$L$7519,5,0) -> 24.63 | O183: 147.78 | Q183: 30.31 | S183: 181.86 | Y183: 181.86 | Z183: =K183-#REF! ->  | AA183: 2.3324e-05 | AB183: 0.676909
A184: 12.51 | B184: 104334 | C184: SINAPI | D184: CURVA PVC, 45 GRAUS, CURTA, PVC, SÉRIE NORMAL, ESGOTO PREDIAL, DN 100MM, JUNTA ELÁSTICA, FORNECIDO E INSTALADO EM RAMAL DE DESCARGA OU RAMAL DE ESGOTO SANITÁRIO. AF_08/2022 | J184: UN | K184: ='MEMORIA DE CÁLCULO'!O1324 -> 2 | N184: 46.84 | O184: 93.68 | Q184: 57.65 | S184: 115.3 | V184: 46.84 | Y184: 115.3 | Z184: =K184-#REF! ->  | AA184: 1.4787e-05 | AB184: 0.6769238
A185: 12.52 | B185: 104331 | C185: SINAPI | D185: CURVA PVC LONGA 45G, PVC, SÉRIE NORMAL, ESGOTO PREDIAL, DN 50 MM, JUNTA ELÁSTICA, FORNECIDO E INSTALADO EM RAMAL DE DESCARGA OU RAMAL DE ESGOTO SANITÁRIO. AF_08/2022 | J185: UN | K185: ='MEMORIA DE CÁLCULO'!O1331 -> 20 | N185: 23.15 | O185: 463 | Q185: 28.49 | S185: 569.8 | V185: 23.15 | Y185: 569.8 | Z185: =K185-#REF! ->  | AA185: 7.3078e-05 | AB185: 0.6769969
A186: 12.53 | B186: 89728 | C186: SINAPI | D186: CURVA CURTA 90 GRAUS, PVC, SERIE NORMAL, ESGOTO PREDIAL, DN 40 MM, JUNTA SOLDÁVEL, FORNECIDO E INSTALADO EM RAMAL DE DESCARGA OU RAMAL DE ESGOTO SANITÁRIO. AF_08/2022 | J186: UN | K186: ='MEMORIA DE CÁLCULO'!O1338 -> 17 | N186: =VLOOKUP(B186,'SINAPI NÃO DESONERADO'!$G$6:$L$7519,5,0) -> 12.2 | O186: 207.4 | Q186: 15.02 | S186: 255.34 | Y186: 255.34 | Z186: =K186-#REF! ->  | AA186: 3.2748e-05 | AB186: 0.6770296
A187: 12.54 | B187: 89748 | C187: SINAPI | D187: CURVA CURTA 90 GRAUS, PVC, SERIE NORMAL, ESGOTO PREDIAL, DN 100 MM, JUNTA ELÁSTICA, FORNECIDO E INSTALADO EM RAMAL DE DESCARGA OU RAMAL DE ESGOTO SANITÁRIO. AF_08/2022 | J187: UN | K187: ='MEMORIA DE CÁLCULO'!O1345 -> 9 | N187: =VLOOKUP(B187,'SINAPI NÃO DESONERADO'!$G$6:$L$7519,5,0) -> 45.3 | O187: 407.7 | Q187: 55.76 | S187: 501.84 | Y187: 501.84 | Z187: =K187-#REF! ->  | AA187: 6.4362e-05 | AB187: 0.677094
A188: 12.55 | B188: 104333 | C188: SINAPI | D188: CURVA LONGA 45 GRAUS, PVC, SÉRIE NORMAL, ESGOTO PREDIAL, DN 100 MM, JUNTA ELÁSTICA, FORNECIDO E INSTALADO EM RAMAL DE DESCARGA OU RAMAL DE ESGOTO SANITÁRIO. AF_08/2022 | J188: UN | K188: ='MEMORIA DE CÁLCULO'!O1352 -> 1 | N188: 66.91 | O188: 66.91 | Q188: 82.35 | S188: 82.35 | V188: 66.91 | Y188: 82.35 | Z188: =K188-#REF! ->  | AA188: 1.0562e-05 | AB188: 0.6771046
A189: 12.56 | B189: 89724 | C189: SINAPI | D189: JOELHO 90 GRAUS, PVC, SERIE NORMAL, ESGOTO PREDIAL, DN 40 MM, JUNTA SOLDÁVEL, FORNECIDO E INSTALADO EM RAMAL DE DESCARGA OU RAMAL DE ESGOTO SANITÁRIO. AF_08/2022 | J189: UN | K189: ='MEMORIA DE CÁLCULO'!O1359 -> 18 | N189: =VLOOKUP(B189,'SINAPI NÃO DESONERADO'!$G$6:$L$7519,5,0) -> 9.1 | O189: =IF(J189="","",ROUND(K189*N189,2)) -> 163.8 | Q189: =IF(J189="","",ROUND(N189*(1+$T$11),2)) -> 11.2 | S189: =IF(J189="","",ROUND(K189*Q189,2)) -> 201.6 | Y189: 201.6 | Z189: =K189-#REF! ->  | AA189: 2.5856e-05 | AB189: 0.6771305
A190: 12.57 | B190: 89731 | C190: SINAPI | D190: JOELHO 90 GRAUS, PVC, SERIE NORMAL, ESGOTO PREDIAL, DN 50 MM, JUNTA ELÁSTICA, FORNECIDO E INSTALADO EM RAMAL DE DESCARGA OU RAMAL DE ESGOTO SANITÁRIO. AF_08/2022 | J190: UN | K190: ='MEMORIA DE CÁLCULO'!O1366 -> 12 | N190: =VLOOKUP(B190,'SINAPI NÃO DESONERADO'!$G$6:$L$7519,5,0) -> 15.67 | O190: 188.04 | Q190: 19.29 | S190: 231.48 | Y190: 231.48 | Z190: =K190-#REF! ->  | AA190: 2.9688e-05 | AB190: 0.6771602
A191: 12.58 | B191: 89744 | C191: SINAPI | D191: JOELHO 90 GRAUS, PVC, SERIE NORMAL, ESGOTO PREDIAL, DN 100 MM, JUNTA ELÁSTICA, FORNECIDO E INSTALADO EM RAMAL DE DESCARGA OU RAMAL DE ESGOTO SANITÁRIO. AF_08/2022 | J191: UN | K191: ='MEMORIA DE CÁLCULO'!O1373 -> 8 | N191: =VLOOKUP(B191,'SINAPI NÃO DESONERADO'!$G$6:$L$7519,5,0) -> 29.35 | O191: 234.8 | Q191: 36.12 | S191: 288.96 | Y191: 288.96 | Z191: =K191-#REF! ->  | AA191: 3.706e-05 | AB191: 0.6771973
A192: 12.59 | B192: 89726 | C192: SINAPI | D192: JOELHO 45 GRAUS, PVC, SERIE NORMAL, ESGOTO PREDIAL, DN 40 MM, JUNTA SOLDÁVEL, FORNECIDO E INSTALADO EM RAMAL DE DESCARGA OU RAMAL DE ESGOTO SANITÁRIO. AF_08/2022 | J192: UN | K192: ='MEMORIA DE CÁLCULO'!O1380 -> 4 | N192: =VLOOKUP(B192,'SINAPI NÃO DESONERADO'!$G$6:$L$7519,5,0) -> 9.35 | O192: 37.4 | Q192: 11.51 | S192: 46.04 | Y192: 46.04 | Z192: =K192-#REF! ->  | AA192: 5.905e-06 | AB192: 0.6772032
A193: 12.60 | B193: 89711 | C193: SINAPI | D193: TUBO PVC, SERIE NORMAL, ESGOTO PREDIAL, DN 40 MM, FORNECIDO E INSTALADO EM RAMAL DE DESCARGA OU RAMAL DE ESGOTO SANITÁRIO. AF_08/2022 | J193: M | K193: ='MEMORIA DE CÁLCULO'!O1387 -> 64.51 | N193: =VLOOKUP(B193,'SINAPI NÃO DESONERADO'!$G$6:$L$7519,5,0) -> 19.42 | O193: 1252.78 | Q193: 23.9 | S193: 1541.79 | Y193: 1541.79 | Z193: =K193-#REF! ->  | AA193: 0.000197738 | AB193: 0.6774009
A194: 12.61 | B194: 89712 | C194: SINAPI | D194: TUBO PVC, SERIE NORMAL, ESGOTO PREDIAL, DN 50 MM, FORNECIDO E INSTALADO EM RAMAL DE DESCARGA OU RAMAL DE ESGOTO SANITÁRIO. AF_08/2022 | J194: M | K194: ='MEMORIA DE CÁLCULO'!O1394 -> 45.9 | N194: =VLOOKUP(B194,'SINAPI NÃO DESONERADO'!$G$6:$L$7519,5,0) -> 25.23 | O194: 1158.06 | Q194: 31.05 | S194: 1425.2 | Y194: 1425.2 | Z194: =K194-#REF! ->  | AA194: 0.000182785 | AB194: 0.6775837
A195: 12.62 | B195: 89713 | C195: SINAPI | D195: TUBO PVC, SERIE NORMAL, ESGOTO PREDIAL, DN 75 MM, FORNECIDO E INSTALADO EM RAMAL DE DESCARGA OU RAMAL DE ESGOTO SANITÁRIO. AF_08/2022 | J195: M | K195: ='MEMORIA DE CÁLCULO'!O1401 -> 0.83 | N195: =VLOOKUP(B195,'SINAPI NÃO DESONERADO'!$G$6:$L$7519,5,0) -> 31.61 | O195: 26.24 | Q195: 38.91 | S195: 32.3 | Y195: 32.3 | Z195: =K195-#REF! ->  | AA195: 4.143e-06 | AB195: 0.6775878
A196: 12.63 | B196: 89714 | C196: SINAPI | D196: TUBO PVC, SERIE NORMAL, ESGOTO PREDIAL, DN 100 MM, FORNECIDO E INSTALADO EM RAMAL DE DESCARGA OU RAMAL DE ESGOTO SANITÁRIO. AF_08/2022 | J196: M | K196: ='MEMORIA DE CÁLCULO'!O1408 -> 216.07 | N196: =VLOOKUP(B196,'SINAPI NÃO DESONERADO'!$G$6:$L$7519,5,0) -> 35.1 | O196: 7584.06 | Q196: 43.2 | S196: 9334.22 | Y196: 9334.22 | Z196: =K196-#REF! ->  | AA196: 0.001197133 | AB196: 0.6787849
A197: 12.64 | B197: 104341 | C197: SINAPI | D197: BUCHA DE REDUÇÃO LONGA, PVC, SÉRIE NORMAL, ESGOTO PREDIAL, DN 50 X 40 MM, JUNTA SOLDÁVEL E ELÁSTICA, FORNECIDO E INSTALADO EM RAMAL DE DESCARGA OU RAMAL DE ESGOTO SANITÁRIO. AF_08/2022 | J197: UN | K197: ='MEMORIA DE CÁLCULO'!O1415 -> 6 | N197: =VLOOKUP(B197,'SINAPI NÃO DESONERADO'!$G$6:$L$7519,5,0) -> 11.09 | O197: 66.54 | Q197: 13.65 | S197: 81.9 | Y197: 81.9 | Z197: =K197-#REF! ->  | AA197: 1.0504e-05 | AB197: 0.6787954
A198: 12.65 | B198: 89796 | C198: SINAPI | D198: TE, PVC, SERIE NORMAL, ESGOTO PREDIAL, DN 100 X 100 MM, JUNTA ELÁSTICA, FORNECIDO E INSTALADO EM RAMAL DE DESCARGA OU RAMAL DE ESGOTO SANITÁRIO. AF_08/2022 | J198: UN | K198: ='MEMORIA DE CÁLCULO'!O1422 -> 3 | N198: =VLOOKUP(B198,'SINAPI NÃO DESONERADO'!$G$6:$L$7519,5,0) -> 46.44 | O198: 139.32 | Q198: 57.16 | S198: 171.48 | Y198: 171.48 | Z198: =K198-#REF! ->  | AA198: 2.1993e-05 | AB198: 0.6788174
A199: 12.66 | B199: 89746 | C199: SINAPI | D199: JOELHO 45 GRAUS, PVC, SERIE NORMAL, ESGOTO PREDIAL, DN 100 MM, JUNTA ELÁSTICA, FORNECIDO E INSTALADO EM RAMAL DE DESCARGA OU RAMAL DE ESGOTO SANITÁRIO. AF_08/2022 | J199: UN | K199: ='MEMORIA DE CÁLCULO'!O1429 -> 2 | N199: =VLOOKUP(B199,'SINAPI NÃO DESONERADO'!$G$6:$L$7519,5,0) -> 30.24 | O199: 60.48 | Q199: 37.22 | S199: 74.44 | Y199: 74.44 | Z199: =K199-#REF! ->  | AA199: 9.547e-06 | AB199: 0.6788269
A200: 12.67 | B200: 89801 | C200: SINAPI | D200: JOELHO 90 GRAUS, PVC, SERIE NORMAL, ESGOTO PREDIAL, DN 50 MM, JUNTA ELÁSTICA, FORNECIDO E INSTALADO EM PRUMADA DE ESGOTO SANITÁRIO OU VENTILAÇÃO. AF_08/2022 | J200: UN | K200: ='MEMORIA DE CÁLCULO'!O1436 -> 10 | N200: =VLOOKUP(B200,'SINAPI NÃO DESONERADO'!$G$6:$L$7519,5,0) -> 11.37 | O200: 113.7 | Q200: 13.99 | S200: 139.9 | Y200: 139.9 | Z200: =K200-#REF! ->  | AA200: 1.7942e-05 | AB200: 0.6788448
A201: 12.68 | B201: 89827 | C201: SINAPI | D201: JUNÇÃO SIMPLES, PVC, SERIE NORMAL, ESGOTO PREDIAL, DN 50 X 50 MM, JUNTA ELÁSTICA, FORNECIDO E INSTALADO EM PRUMADA DE ESGOTO SANITÁRIO OU VENTILAÇÃO. AF_08/2022 | J201: UN | K201: ='MEMORIA DE CÁLCULO'!O1443 -> 5 | N201: =VLOOKUP(B201,'SINAPI NÃO DESONERADO'!$G$6:$L$7519,5,0) -> 22.44 | O201: =IF(J201="","",ROUND(K201*N201,2)) -> 112.2 | Q201: =IF(J201="","",ROUND(N201*(1+$T$11),2)) -> 27.62 | S201: =IF(J201="","",ROUND(K201*Q201,2)) -> 138.1 | Y201: 138.1 | Z201: =K201-#REF! ->  | AA201: 1.7712e-05 | AB201: 0.6788625
... 168 more rows

Sheet CURVA ABC
A1: CURVA ABC (A<=75%, 75%<B<=95% e C>95%)
A2: COD | B2: DESCRIÇÃO | C2: R$ | D2: % | E2: % ACUM. | F2: Classe | H2: Onde: | I2: A <= | J2: 0.75
A3: 6.17 | B3: LAJE STEEL DECK PARA PISO COM CAPA DE CONCRETO FCK 25 MPA, ESPESSURA DA LAJE 15CM, ESPESSURA DA CHAPA 0,95 MM, INCLUSIVE IÇAMENTO COM GUINDASTE. AF_01/2020 | C3: 942164.55 | D3: =C3/'PLANILHA SEM DESONERAÇÃO'!$S$363 -> 0.12083 | E3: =D3 -> 0.1208 | F3: =IF(E3<=$J$2,"A",IF(AND(E3<=$K$3,E3>$I$3),"B",IF(E3>$J$4,"C"))) -> A | I3: =J2 -> 0.75 | J3: < B <= | K3: 0.95
A4: 11.2 | B4: REVESTIMENTO CERÂMICO PARA PISO COM PLACAS TIPO PORCELANATO DE DIMENSÕES 60X60 CM APLICADA EM AMBIENTES DE ÁREA MAIOR QUE 10 M². AF_06/2014 | C4: 456252.31 | D4: =C4/'PLANILHA SEM DESONERAÇÃO'!$S$363 -> 0.05852 | E4: =D4+E3 -> 0.1793 | F4: =IF(E4<=$J$2,"A",IF(AND(E4<=$K$3,E4>$I$3),"B",IF(E4>$J$4,"C"))) -> A | I4: C > | J4: =K3 -> 0.95
A5: 17.1 | B5: EXECUÇÃO DE PÁTIO/ESTACIONAMENTO EM PISO INTERTRAVADO, COM BLOCO RETANGULAR COR NATURAL DE 20 X 10 CM, ESPESSURA 8 CM. AF_12/2015 | C5: 348040 | D5: =C5/'PLANILHA SEM DESONERAÇÃO'!$S$363 -> 0.04464 | E5: =D5+E4 -> 0.2239 | F5: A
A6: 6.1 | B6: VIGA METÁLICA EM PERFIL W 610 x 113, LAMINADO OU SOLDADO, EM AÇO ESTRUTURAL, COM CONEXÕES SOLDADAS, INCLUSOS MÃO DE OBRA, TRANSPORTE E IÇAMENTO UTILIZANDO GUINDASTE - FORNECIMENTO E INSTALAÇÃO. AF_01/2020_P | C6: 348019.84 | D6: =C6/'PLANILHA SEM DESONERAÇÃO'!$S$363 -> 0.04463 | E6: 0.2685 | F6: A
A7: 3.10 | B7: TRANSPORTE COM CAMINHÃO BASCULANTE DE 14 M³, EM VIA URBANA PAVIMENTADA, DMT ATÉ 30 KM (UNIDADE: M3XKM). AF_07/2020 | C7: 317891 | D7: =C7/'PLANILHA SEM DESONERAÇÃO'!$S$363 -> 0.04077 | E7: 0.3093 | F7: A
A8: 19.1 | B8: ENGENHEIRO CIVIL DE OBRA PLENO COM ENCARGOS COMPLEMENTARES | C8: 302372.88 | D8: =C8/'PLANILHA SEM DESONERAÇÃO'!$S$363 -> 0.03878 | E8: 0.3481 | F8: A
A9: 6.6 | B9: VIGA METÁLICA EM PERFIL W 410 x 53, LAMINADO OU SOLDADO, EM AÇO ESTRUTURAL, COM CONEXÕES SOLDADAS, INCLUSOS MÃO DE OBRA, TRANSPORTE E IÇAMENTO UTILIZANDO GUINDASTE - FORNECIMENTO E INSTALAÇÃO. AF_01/2020_P | C9: 292687.74 | D9: =C9/'PLANILHA SEM DESONERAÇÃO'!$S$363 -> 0.03754 | E9: 0.3856 | F9: A
A10: 7.3 | B10: PAREDE COM PLACAS DE GESSO ACARTONADO (DRYWALL), PARA USO EXTERNO (PLACAS RU), COM DUAS FACES SIMPLES E ESTRUTURA METÁLICA COM GUIAS SIMPLES, INCLUINDO ISOLAMENTO TÉRMICO/ACÚSTICO COM LÃ DE VIDRO | C10: 254327.98 | D10: =C10/'PLANILHA SEM DESONERAÇÃO'!$S$363 -> 0.03262 | E10: 0.4182 | F10: A
A11: 16.1 | B11: FORRO EM DRYWALL, PARA AMBIENTES COMERCIAIS, INCLUSIVE ESTRUTURA DE FIXAÇÃO. AF_05/2017_PS | C11: 195821.57 | D11: =C11/'PLANILHA SEM DESONERAÇÃO'!$S$363 -> 0.02511 | E11: 0.4433 | F11: A
A12: 6.8 | B12: VIGA METÁLICA EM PERFIL W 360 x 39, LAMINADO OU SOLDADO, EM AÇO ESTRUTURAL, COM CONEXÕES SOLDADAS, INCLUSOS MÃO DE OBRA, TRANSPORTE E IÇAMENTO UTILIZANDO GUINDASTE - FORNECIMENTO E INSTALAÇÃO. AF_01/2020_P | C12: 187093.68 | D12: =C12/'PLANILHA SEM DESONERAÇÃO'!$S$363 -> 0.024 | E12: 0.4673 | F12: A
A13: 8.4 | B13: IMPERMEABILIZAÇÃO DE SUPERFÍCIE COM MANTA ASFÁLTICA, UMA CAMADA, INCLUSIVE APLICAÇÃO DE PRIMER ASFÁLTICO, E=3MM. AF_06/2018 | C13: 167506.44 | D13: =C13/'PLANILHA SEM DESONERAÇÃO'!$S$363 -> 0.02148 | E13: 0.4888 | F13: A
A14: 6.2 | B14: VIGA METÁLICA EM PERFIL W 530 x 101, LAMINADO OU SOLDADO, EM AÇO ESTRUTURAL, COM CONEXÕES SOLDADAS, INCLUSOS MÃO DE OBRA, TRANSPORTE E IÇAMENTO UTILIZANDO GUINDASTE - FORNECIMENTO E INSTALAÇÃO. AF_01/2020_P | C14: 147068.46 | D14: =C14/'PLANILHA SEM DESONERAÇÃO'!$S$363 -> 0.01886 | E14: 0.5077 | F14: A
A15: 7.2 | B15: PAREDE COM PLACAS DE GESSO ACARTONADO (DRYWALL), PARA USO INTERNO, COM DUAS FACES SIMPLES E ESTRUTURA METÁLICA COM GUIAS SIMPLES, COM VÃOS AF_06/2017_PS | C15: 143065.09 | D15: =C15/'PLANILHA SEM DESONERAÇÃO'!$S$363 -> 0.01835 | E15: 0.5261 | F15: A
A16: 6.16 | B16: PILAR METÁLICO PERFIL LAMINADO/SOLDADO, W 250 x 62 EM AÇO ESTRUTURAL, COM CONEXÕES PARAFUSADAS, INCLUSOS MÃO DE OBRA, TRANSPORTE E IÇAMENTO UTILIZANDO GUINDASTE - FORNECIMENTO E INSTALAÇÃO. AF_01/2020_P | C16: 139890.08 | D16: =C16/'PLANILHA SEM DESONERAÇÃO'!$S$363 -> 0.01794 | E16: 0.544 | F16: A
A17: 6.7 | B17: VIGA METÁLICA EM PERFIL W 410 x 46.1, LAMINADO OU SOLDADO, EM AÇO ESTRUTURAL, COM CONEXÕES SOLDADAS, INCLUSOS MÃO DE OBRA, TRANSPORTE E IÇAMENTO UTILIZANDO GUINDASTE - FORNECIMENTO E INSTALAÇÃO. AF_01/2020_P | C17: 127940.1 | D17: =C17/'PLANILHA SEM DESONERAÇÃO'!$S$363 -> 0.01641 | E17: 0.5604 | F17: A
A18: 14.9 | B18: INSTALAÇÃO DE VIDRO LAMINADO, E = 8 MM (4+4), ENCAIXADO EM PERFIL U. AF_01/2021_PS | C18: 117855.37 | D18: =C18/'PLANILHA SEM DESONERAÇÃO'!$S$363 -> 0.01512 | E18: 0.5755 | F18: A
A19: 19.5 | B19: VIGIA NOTURNO COM ENCARGOS COMPLEMENTARES | C19: 112741.2 | D19: =C19/'PLANILHA SEM DESONERAÇÃO'!$S$363 -> 0.01446 | E19: 0.59 | F19: A
A20: 6.3 | B20: VIGA METÁLICA EM PERFIL W 530 x 74, LAMINADO OU SOLDADO, EM AÇO ESTRUTURAL, COM CONEXÕES SOLDADAS, INCLUSOS MÃO DE OBRA, TRANSPORTE E IÇAMENTO UTILIZANDO GUINDASTE - FORNECIMENTO E INSTALAÇÃO. AF_01/2020_P | C20: 109604.22 | D20: =C20/'PLANILHA SEM DESONERAÇÃO'!$S$363 -> 0.01406 | E20: 0.6041 | F20: A
A21: 5.20 | B21: CONCRETAGEM DE RADIER, PISO DE CONCRETO OU LAJE SOBRE SOLO, FCK 30 MPA - LANÇAMENTO, ADENSAMENTO E ACABAMENTO. AF_09/2021 | C21: 106711.38 | D21: =C21/'PLANILHA SEM DESONERAÇÃO'!$S$363 -> 0.01369 | E21: 0.6178 | F21: A
A22: 11.1 | B22: CONTRAPISO EM ARGAMASSA TRAÇO 1:4 (CIMENTO E AREIA), PREPARO MECÂNICO COM BETONEIRA 400 L, APLICADO EM ÁREAS SECAS SOBRE LAJE, ADERIDO, ACABAMENTO NÃO REFORÇADO, ESPESSURA 3CM. AF_07/2021 | C22: 100192.7 | D22: =C22/'PLANILHA SEM DESONERAÇÃO'!$S$363 -> 0.01285 | E22: 0.6307 | F22: A
A23: 6.11 | B23: VIGA METÁLICA EM PERFIL W 250 x80, LAMINADO OU SOLDADO, EM AÇO ESTRUTURAL, COM CONEXÕES SOLDADAS, INCLUSOS MÃO DE OBRA, TRANSPORTE E IÇAMENTO UTILIZANDO GUINDASTE - FORNECIMENTO E INSTALAÇÃO. AF_01/2020_P | C23: 96422.4 | D23: =C23/'PLANILHA SEM DESONERAÇÃO'!$S$363 -> 0.01237 | E23: 0.6431 | F23: A
A24: 6.9 | B24: VIGA METÁLICA EM PERFIL W 310 x 32,7, LAMINADO OU SOLDADO, EM AÇO ESTRUTURAL, COM CONEXÕES SOLDADAS, INCLUSOS MÃO DE OBRA, TRANSPORTE E IÇAMENTO UTILIZANDO GUINDASTE - FORNECIMENTO E INSTALAÇÃO. AF_01/2020_P | C24: 86038.29 | D24: =C24/'PLANILHA SEM DESONERAÇÃO'!$S$363 -> 0.01103 | E24: 0.6541 | F24: A
A25: 13.1 | B25: ELETROCALHA LISA OU PERFURADA EM AÇO GALVANIZADO, LARGURA 50MM E ALTURA 50MM, INCLUSIVE EMENDA E FIXAÇÃO - FORNECIMENTO E INSTALAÇÃO | C25: 80466.75 | D25: =C25/'PLANILHA SEM DESONERAÇÃO'!$S$363 -> 0.01032 | E25: 0.6644 | F25: A
A26: 1.2 | B26: EXECUÇÃO DE ESCRITÓRIO EM CANTEIRO DE OBRA EM ALVENARIA, NÃO INCLUSO MOBILIÁRIO E EQUIPAMENTOS. AF_02/2016 | C26: 73665.17 | D26: =C26/'PLANILHA SEM DESONERAÇÃO'!$S$363 -> 0.00945 | E26: 0.6739 | F26: A
A27: 16.2 | B27: ACABAMENTOS PARA FORRO (MOLDURA EM DRYWALL, COM LARGURA DE 15 CM). AF_ 05/2017_PS | C27: 73011.02 | D27: =C27/'PLANILHA SEM DESONERAÇÃO'!$S$363 -> 0.00936 | E27: 0.6833 | F27: A
A28: 8.5 | B28: PROTEÇÃO MECÂNICA DE SUPERFICIE HORIZONTAL COM ARGAMASSA DE CIMENTO E AREIA, TRAÇO 1:3, E=3CM. AF_06/2018 | C28: 64423.14 | D28: =C28/'PLANILHA SEM DESONERAÇÃO'!$S$363 -> 0.00826 | E28: 0.6916 | F28: A
A29: 1.3 | B29: EXECUÇÃO DE ALMOXARIFADO EM CANTEIRO DE OBRA EM ALVENARIA, INCLUSO PRATELEIRAS. AF_02/2016 | C29: 62138.59 | D29: =C29/'PLANILHA SEM DESONERAÇÃO'!$S$363 -> 0.00797 | E29: 0.6996 | F29: A
A30: 1.5 | B30: EXECUÇÃO DE SANITÁRIO E VESTIÁRIO EM CANTEIRO DE OBRA EM ALVENARIA, NÃO INCLUSO MOBILIÁRIO. AF_02/2016 | C30: 61067.53 | D30: =C30/'PLANILHA SEM DESONERAÇÃO'!$S$363 -> 0.00783 | E30: 0.7074 | F30: A
A31: 19.2 | B31: ENCARREGADO GERAL DE OBRAS COM ENCARGOS COMPLEMENTARES | C31: 60864.24 | D31: =C31/'PLANILHA SEM DESONERAÇÃO'!$S$363 -> 0.00781 | E31: 0.7152 | F31: A
A32: 3.7 | B32: AREIA PARA ATERRO - POSTO JAZIDA/FORNECEDOR (RETIRADO NA JAZIDA, SEM TRANSPORTE E SEM CARGA DO MATERIAL EM CAMINHÃO) | C32: 59977.29 | D32: =C32/'PLANILHA SEM DESONERAÇÃO'!$S$363 -> 0.00769 | E32: 0.7229 | F32: A
A33: 5.5 | B33: FABRICAÇÃO, MONTAGEM E DESMONTAGEM DE FÔRMA PARA VIGA BALDRAME, EM CHAPA DE MADEIRA COMPENSADA RESINADA, E=17 MM, 4 UTILIZAÇÕES. AF_06/2017 | C33: 58244.08 | D33: =C33/'PLANILHA SEM DESONERAÇÃO'!$S$363 -> 0.00747 | E33: 0.7304 | F33: A
A34: 7.1 | B34: PAREDE COM PLACAS DE GESSO ACARTONADO (DRYWALL), PARA USO INTERNO, COM DUAS FACES SIMPLES E ESTRUTURA METÁLICA COM GUIAS SIMPLES, SEM VÃOS. AF_06/2017_PS | C34: 57784.14 | D34: =C34/'PLANILHA SEM DESONERAÇÃO'!$S$363 -> 0.00741 | E34: 0.7378 | F34: A
A35: 11.5 | B35: EXECUÇÃO DE PASSEIO (CALÇADA) OU PISO DE CONCRETO COM CONCRETO MOLDADO IN LOCO, FEITO EM OBRA, ACABAMENTO CONVENCIONAL, NÃO ARMADO. AF_08/2022 | C35: 57192.87 | D35: =C35/'PLANILHA SEM DESONERAÇÃO'!$S$363 -> 0.00734 | E35: 0.7451 | F35: A
A36: 5.14 | B36: CONCRETAGEM DE BLOCOS DE COROAMENTO E VIGAS BALDRAME, FCK 30 MPA, COM USO DE JERICA LANÇAMENTO, ADENSAMENTO E ACABAMENTO. AF_06/2017 | C36: 55856.1 | D36: =C36/'PLANILHA SEM DESONERAÇÃO'!$S$363 -> 0.00716 | E36: 0.7523 | F36: B
A37: 5.16 | B37: ATERRO MANUAL DE VALAS COM SOLO ARGILO-ARENOSO E COMPACTAÇÃO MECANIZADA. | C37: 53844.5 | D37: =C37/'PLANILHA SEM DESONERAÇÃO'!$S$363 -> 0.00691 | E37: =E36+D37 -> 0.7592 | F37: B
A38: 14.1 | B38: KIT DE PORTA DE MADEIRA PARA PINTURA, SEMI-OCA (LEVE OU MÉDIA), PADRÃO MÉDIO, 80X210CM, ESPESSURA DE 3,5CM, ITENS INCLUSOS: DOBRADIÇAS, MONTAGEM E INSTALAÇÃO DO BATENTE, FECHADURA COM EXECUÇÃO DO FURO - FORNECIMENTO E INSTALAÇÃO. AF_12/2019 | C38: ='PLANILHA SEM DESONERAÇÃO'!S290 -> 39510.17 | D38: =C38/'PLANILHA SEM DESONERAÇÃO'!$S$363 -> 0.00507 | E38: =D38+E37 -> 0.7643 | F38: B
A39: 19.4 | B39: ALMOXARIFE COM ENCARGOS COMPLEMENTARES | C39: 47235.98 | D39: =C39/'PLANILHA SEM DESONERAÇÃO'!$S$363 -> 0.00606 | E39: =D39+E38 -> 0.7704 | F39: B
A40: 16.11 | B40: APLICAÇÃO MANUAL DE PINTURA COM TINTA LÁTEX ACRÍLICA EM PAREDES, DUAS DEMÃOS. AF_06/2014 | C40: 46532.94 | D40: =C40/'PLANILHA SEM DESONERAÇÃO'!$S$363 -> 0.00597 | E40: 0.7764 | F40: B
A41: 12.101 | B41: SUMIDOURO RETANGULAR, EM ALVENARIA COM BLOCOS DE CONCRETO, DIMENSÕES INTERNAS: 1,6 X 5,8 X H=3,0 M, ÁREA DE INFILTRAÇÃO: 50 M² (PARA 20 CONTRIBUINTES). . AF_12/2020 | C41: 44341.12 | D41: =C41/'PLANILHA SEM DESONERAÇÃO'!$S$363 -> 0.00569 | E41: 0.7821 | F41: B
A42: 5.15 | B42: IMPERMEABILIZAÇÃO DE SUPERFÍCIE COM EMULSÃO ASFÁLTICA, 2 DEMÃOS AF_06/2018 | C42: 43306.34 | D42: =C42/'PLANILHA SEM DESONERAÇÃO'!$S$363 -> 0.00555 | E42: 0.7877 | F42: B
A43: 7.5 | B43: DIVISORIA SANITÁRIA, TIPO CABINE, EM GRANITO CINZA POLIDO, ESP = 3CM, ASSENTADO COM ARGAMASSA COLANTE AC III-E, EXCLUSIVE FERRAGENS. AF_01/2021 | C43: 43020.78 | D43: =C43/'PLANILHA SEM DESONERAÇÃO'!$S$363 -> 0.00552 | E43: 0.7932 | F43: B
A44: 11.6 | B44: PISO PODOTÁTIL DE ALERTA OU DIRECIONAL, DE BORRACHA, ASSENTADO SOBRE ARGAMASSA. AF_05/2020 | C44: 41925.34 | D44: =C44/'PLANILHA SEM DESONERAÇÃO'!$S$363 -> 0.00538 | E44: 0.7986 | F44: B
A45: 16.8 | B45: APLICAÇÃO E LIXAMENTO DE MASSA LÁTEX EM TETO, UMA DEMÃO. AF_06/2014 | C45: 41197.7 | D45: =C45/'PLANILHA SEM DESONERAÇÃO'!$S$363 -> 0.00528 | E45: 0.8039 | F45: B | L45: 1636553.69
A46: 16.9 | B46: APLICAÇÃO E LIXAMENTO DE MASSA LÁTEX EM PAREDES, UMA DEMÃO. AF_06/2014 | C46: 39950.4 | D46: =C46/'PLANILHA SEM DESONERAÇÃO'!$S$363 -> 0.00512 | E46: 0.809 | F46: B | L46: 462780.76
A47: 11.4 | B47: CARPETE DE NYLON EM MANTA PARA TRAFEGO COMERCIAL PESADO, E = 9 A 10 MM (INSTALADO) | C47: 37256.35 | D47: =C47/'PLANILHA SEM DESONERAÇÃO'!$S$363 -> 0.00478 | E47: 0.8138 | F47: B
A48: 6.4 | B48: VIGA METÁLICA EM PERFIL W 530 x 72, LAMINADO OU SOLDADO, EM AÇO ESTRUTURAL, COM CONEXÕES SOLDADAS, INCLUSOS MÃO DE OBRA, TRANSPORTE E IÇAMENTO UTILIZANDO GUINDASTE - FORNECIMENTO E INSTALAÇÃO. AF_01/2020_P | C48: 37105.14 | D48: =C48/'PLANILHA SEM DESONERAÇÃO'!$S$363 -> 0.00476 | E48: 0.8186 | F48: B
A49: 10.4 | B49: RODAPÉ CERÂMICO DE 7CM DE ALTURA COM PLACAS TIPO ESMALTADA EXTRA DE DIMENSÕES 60X60CM. AF_06/2014 | C49: 36677.23 | D49: =C49/'PLANILHA SEM DESONERAÇÃO'!$S$363 -> 0.0047 | E49: 0.8233 | F49: B
A50: 13.2 | B50: ELETROCALHA LISA OU PERFURADA EM AÇO GALVANIZADO, LARGURA 100MM E ALTURA 50MM, INCLUSIVE EMENDA E FIXAÇÃO - FORNECIMENTO E INSTALAÇÃO | C50: 36672.45 | D50: =C50/'PLANILHA SEM DESONERAÇÃO'!$S$363 -> 0.0047 | E50: 0.828 | F50: B
A51: 5.7 | B51: ARMAÇÃO DE BLOCO, VIGA BALDRAME E SAPATA UTILIZANDO AÇO CA-60 DE 5 MM - MONTAGEM. AF_06/2017 | C51: 35987.83 | D51: =C51/'PLANILHA SEM DESONERAÇÃO'!$S$363 -> 0.00462 | E51: 0.8326 | F51: B
A52: 5.19 | B52: ARMAÇÃO DE LAJE DE ESTRUTURA CONVENCIONAL DE CONCRETO ARMADO UTILIZANDO AÇO CA-60 DE 5,0 MM - MONTAGEM. AF_06/2022 | C52: 33708.1 | D52: =C52/'PLANILHA SEM DESONERAÇÃO'!$S$363 -> 0.00432 | E52: 0.8369 | F52: B
A53: 19.6 | B53: ENGENHEIRO ELETRICISTA COM ENCARGOS COMPLEMENTARES | C53: 33622.2 | D53: =C53/'PLANILHA SEM DESONERAÇÃO'!$S$363 -> 0.00431 | E53: 0.8412 | F53: B
A54: 1.4 | B54: EXECUÇÃO DE REFEITÓRIO EM CANTEIRO DE OBRA EM ALVENARIA, NÃO INCLUSO MOBILIÁRIO E EQUIPAMENTOS. AF_02/2016 | C54: 33436.54 | D54: =C54/'PLANILHA SEM DESONERAÇÃO'!$S$363 -> 0.00429 | E54: 0.8455 | F54: B
A55: 3.8 | B55: CARGA, MANOBRA E DESCARGA DE SOLOS E MATERIAIS GRANULARES EM CAMINHÃO BASCULANTE 14 M³ - CARGA COM ESCAVADEIRA HIDRÁULICA (CAÇAMBA DE 1,20 M³ / 155 HP) E DESCARGA LIVRE (UNIDADE: M3). AF_07/2020 | C55: 33258.16 | D55: =C55/'PLANILHA SEM DESONERAÇÃO'!$S$363 -> 0.00427 | E55: 0.8498 | F55: B
A56: 5.13 | B56: CONCRETAGEM DE SAPATAS, FCK 30 MPA, COM USO DE BOMBA LANÇAMENTO, ADENSAMENTO E ACABAMENTO. AF_11/2016 | C56: 32103.77 | D56: =C56/'PLANILHA SEM DESONERAÇÃO'!$S$363 -> 0.00412 | E56: 0.8539 | F56: B
A57: 17.5 | B57: ALAMBRADO EM MOURÕES DE CONCRETO, COM TELA DE ARAME GALVANIZADO (INCLUSIVE MURETA EM CONCRETO). AF_05/2018 | C57: 31447.5 | D57: =C57/'PLANILHA SEM DESONERAÇÃO'!$S$363 -> 0.00403 | E57: 0.8579 | F57: B
A58: 10.3 | B58: REVESTIMENTO CERÂMICO PARA PAREDES INTERNAS COM PLACAS TIPO ESMALTADA EXTRA DE DIMENSÕES 20X20 CM APLICADAS EM AMBIENTES DE ÁREA MAIOR QUE 5M² NA ALTURA INTEIRA DAS PAREDES. AF_06/2014 | C58: 31015.65 | D58: =C58/'PLANILHA SEM DESONERAÇÃO'!$S$363 -> 0.00398 | E58: 0.8619 | F58: B
A59: 6.12 | B59: VIGA METÁLICA EM PERFIL W 250 x22.3, LAMINADO OU SOLDADO, EM AÇO ESTRUTURAL, COM CONEXÕES SOLDADAS, INCLUSOS MÃO DE OBRA, TRANSPORTE E IÇAMENTO UTILIZANDO GUINDASTE - FORNECIMENTO E INSTALAÇÃO. AF_01/2020_P | C59: 30701.32 | D59: =C59/'PLANILHA SEM DESONERAÇÃO'!$S$363 -> 0.00394 | E59: 0.8658 | F59: B
A60: 16.10 | B60: APLICAÇÃO MANUAL DE PINTURA COM TINTA LÁTEX ACRÍLICA EM TETO, DUAS DEMÃOS. AF_06/2014 | C60: 30049.4 | D60: =C60/'PLANILHA SEM DESONERAÇÃO'!$S$363 -> 0.00385 | E60: 0.8697 | F60: B
A61: 3.2 | B61: REMOÇÃO DE RAÍZES REMANESCENTES DE TRONCO DE ÁRVORE COM DIÂMETRO MAIOR OU IGUAL A 0,40 M E MENOR QUE 0,60 M.AF_05/2018 | C61: 29740.56 | D61: =C61/'PLANILHA SEM DESONERAÇÃO'!$S$363 -> 0.00381 | E61: 0.8735 | F61: B
A62: 3.6 | B62: EXECUÇÃO E COMPACTAÇÃO DE ATERRO COM SOLO PREDOMINANTEMENTE ARENOSO - EXCLUSIVE SOLO, ESCAVAÇÃO, CARGA E TRANSPORTE. AF_11/2019 | C62: 28996.94 | D62: =C62/'PLANILHA SEM DESONERAÇÃO'!$S$363 -> 0.00372 | E62: 0.8772 | F62: B
A63: 13.6 | B63: CABO DE COBRE FLEXÍVEL ISOLADO, 2,5 MM², ANTI-CHAMA 450/750 V, PARA CIRCUITOS TERMINAIS - FORNECIMENTO E INSTALAÇÃO. AF_12/2015 | C63: 27790.83 | D63: =C63/'PLANILHA SEM DESONERAÇÃO'!$S$363 -> 0.00356 | E63: 0.8808 | F63: B
A64: 5.17 | B64: ALVENARIA DE BLOCO DE CONCRETO CHEIO COM ARMAÇÃO, EM CONCRETO COM FCK 15MPA , ESP. 14CM, PARA REVESTIMENTO, INCLUSIVE ARGAMASSA PARA ASSENTAMENTO | C64: 27592.99 | D64: =C64/'PLANILHA SEM DESONERAÇÃO'!$S$363 -> 0.00354 | E64: 0.8843 | F64: B
A65: 14.8 | B65: JANELA DE ALUMÍNIO DE CORRER COM 2 FOLHAS PARA VIDROS, COM VIDROS, BATENTE, ACABAMENTO COM ACETATO OU BRILHANTE E FERRAGENS. EXCLUSIVE ALIZAR E CONTRAMARCO. FORNECIMENTO E INSTALAÇÃO. AF_12/2019 | C65: 27320.13 | D65: =C65/'PLANILHA SEM DESONERAÇÃO'!$S$363 -> 0.0035 | E65: 0.8878 | F65: B
A66: 13.40 | B66: CORDOALHA DE COBRE NU 35 MM², NÃO ENTERRADA, COM ISOLADOR - FORNECIMENTO E INSTALAÇÃO. AF_12/2017 | C66: 25746 | D66: =C66/'PLANILHA SEM DESONERAÇÃO'!$S$363 -> 0.0033 | E66: 0.8911 | F66: B
A67: 15.5 | B67: CONJUNTO MOTOBOMBA PARA SISTEMA DE PREVENÇÃO E COMBATE A INCÊNDIO, CONTENDO 2 BOMBAS CENTRÍFUGAS DE 14,8CV | C67: 23093.1 | D67: =C67/'PLANILHA SEM DESONERAÇÃO'!$S$363 -> 0.00296 | E67: 0.8941 | F67: B
A68: 13.7 | B68: CABO DE COBRE FLEXÍVEL ISOLADO, 4 MM², ANTI-CHAMA 450/750 V, PARA CIRCUITOS TERMINAIS - FORNECIMENTO E INSTALAÇÃO. AF_12/2015 | C68: 22264.11 | D68: =C68/'PLANILHA SEM DESONERAÇÃO'!$S$363 -> 0.00286 | E68: 0.897 | F68: =IF(E68<=$J$2,"A",IF(AND(E68<=$K$3,E68>$I$3),"B",IF(E68>$J$4,"C"))) -> B
A69: 5.11 | B69: ARMAÇÃO DE BLOCO, VIGA BALDRAME OU SAPATA UTILIZANDO AÇO CA-50 DE 12,5 MM - MONTAGEM. AF_06/2017 | C69: 21855.04 | D69: =C69/'PLANILHA SEM DESONERAÇÃO'!$S$363 -> 0.0028 | E69: =D69+E68 -> 0.8998 | F69: B
A70: 9.1 | B70: PEITORIL LINEAR EM GRANITO OU MÁRMORE, L = 15CM, COMPRIMENTO DE ATÉ 2M, ASSENTADO COM ARGAMASSA 1:6 COM ADITIVO. AF_11/2020 | C70: 21852.55 | D70: =C70/'PLANILHA SEM DESONERAÇÃO'!$S$363 -> 0.0028 | E70: 0.9026 | F70: B
A71: 17.2 | B71: ASSENTAMENTO DE GUIA (MEIO-FIO) EM TRECHO RETO, CONFECCIONADA EM CONCRETO PRÉ-FABRICADO, DIMENSÕES 100X15X13X30 CM (COMPRIMENTO X BASE INFERIOR X BASE SUPERIOR X ALTURA), PARA VIAS URBANAS (USO VIÁRIO). AF_06/2 016 | C71: 21759.5 | D71: =C71/'PLANILHA SEM DESONERAÇÃO'!$S$363 -> 0.00279 | E71: 0.9054 | F71: B
A72: 16.4 | B72: APLICAÇÃO MANUAL DE MASSA ACRÍLICA EM PANOS DE FACHADA COM PRESENÇA DE VÃOS, DE EDIFÍCIOS DE MÚLTIPLOS PAVIMENTOS, UMA DEMÃO. AF_05/2017 | C72: 20082.9 | D72: =C72/'PLANILHA SEM DESONERAÇÃO'!$S$363 -> 0.00258 | E72: 0.908 | F72: B
A73: 13.28 | B73: LUMINÁRIA TIPO CALHA, DE SOBREPOR, COM 2 LÂMPADAS TUBULARES FLUORESCENES DE 36 W, COM REATOR DE PARTIDA RÁPIDA - FORNECIMENTO E INSTALAÇÃO. AF_02/2020 | C73: 19530.72 | D73: =C73/'PLANILHA SEM DESONERAÇÃO'!$S$363 -> 0.0025 | E73: 0.9105 | F73: B
A74: 12.100 | B74: FILTRO ANAERÓBIO RETANGULAR, EM ALVENARIA COM BLOCOS DE CONCRETO, DIMENSÕES INTERNAS: 1,6 X 5,6 X H=1,67 M, VOLUME ÚTIL: 10752 L (PARA 103 CONTRIBUINTES). AF_12/2020 | C74: 19066.52 | D74: =C74/'PLANILHA SEM DESONERAÇÃO'!$S$363 -> 0.00245 | E74: 0.913 | F74: B
A75: 13.41 | B75: CORDOALHA DE COBRE NU 50 MM², ENTERRADA, SEM ISOLADOR - FORNECIMENTO E INSTALAÇÃO. AF_12/2017 | C75: 17121.6 | D75: =C75/'PLANILHA SEM DESONERAÇÃO'!$S$363 -> 0.0022 | E75: 0.9152 | F75: B
A76: 14.11 | B76: INSTALAÇÃO DE VIDRO LISO FUME, E = 4 MM, EM ESQUADRIA DE ALUMÍNIO OU PVC, FIXADO COM BAGUETE. AF_01/2021_PS | C76: 17076.72 | D76: =C76/'PLANILHA SEM DESONERAÇÃO'!$S$363 -> 0.00219 | E76: 0.9174 | F76: B
A77: 14.5 | B77: PORTA EM ALUMÍNIO DE ABRIR TIPO VENEZIANA COM GUARNIÇÃO, FIXAÇÃO COM PARAFUSOS - FORNECIMENTO E INSTALAÇÃO. AF_12/2019 | C77: 16753.56 | D77: =C77/'PLANILHA SEM DESONERAÇÃO'!$S$363 -> 0.00215 | E77: 0.9196 | F77: B
A78: 16.5 | B78: APLICAÇÃO MANUAL DE PINTURA COM TINTA TEXTURIZADA ACRÍLICA EM PANOS COM PRESENÇA DE VÃOS DE EDIFÍCIOS DE MÚLTIPLOS PAVIMENTOS, UMA COR. AF_06/2014 | C78: 15733.25 | D78: =C78/'PLANILHA SEM DESONERAÇÃO'!$S$363 -> 0.00202 | E78: 0.9216 | F78: B
A79: 3.9 | B79: ESCAVAÇÃO HORIZONTAL, INCLUINDO CARGA, DESCARGA E TRANSPORTE EM SOLO DE 1A CATEGORIA COM TRATOR DE ESTEIRAS (170HP/LÂMINA: 5,20M3) E CAMINHÃO BASCULANTE DE 10M3, DMT ATÉ 200M. AF_07/2020 | C79: 15710 | D79: =C79/'PLANILHA SEM DESONERAÇÃO'!$S$363 -> 0.00201 | E79: 0.9236 | F79: B
A80: 15.1 | B80: PONTO DE TOMADA PARA LUMINÁRIA DE INCÊNDIO, INCLUINDO TOMADA, CABO, ELETRODUTO E CAIXA. | C80: 15650.91 | D80: =C80/'PLANILHA SEM DESONERAÇÃO'!$S$363 -> 0.00201 | E80: 0.9256 | F80: B
A81: 5.6 | B81: MONTAGEM E DESMONTAGEM DE FÔRMA DE PILARES RETANGULARES E ESTRUTURAS SIMILARES, PÉ-DIREITO SIMPLES, EM CHAPA DE MADEIRA COMPENSADA RESINADA, 4 UTILIZAÇÕES. AF_09/2020 | C81: 15322 | D81: =C81/'PLANILHA SEM DESONERAÇÃO'!$S$363 -> 0.00197 | E81: 0.9276 | F81: B
A82: 13.5 | B82: CABO DE COBRE FLEXÍVEL ISOLADO, 1,5 MM², ANTI-CHAMA 450/750 V, PARA CIRCUITOS TERMINAIS - FORNECIMENTO E INSTALAÇÃO. AF_12/2015 | C82: 14984.41 | D82: =C82/'PLANILHA SEM DESONERAÇÃO'!$S$363 -> 0.00192 | E82: 0.9295 | F82: B
A83: 5.1 | B83: ESCAVAÇÃO MANUAL PARA BLOCO DE COROAMENTO OU SAPATA (INCLUINDO ESCAVAÇÃO PARA COLOCAÇÃO DE FÔRMAS). AF_06/2017 | C83: 14826.18 | D83: =C83/'PLANILHA SEM DESONERAÇÃO'!$S$363 -> 0.0019 | E83: 0.9314 | F83: B
A84: 19.3 | B84: TOPOGRAFO COM ENCARGOS COMPLEMENTARES | C84: 14765.88 | D84: =C84/'PLANILHA SEM DESONERAÇÃO'!$S$363 -> 0.00189 | E84: 0.9333 | F84: B
A85: 12.99 | B85: TANQUE SÉPTICO RETANGULAR, EM ALVENARIA COM BLOCOS DE CONCRETO, DIMENSÕES INTERNAS: 1,6 X 4,6 X H=2,4 M, VOLUME ÚTIL: 14720 L (PARA 105 CONTRIBUINTES). AF_12/2020 | C85: 13535.02 | D85: =C85/'PLANILHA SEM DESONERAÇÃO'!$S$363 -> 0.00174 | E85: 0.935 | F85: B
A86: 5.10 | B86: ARMAÇÃO DE BLOCO, VIGA BALDRAME OU SAPATA UTILIZANDO AÇO CA-50 DE 10 MM - MONTAGEM. AF_06/2017 | C86: 13264.14 | D86: =C86/'PLANILHA SEM DESONERAÇÃO'!$S$363 -> 0.0017 | E86: 0.9367 | F86: B
A87: 13.4 | B87: ELETRODUTO FLEXÍVEL CORRUGADO, PVC, DN 25 MM (3/4"), PARA CIRCUITOS TERMINAIS, INSTALADO EM PAREDE - FORNECIMENTO E INSTALAÇÃO. AF_12/2015 | C87: 11903.4 | D87: =C87/'PLANILHA SEM DESONERAÇÃO'!$S$363 -> 0.00153 | E87: 0.9382 | F87: B
A88: 15.6 | B88: TUBO DE AÇO GALVANIZADO COM COSTURA, CLASSE MÉDIA, DN 65 (2 1/2), CONEXÃO ROSQUEADA, INSTALADO EM RESERVAÇÃO DE ÁGUA DE EDIFICAÇÃO QUE POSSUA RESERVATÓRIO DE FIBRA/FIBROCIMENTO FORNECIMENTO E INSTALAÇÃO. AF_06/2016 | C88: 11805.08 | D88: =C88/'PLANILHA SEM DESONERAÇÃO'!$S$363 -> 0.00151 | E88: 0.9397 | F88: B
A89: 6.15 | B89: PILAR METÁLICO PERFIL LAMINADO/SOLDADO, W 250 x 85 EM AÇO ESTRUTURAL, COM CONEXÕES PARAFUSADAS, INCLUSOS MÃO DE OBRA, TRANSPORTE E IÇAMENTO UTILIZANDO GUINDASTE - FORNECIMENTO E INSTALAÇÃO. AF_01/2020_P | C89: 11797.38 | D89: =C89/'PLANILHA SEM DESONERAÇÃO'!$S$363 -> 0.00151 | E89: 0.9412 | F89: B
A90: 8.3 | B90: TRATAMENTO DE RODAPÉ COM VÉU DE POLIÉSTER. AF_06/2018 | C90: 11777.58 | D90: =C90/'PLANILHA SEM DESONERAÇÃO'!$S$363 -> 0.00151 | E90: 0.9427 | F90: B
A91: 5.12 | B91: ARMAÇÃO DE BLOCO, VIGA BALDRAME OU SAPATA UTILIZANDO AÇO CA-50 DE 16 MM - MONTAGEM. AF_06/2017 | C91: 11469.29 | D91: =C91/'PLANILHA SEM DESONERAÇÃO'!$S$363 -> 0.00147 | E91: 0.9442 | F91: B
A92: 13.39 | B92: PONTO DE EMBUTIR SECO, PARA UMA (1) PLACA CEGA 4"X4", COM ELETRODUTO FLEXÍVEL CORRUGADO, ANTI-CHAMA, DN 25MM (3/4"), EMBUTIDO NA ALVENARIA E SONDA EM ARAME GALVANIZADO, DIÂMETRO DE 1,24MM (BWG 18), COM DISTÂNCIA DE ATÉ DEZ (10) METROS DO PONTO DE DERIVAÇÃO, INCLUSIVE CAIXA DE LIGAÇÃO, SUPORTE E FIXAÇÃO DO ELETRODUTO COM ENCHIMENTO DO RASGO NA ALVENARIA/CONCRETO COM ARGAMASSA | C92: 11001.9 | D92: =C92/'PLANILHA SEM DESONERAÇÃO'!$S$363 -> 0.00141 | E92: 0.9456 | F92: B
A93: 3.1 | B93: CORTE RASO E RECORTE DE ÁRVORE COM DIÂMETRO DE TRONCO MAIOR OU IGUAL A 0,20 M E MENOR QUE 0,40 M.AF_05/2018 | C93: 10167.5 | D93: =C93/'PLANILHA SEM DESONERAÇÃO'!$S$363 -> 0.0013 | E93: 0.9469 | F93: B
A94: 6.5 | B94: VIGA METÁLICA EM PERFIL W 460 x 60, LAMINADO OU SOLDADO, EM AÇO ESTRUTURAL, COM CONEXÕES SOLDADAS, INCLUSOS MÃO DE OBRA, TRANSPORTE E IÇAMENTO UTILIZANDO GUINDASTE - FORNECIMENTO E INSTALAÇÃO. AF_01/2020_P | C94: 9720.36 | D94: =C94/'PLANILHA SEM DESONERAÇÃO'!$S$363 -> 0.00125 | E94: 0.9482 | F94: B
A95: 5.4 | B95: FABRICAÇÃO, MONTAGEM E DESMONTAGEM DE FÔRMA PARA SAPATA, EM CHAPA DE MADEIRA COMPENSADA RESINADA, E=17 MM, 4 UTILIZAÇÕES. AF_06/2017 | C95: 9357.46 | D95: =C95/'PLANILHA SEM DESONERAÇÃO'!$S$363 -> 0.0012 | E95: 0.9494 | F95: B
A96: 12.82 | B96: CAIXA COM GRELHA RETANGULAR DE FERRO FUNDIDO, EM ALVENARIA COM BLOCOS DE CONCRETO, DIMENSÕES INTERNAS: 0,30 X 1,00 X 1,00. AF_12/2020 | C96: 9337.93 | D96: =C96/'PLANILHA SEM DESONERAÇÃO'!$S$363 -> 0.0012 | E96: 0.9506 | F96: C
A97: 12.63 | B97: TUBO PVC, SERIE NORMAL, ESGOTO PREDIAL, DN 100 MM, FORNECIDO E INSTALADO EM RAMAL DE DESCARGA OU RAMAL DE ESGOTO SANITÁRIO. AF_08/2022 | C97: 9161.37 | D97: =C97/'PLANILHA SEM DESONERAÇÃO'!$S$363 -> 0.00117 | E97: 0.9518 | F97: C
A98: 6.14 | B98: VIGA METÁLICA EM PERFIL W 150 x24, LAMINADO OU SOLDADO, EM AÇO ESTRUTURAL, COM CONEXÕES SOLDADAS, INCLUSOS MÃO DE OBRA, TRANSPORTE E IÇAMENTO UTILIZANDO GUINDASTE - FORNECIMENTO E INSTALAÇÃO. AF_01/2020_P | C98: 9161.32 | D98: =C98/'PLANILHA SEM DESONERAÇÃO'!$S$363 -> 0.00117 | E98: 0.953 | F98: C
A99: 13.3 | B99: ELETRODUTO FLEXÍVEL CORRUGADO, PVC, DN 25 MM (3/4"), PARA CIRCUITOS TERMINAIS, INSTALADO EM LAJE - FORNECIMENTO E INSTALAÇÃO. AF_12/2015 | C99: 8985.9 | D99: =C99/'PLANILHA SEM DESONERAÇÃO'!$S$363 -> 0.00115 | E99: 0.9542 | F99: C
A100: 9.2 | B100: CHAPIM (RUFO CAPA) EM AÇO GALVANIZADO, CORTE 33. AF_11/2020 | C100: 8863.4 | D100: =C100/'PLANILHA SEM DESONERAÇÃO'!$S$363 -> 0.00114 | E100: 0.9553 | F100: C
A101: 11.3 | B101: SOLEIRA EM GRANITO, LARGURA 15 CM, ESPESSURA 2,0 CM. AF_09/2020 | C101: 8807.1 | D101: =C101/'PLANILHA SEM DESONERAÇÃO'!$S$363 -> 0.00113 | E101: 0.9564 | F101: C
A102: 4.2 | B102: LOCACAO CONVENCIONAL DE OBRA, UTILIZANDO GABARITO DE TÁBUAS CORRIDAS PONTALETADAS A CADA 2,00M - 2 UTILIZAÇÕES. AF_10/2018 | C102: 8729.76 | D102: =C102/'PLANILHA SEM DESONERAÇÃO'!$S$363 -> 0.00112 | E102: 0.9575 | F102: C
A103: 14.2 | B103: KIT DE PORTA DE MADEIRA PARA PINTURA, SEMI-OCA (LEVE OU MÉDIA), PADRÃO MÉDIO, 90X210CM, ESPESSURA DE 3,5CM, ITENS INCLUSOS: DOBRADIÇAS, MONTAGEM E INSTALAÇÃO DO BATENTE, FECHADURA COM EXECUÇÃO DO FURO - FORNECIMENTO E INSTALAÇÃO. AF_12/2019 | C103: 8679.16 | D103: =C103/'PLANILHA SEM DESONERAÇÃO'!$S$363 -> 0.00111 | E103: 0.9586 | F103: C
A104: 12.81 | B104: CAIXA D´ÁGUA EM POLIÉSTER REFORÇADO COM FIBRA DE VIDRO, 5000 LITROS - FORNECIMENTO E INSTALAÇÃO. AF_06/2021 | C104: 8662.12 | D104: =C104/'PLANILHA SEM DESONERAÇÃO'!$S$363 -> 0.00111 | E104: 0.9597 | F104: C
A105: 12.79 | B105: VASO SANITÁRIO SIFONADO COM CAIXA ACOPLADA LOUÇA BRANCA - FORNECIMENTO E INSTALAÇÃO. AF_01/2020 | C105: 8221.65 | D105: =C105/'PLANILHA SEM DESONERAÇÃO'!$S$363 -> 0.00105 | E105: 0.9608 | F105: C
A106: 17.4 | B106: INSTALAÇÃO DE LIXEIRA METÁLICA DUPLA, CAPACIDADE DE 60 L, EM TUBO DE AÇO CARBONO E CESTOS EM CHAPA DE AÇO COM PINTURA ELETROSTÁTICA, SOBRE PISO DE CONCRETO EXISTENTE. AF_11/2021 | C106: 8185.85 | D106: =C106/'PLANILHA SEM DESONERAÇÃO'!$S$363 -> 0.00105 | E106: 0.9619 | F106: C
A107: 6.18 | B107: ESCADA EM CONCRETO ARMADO MOLDADO IN LOCO, FCK 20 MPA, COM 2 LANCES EM "U" E LAJE PLANA, FÔRMA EM CHAPA DE MADEIRA COMPENSADA RESINADA. AF_11/2020 | C107: 7979.31 | D107: =C107/'PLANILHA SEM DESONERAÇÃO'!$S$363 -> 0.00102 | E107: 0.9629 | F107: C
A108: 13.34 | B108: POSTE DECORATIVO PARA JARDIM EM AÇO TUBULAR, H = *2,5* M, SEM LUMINÁRIA - FORNECIMENTO E INSTALAÇÃO. AF_11/2019 | C108: 7955.1 | D108: =C108/'PLANILHA SEM DESONERAÇÃO'!$S$363 -> 0.00102 | E108: 0.9639 | F108: C
A109: 16.7 | B109: APLICAÇÃO DE FUNDO SELADOR ACRÍLICO EM PAREDES, UMA DEMÃO. AF_06/2014 | C109: 7913.05 | D109: =C109/'PLANILHA SEM DESONERAÇÃO'!$S$363 -> 0.00101 | E109: 0.9649 | F109: C
A110: 14.6 | B110: PORTA DE FERRO, DE ABRIR, TIPO GRADE COM CHAPA, COM GUARNIÇÕES. AF_12/2019 | C110: 7566.35 | D110: =C110/'PLANILHA SEM DESONERAÇÃO'!$S$363 -> 0.00097 | E110: 0.9659 | F110: C
A111: 12.96 | B111: CAIXA ENTERRADA HIDRÁULICA RETANGULAR, EM ALVENARIA COM BLOCOS DE CONCRETO, DIMENSÕES INTERNAS: 1X1X0,6 M PARA REDE DE ESGOTO. AF_12/2020 | C111: 7300 | D111: =C111/'PLANILHA SEM DESONERAÇÃO'!$S$363 -> 0.00094 | E111: 0.9668 | F111: C
A112: 12.88 | B112: BANCADA DE GRANITO CINZA POLIDO, DE 0,50 X 0,60 M, PARA LAVATÓRIO - FORNECIMENTO E INSTALAÇÃO. AF_01/2020 | C112: 7076.3 | D112: =C112/'PLANILHA SEM DESONERAÇÃO'!$S$363 -> 0.00091 | E112: 0.9677 | F112: C
A113: 13.37 | B113: ELETRODUTO FLEXÍVEL CORRUGADO, PVC, DN 32 MM (1"), PARA CIRCUITOS TERMINAIS, INSTALADO EM FORRO - FORNECIMENTO E INSTALAÇÃO. AF_12/2015 | C113: 6858.6 | D113: =C113/'PLANILHA SEM DESONERAÇÃO'!$S$363 -> 0.00088 | E113: 0.9686 | F113: C
A114: 13.38 | B114: CAIXA RETANGULAR 4" X 2" MÉDIA (1,30 M DO PISO), PVC, INSTALADA EM PAREDE - FORNECIMENTO E INSTALAÇÃO. AF_12/2015 | C114: 6751.88 | D114: =C114/'PLANILHA SEM DESONERAÇÃO'!$S$363 -> 0.00087 | E114: 0.9695 | F114: C
A115: 13.9 | B115: CABO DE COBRE FLEXÍVEL ISOLADO, 35 MM², ANTI-CHAMA 0,6/1,0 KV, PARA REDE ENTERRADA DE DISTRIBUIÇÃO DE ENERGIA ELÉTRICA - FORNECIMENTO E INSTALAÇÃO. AF_12/2021 | C115: 6632.39 | D115: =C115/'PLANILHA SEM DESONERAÇÃO'!$S$363 -> 0.00085 | E115: 0.9704 | F115: C
A116: 13.8 | B116: CABO DE COBRE ISOLADO, 16 MM², ANTI-CHAMA 450/750 V, INSTALADO EM ELETROCALHA OU PERFILADO - FORNECIMENTO E INSTALAÇÃO. AF_10/2020 | C116: 6531.04 | D116: =C116/'PLANILHA SEM DESONERAÇÃO'!$S$363 -> 0.00084 | E116: 0.9712 | F116: C
A117: 14.7 | B117: JANELA DE ALUMÍNIO TIPO MAXIM-AR, COM VIDROS, BATENTE E FERRAGENS. EXCLUSIVE ALIZAR, ACABAMENTO E CONTRAMARCO. FORNECIMENTO E INSTALAÇÃO. AF_12/2019 | C117: 6478.9 | D117: =C117/'PLANILHA SEM DESONERAÇÃO'!$S$363 -> 0.00083 | E117: 0.972 | F117: C
A118: 12.44 | B118: TUBO, PVC, SOLDÁVEL, DN 32MM, INSTALADO EM RAMAL DE DISTRIBUIÇÃO DE ÁGUA - FORNECIMENTO E INSTALAÇÃO. AF_06/2022 | C118: 6435.36 | D118: =C118/'PLANILHA SEM DESONERAÇÃO'!$S$363 -> 0.00083 | E118: 0.9728 | F118: C
A119: 18.1 | B119: MOBILIZAÇÃO E DESMOBILIZAÇÃO DE OBRA | C119: 5911.88 | D119: =C119/'PLANILHA SEM DESONERAÇÃO'!$S$363 -> 0.00076 | E119: 0.9736 | F119: C
A120: 14.10 | B120: CONTRAMARCO DE ALUMÍNIO, FIXAÇÃO COM PARAFUSO - FORNECIMENTO E INSTALAÇÃO. AF_12/2019 | C120: 5775.72 | D120: =C120/'PLANILHA SEM DESONERAÇÃO'!$S$363 -> 0.00074 | E120: 0.9743 | F120: C
A121: 14.12 | B121: PORTA DE ABRIR COM MOLA HIDRÁULICA, EM VIDRO TEMPERADO, 2 FOLHAS DE 90X210 CM, ESPESSURA DD 10MM, INCLUSIVE ACESSÓRIOS. AF_01/2021 | C121: 5637.77 | D121: =C121/'PLANILHA SEM DESONERAÇÃO'!$S$363 -> 0.00072 | E121: 0.975 | F121: C
A122: 15.4 | B122: PLACA DE SINALIZACAO DE SEGURANCA CONTRA INCENDIO, FOTOLUMINESCENTE, EM PVC *2* MM ANTI-CHAMAS (SIMBOLOS, CORES E PICTOGRAMAS CONFORME NBR 16820) | C122: 5499.9 | D122: =C122/'PLANILHA SEM DESONERAÇÃO'!$S$363 -> 0.00071 | E122: 0.9757 | F122: C
A123: 16.12 | B123: PINTURA FUNDO NIVELADOR ALQUÍDICO BRANCO EM MADEIRA. AF_01/2021 | C123: 5483.14 | D123: =C123/'PLANILHA SEM DESONERAÇÃO'!$S$363 -> 0.0007 | E123: 0.9764 | F123: C
A124: 16.6 | B124: APLICAÇÃO DE FUNDO SELADOR ACRÍLICO EM TETO, UMA DEMÃO. AF_06/2014 | C124: 5279.74 | D124: =C124/'PLANILHA SEM DESONERAÇÃO'!$S$363 -> 0.00068 | E124: 0.9771 | F124: C
A125: 13.17 | B125: TOMADA MÉDIA DE EMBUTIR (2 MÓDULOS), 2P+T 10 A, INCLUINDO SUPORTE E PLACA - FORNECIMENTO E INSTALAÇÃO. AF_12/2015 | C125: 4841.2 | D125: =C125/'PLANILHA SEM DESONERAÇÃO'!$S$363 -> 0.00062 | E125: 0.9777 | F125: C
A126: 12.76 | B126: MICTÓRIO SIFONADO LOUÇA BRANCA PADRÃO MÉDIO FORNECIMENTO E INSTALAÇÃO. AF_01/2020 | C126: 4690.02 | D126: =C126/'PLANILHA SEM DESONERAÇÃO'!$S$363 -> 0.0006 | E126: 0.9783 | F126: C
A127: 15.3 | B127: EXTINTOR DE INCÊNDIO PORTÁTIL COM CARGA DE PQS DE 6 KG, CLASSE BC - FORNECIMENTO E INSTALAÇÃO. AF_10/2020_P | C127: 4584.15 | D127: =C127/'PLANILHA SEM DESONERAÇÃO'!$S$363 -> 0.00059 | E127: 0.9789 | F127: C
A128: 13.18 | B128: TOMADA BAIXA DE EMBUTIR (2 MÓDULOS), 2P+T 10 A, INCLUINDO SUPORTE E PLACA - FORNECIMENTO E INSTALAÇÃO. AF_12/2015 | C128: 4463.91 | D128: =C128/'PLANILHA SEM DESONERAÇÃO'!$S$363 -> 0.00057 | E128: 0.9795 | F128: C
A129: 16.13 | B129: APLICAÇÃO MASSA ALQUÍDICA PARA MADEIRA, PARA PINTURA COM TINTA DE ACABAMENTO (PIGMENTADA). AF_01/2021 | C129: 4420.66 | D129: =C129/'PLANILHA SEM DESONERAÇÃO'!$S$363 -> 0.00057 | E129: 0.9801 | F129: C
A130: 7.4 | B130: INSTALAÇÃO DE REFORÇO METÁLICO EM PAREDE DRYWALL. AF_06/2017 | C130: 4245 | D130: =C130/'PLANILHA SEM DESONERAÇÃO'!$S$363 -> 0.00054 | E130: 0.9806 | F130: C
A131: 15.17 | B131: HIDRANTE SUBTERRÂNEO PREDIAL (COM CURVA LONGA E CAIXA), DN 75 MM - FORNECIMENTO E INSTALAÇÃO. AF_10/2020 | C131: 4156.6 | D131: =C131/'PLANILHA SEM DESONERAÇÃO'!$S$363 -> 0.00053 | E131: 0.9811 | F131: C
A132: 5.18 | B132: CAMADA SEPARADORA PARA EXECUÇÃO DE RADIER, PISO DE CONCRETO OU LAJE SOBRE SOLO, EM LONA PLÁSTICA. AF_09/2021 | C132: 3990 | D132: =C132/'PLANILHA SEM DESONERAÇÃO'!$S$363 -> 0.00051 | E132: 0.9816 | F132: =IF(E132<=$J$2,"A",IF(AND(E132<=$K$3,E132>$I$3),"B",IF(E132>$J$4,"C"))) -> C
A133: 13.20 | B133: QUADRO DE DISTRIBUIÇÃO DE ENERGIA EM CHAPA DE AÇO GALVANIZADO, DE EMBUTIR, COM BARRAMENTO TRIFÁSICO, PARA 30 DISJUNTORES DIN 225A - FORNECIMENTO E INSTALAÇÃO. AF_10/2020 | C133: 3880.14 | D133: =C133/'PLANILHA SEM DESONERAÇÃO'!$S$363 -> 0.0005 | E133: =D133+E132 -> 0.9821 | F133: C
A134: 13.35 | B134: LUMINÁRIA DE LED PARA ILUMINAÇÃO PÚBLICA, DE 33 W ATÉ 50 W - FORNECIMENTO E INSTALAÇÃO. AF_08/2020 | C134: 3847.8 | D134: =C134/'PLANILHA SEM DESONERAÇÃO'!$S$363 -> 0.00049 | E134: 0.9826 | F134: C
A135: 12.89 | B135: CUBA DE EMBUTIR OVAL EM LOUÇA BRANCA, 35 X 50CM OU EQUIVALENTE, INCLUSO VÁLVULA EM METAL CROMADO E SIFÃO FLEXÍVEL EM PVC - FORNECIMENTO E INSTALAÇÃO. AF_01/2020 | C135: 3842.86 | D135: =C135/'PLANILHA SEM DESONERAÇÃO'!$S$363 -> 0.00049 | E135: 0.9831 | F135: C
A136: 12.83 | B136: CAIXA ENTERRADA HIDRÁULICA RETANGULAR, EM ALVENARIA COM BLOCOS DE CONCRETO, DIMENSÕES INTERNAS: 0,6X0,6X0,6 M PARA REDE DE ESGOTO. AF_12/2020 | C136: 3682.49 | D136: =C136/'PLANILHA SEM DESONERAÇÃO'!$S$363 -> 0.00047 | E136: 0.9836 | F136: C
A137: 16.14 | B137: PINTURA TINTA DE ACABAMENTO (PIGMENTADA) ESMALTE SINTÉTICO FOSCO EM MADEIRA, 2 DEMÃOS. AF_01/2021 | C137: 3680.72 | D137: =C137/'PLANILHA SEM DESONERAÇÃO'!$S$363 -> 0.00047 | E137: 0.9841 | F137: C
A138: 13.36 | B138: CAIXA ENTERRADA ELÉTRICA RETANGULAR, EM ALVENARIA COM BLOCOS DE CONCRETO, FUNDO COM BRITA, DIMENSÕES INTERNAS: 0,4X0,4X0,4 M. AF_12/2020 | C138: 3672.15 | D138: =C138/'PLANILHA SEM DESONERAÇÃO'!$S$363 -> 0.00047 | E138: 0.9846 | F138: C
A139: 14.4 | B139: PORTA DE CORRER DE ALUMÍNIO, COM DUAS FOLHAS PARA VIDRO, INCLUSO VIDRO LISO INCOLOR, FECHADURA E PUXADOR, SEM ALIZAR. AF_12/2019 | C139: 3658.91 | D139: =C139/'PLANILHA SEM DESONERAÇÃO'!$S$363 -> 0.00047 | E139: 0.9851 | F139: C
A140: 12.74 | B140: ESCAVAÇÃO MANUAL DE VALA COM PROFUNDIDADE MENOR OU IGUAL A 1,30 M. AF_02/2021 | C140: 3631.24 | D140: =C140/'PLANILHA SEM DESONERAÇÃO'!$S$363 -> 0.00047 | E140: 0.9856 | F140: C
A141: 13.32 | B141: ELETRODUTO RÍGIDO ROSCÁVEL, PVC, DN 75 MM (2 1/2"), PARA REDE ENTERRADA DE DISTRIBUIÇÃO DE ENERGIA ELÉTRICA - FORNECIMENTO E INSTALAÇÃO. AF_12/2021 | C141: 3599.4 | D141: =C141/'PLANILHA SEM DESONERAÇÃO'!$S$363 -> 0.00046 | E141: 0.9861 | F141: C
A142: 12.86 | B142: BANCADA DE GRANITO CINZA POLIDO, DE 1,50 X 0,60 M, PARA PIA DE COZINHA - FORNECIMENTO E INSTALAÇÃO. AF_01/2020 | C142: 3277.59 | D142: =C142/'PLANILHA SEM DESONERAÇÃO'!$S$363 -> 0.00042 | E142: 0.9865 | F142: C
A143: 15.2 | B143: LUMINÁRIA DE EMERGÊNCIA, COM 30 LÂMPADAS LED DE 2 W, SEM REATOR - FORNECIMENTO E INSTALAÇÃO. AF_02/2020 | C143: 3150.4 | D143: =C143/'PLANILHA SEM DESONERAÇÃO'!$S$363 -> 0.0004 | E143: 0.9869 | F143: C
A144: 13.42 | B144: ELETRODUTO PVC 40MM (1 ¼ ) PARA SPDA - FORNECIMENTO E INSTALAÇÃO. AF_12/2017 | C144: 3106 | D144: =C144/'PLANILHA SEM DESONERAÇÃO'!$S$363 -> 0.0004 | E144: 0.9873 | F144: C
A145: 14.3 | B145: PORTA DE MADEIRA COMPENSADA LISA PARA PINTURA, 120X210X3,5CM, 2 FOLHAS, INCLUSO ADUELA 2A, ALIZAR 2A E DOBRADIÇAS. AF_12/2019 | C145: 2881.77 | D145: =C145/'PLANILHA SEM DESONERAÇÃO'!$S$363 -> 0.00037 | E145: 0.9877 | F145: C
A146: 5.9 | B146: ARMAÇÃO DE BLOCO, VIGA BALDRAME OU SAPATA UTILIZANDO AÇO CA-50 DE 8 MM - MONTAGEM. AF_06/2017 | C146: 2844.39 | D146: =C146/'PLANILHA SEM DESONERAÇÃO'!$S$363 -> 0.00036 | E146: 0.9881 | F146: C
A147: 12.78 | B147: TORNEIRA CROMADA DE MESA, 1/2 OU 3/4, PARA LAVATÓRIO, PADRÃO MÉDIO - FORNECIMENTO E INSTALAÇÃO. AF_01/2020 | C147: 2739.66 | D147: =C147/'PLANILHA SEM DESONERAÇÃO'!$S$363 -> 0.00035 | E147: 0.9885 | F147: C
A148: 16.3 | B148: APLICAÇÃO MANUAL DE FUNDO SELADOR ACRÍLICO EM PANOS COM PRESENÇA DE VÃOS DE EDIFÍCIOS DE MÚLTIPLOS PAVIMENTOS. AF_06/2014 | C148: 2673.34 | D148: =C148/'PLANILHA SEM DESONERAÇÃO'!$S$363 -> 0.00034 | E148: 0.9888 | F148: C
A149: 15.7 | B149: TUBO DE AÇO GALVANIZADO COM COSTURA, CLASSE MÉDIA, DN 80 (3), CONEXÃO ROSQUEADA, INSTALADO EM RESERVAÇÃO DE ÁGUA DE EDIFICAÇÃO QUE POSSUA RESERVATÓRIO DE FIBRA/FIBROCIMENTO FORNECIMENTO E INSTALAÇÃO. AF_06/2016 | C149: 2651.16 | D149: =C149/'PLANILHA SEM DESONERAÇÃO'!$S$363 -> 0.00034 | E149: 0.9891 | F149: C
A150: 3.3 | B150: LIMPEZA MECANIZADA DE CAMADA VEGETAL, VEGETAÇÃO E PEQUENAS ÁRVORES (DIÂMETRO DE TRONCO MENOR QUE 0,20 M), COM TRATOR DE ESTEIRAS.AF_05/2018 | C150: 2640 | D150: =C150/'PLANILHA SEM DESONERAÇÃO'!$S$363 -> 0.00034 | E150: 0.9894 | F150: C
A151: 5.2 | B151: ESCAVAÇÃO MANUAL DE VALA PARA VIGA BALDRAME (INCLUINDO ESCAVAÇÃO PARA COLOCAÇÃO DE FÔRMAS). AF_06/2017 | C151: 2622.28 | D151: =C151/'PLANILHA SEM DESONERAÇÃO'!$S$363 -> 0.00034 | E151: 0.9897 | F151: C
A152: 13.29 | B152: ENTRADA DE ENERGIA ELÉTRICA, SUBTERRÂNEA, TRIFÁSICA, COM CAIXA DE SOBREPOR, CABO DE 35 MM2 E DISJUNTOR DIN 50A (NÃO INCLUSA MURETA DE ALVENARIA). AF_07/2020_PS | C152: 2570.68 | D152: =C152/'PLANILHA SEM DESONERAÇÃO'!$S$363 -> 0.00033 | E152: 0.99 | F152: C
A153: 13.15 | B153: TOMADA MÉDIA DE EMBUTIR (1 MÓDULO), 2P+T 10 A, INCLUINDO SUPORTE E PLACA - FORNECIMENTO E INSTALAÇÃO. AF_12/2015 | C153: 2544.96 | D153: =C153/'PLANILHA SEM DESONERAÇÃO'!$S$363 -> 0.00033 | E153: 0.9903 | F153: C
A154: 7.6 | B154: TAPA VISTA DE MICTÓRIO EM GRANITO CINZA POLIDO, ESP = 3CM, ASSENTADO COM ARGAMASSA COLANTE AC III-E . AF_01/2021 | C154: 2478.44 | D154: =C154/'PLANILHA SEM DESONERAÇÃO'!$S$363 -> 0.00032 | E154: 0.9906 | F154: C
A155: 4.1 | B155: LOCAÇÃO DE PONTO PARA REFERÊNCIA TOPOGRÁFICA. AF_10/2018 | C155: 2427.5 | D155: =C155/'PLANILHA SEM DESONERAÇÃO'!$S$363 -> 0.00031 | E155: 0.9909 | F155: C
A156: 13.16 | B156: TOMADA BAIXA DE EMBUTIR (1 MÓDULO), 2P+T 10 A, INCLUINDO SUPORTE E PLACA - FORNECIMENTO E INSTALAÇÃO. AF_12/2015 | C156: 2363.94 | D156: =C156/'PLANILHA SEM DESONERAÇÃO'!$S$363 -> 0.0003 | E156: 0.9912 | F156: C
A157: 17.3 | B157: PLANTIO DE GRAMA ESMERALDA OU SÃO CARLOS OU CURITIBANA, EM PLACAS. AF_ 05/2022 | C157: 2259 | D157: =C157/'PLANILHA SEM DESONERAÇÃO'!$S$363 -> 0.00029 | E157: 0.9915 | F157: C
A158: 1.1 | B158: FORNECIMENTO E COLOCAÇÃO DE PLACA DE OBRA (4,80 X 2,4 0 M) - EM CHAPA GALVANIZADA *N. 22*, ADESIVADA E FIXADA COM SUPORTE EM EUCALIPTO AUTOCLAVADO. | C158: 2247.67 | D158: =C158/'PLANILHA SEM DESONERAÇÃO'!$S$363 -> 0.00029 | E158: 0.9918 | F158: C
A159: 1.1 | B159: FORNECIMENTO E COLOCAÇÃO DE PLACA DE OBRA (4,80 X 2,4 0 M) - EM CHAPA GALVANIZADA *N. 22*, ADESIVADA E FIXADA COM SUPORTE EM EUCALIPTO AUTOCLAVADO. | C159: 2247.67 | D159: =C159/'PLANILHA SEM DESONERAÇÃO'!$S$363 -> 0.00029 | E159: 0.9921 | F159: C
A160: 15.14 | B160: CURVA 90 GRAUS, EM AÇO, CONEXÃO RANHURADA, DN 65 (2 1/2"), INSTALADO EM PRUMADAS - FORNECIMENTO E INSTALAÇÃO. AF_10/2020 | C160: 2146.48 | D160: =C160/'PLANILHA SEM DESONERAÇÃO'!$S$363 -> 0.00028 | E160: 0.9924 | F160: C
A161: 12.90 | B161: TANQUE DE LOUÇA BRANCA SUSPENSO, 18L OU EQUIVALENTE, INCLUSO SIFÃO TIPO GARRAFA EM METAL CROMADO, VÁLVULA METÁLICA E TORNEIRA DE METAL CROMADO PADRÃO MÉDIO - FORNECIMENTO E INSTALAÇÃO. AF_01/2020 | C161: 2113.54 | D161: =C161/'PLANILHA SEM DESONERAÇÃO'!$S$363 -> 0.00027 | E161: 0.9927 | F161: C
A162: 15.16 | B162: ABRIGO PARA HIDRANTE, 90X60X17CM, COM REGISTRO GLOBO ANGULAR 45 GRAUS 2 1/2", ADAPTADOR STORZ 2 1/2", MANGUEIRA DE INCÊNDIO 20M, REDUÇÃO 2 1/2" X 1 1/2" E ESGUICHO EM LATÃO 1 1/2" - FORNECIMENTO E INSTALAÇÃO. AF_10/2020 | C162: 2084 | D162: =C162/'PLANILHA SEM DESONERAÇÃO'!$S$363 -> 0.00027 | E162: 0.993 | F162: C
A163: 12.87 | B163: CUBA DE EMBUTIR DE AÇO INOXIDÁVEL MÉDIA, INCLUSO VÁLVULA TIPO AMERICANA E SIFÃO TIPO GARRAFA EM METAL CROMADO - FORNECIMENTO E INSTALAÇÃO. AF_01/2020 | C163: 2002.5 | D163: =C163/'PLANILHA SEM DESONERAÇÃO'!$S$363 -> 0.00026 | E163: 0.9933 | F163: C
A164: 5.3 | B164: LASTRO DE CONCRETO MAGRO, APLICADO EM BLOCOS DE COROAMENTO OU SAPATAS, ESPESSURA DE 5 CM. AF_08/2017 | C164: 1900.5 | D164: =C164/'PLANILHA SEM DESONERAÇÃO'!$S$363 -> 0.00024 | E164: 0.9935 | F164: C
A165: 13.43 | B165: HASTE DE ATERRAMENTO 5/8 PARA SPDA - FORNECIMENTO E INSTALAÇÃO. AF_12/2017 | C165: 1898.24 | D165: =C165/'PLANILHA SEM DESONERAÇÃO'!$S$363 -> 0.00024 | E165: 0.9937 | F165: C
A166: 13.19 | B166: QUADRO DE DISTRIBUIÇÃO DE ENERGIA EM CHAPA DE AÇO GALVANIZADO, DE EMBUTIR, COM BARRAMENTO TRIFÁSICO, PARA 30 DISJUNTORES DIN 150A - FORNECIMENTO E INSTALAÇÃO. AF_10/2020 | C166: 1893.44 | D166: =C166/'PLANILHA SEM DESONERAÇÃO'!$S$363 -> 0.00024 | E166: 0.9939 | F166: C
A167: 12.2 | B167: REGISTRO DE GAVETA BRUTO, LATÃO, ROSCÁVEL, 3/4", COM ACABAMENTO E CANOPLA CROMADOS - FORNECIMENTO E INSTALAÇÃO. AF_08/2021 | C167: 1758.45 | D167: =C167/'PLANILHA SEM DESONERAÇÃO'!$S$363 -> 0.00023 | E167: 0.9941 | F167: C
A168: 6.13 | B168: PILAR METÁLICO PERFIL LAMINADO/SOLDADO, W 200 x 19.3 EM AÇO ESTRUTURAL, COM CONEXÕES PARAFUSADAS, INCLUSOS MÃO DE OBRA, TRANSPORTE E IÇAMENTO UTILIZANDO GUINDASTE - FORNECIMENTO E INSTALAÇÃO. AF_01/2020_P | C168: 1746.65 | D168: =C168/'PLANILHA SEM DESONERAÇÃO'!$S$363 -> 0.00022 | E168: 0.9943 | F168: C
A169: 12.72 | B169: TUBO PVC, SERIE NORMAL, ESGOTO PREDIAL, DN 100 MM, FORNECIDO E INSTALADO EM PRUMADA DE ESGOTO SANITÁRIO OU VENTILAÇÃO. AF_08/2022 | C169: 1688.5 | D169: =C169/'PLANILHA SEM DESONERAÇÃO'!$S$363 -> 0.00022 | E169: 0.9945 | F169: C
A170: 6.10 | B170: PILAR METÁLICO PERFIL LAMINADO/SOLDADO, W 310 x 23.8, EM AÇO ESTRUTURAL, COM CONEXÕES PARAFUSADAS, INCLUSOS MÃO DE OBRA, TRANSPORTE E IÇAMENTO UTILIZANDO GUINDASTE - FORNECIMENTO E INSTALAÇÃO. AF_01/2020_P | C170: 1556.71 | D170: =C170/'PLANILHA SEM DESONERAÇÃO'!$S$363 -> 0.0002 | E170: 0.9947 | F170: C
A171: 12.5 | B171: REGISTRO DE GAVETA BRUTO, LATÃO, ROSCÁVEL, 1/2", COM ACABAMENTO E CANOPLA CROMADOS - FORNECIMENTO E INSTALAÇÃO. AF_08/2021 | C171: 1548.9 | D171: =C171/'PLANILHA SEM DESONERAÇÃO'!$S$363 -> 0.0002 | E171: 0.9949 | F171: C
A172: 15.13 | B172: CONJUNTO HIDRÁULICO PARA INSTALAÇÃO DE BOMBA EM AÇO ROSCÁVEL, DN SUCÇÃO 32 (1 1/4) E DN RECALQUE 25 (1), PARA EDIFICAÇÃO ATÉ 4 PAVIMENTOS FORNECIMENTO E INSTALAÇÃO. AF_06/2016 | C172: 1487.42 | D172: =C172/'PLANILHA SEM DESONERAÇÃO'!$S$363 -> 0.00019 | E172: 0.9951 | F172: C
A173: 12.43 | B173: TUBO, PVC, SOLDÁVEL, DN 25MM, INSTALADO EM RAMAL DE DISTRIBUIÇÃO DE ÁGUA - FORNECIMENTO E INSTALAÇÃO. AF_06/2022 | C173: 1419.12 | D173: =C173/'PLANILHA SEM DESONERAÇÃO'!$S$363 -> 0.00018 | E173: 0.9953 | F173: C
A174: 12.95 | B174: CAIXA DE GORDURA PEQUENA (CAPACIDADE: 19 L), CIRCULAR, EM PVC, DIÂMETRO INTERNO= 0,3 M. AF_12/2020 | C174: 1414.17 | D174: =C174/'PLANILHA SEM DESONERAÇÃO'!$S$363 -> 0.00018 | E174: 0.9955 | F174: C
A175: 12.60 | B175: TUBO PVC, SERIE NORMAL, ESGOTO PREDIAL, DN 40 MM, FORNECIDO E INSTALADO EM RAMAL DE DESCARGA OU RAMAL DE ESGOTO SANITÁRIO. AF_08/2022 | C175: 1393.42 | D175: =C175/'PLANILHA SEM DESONERAÇÃO'!$S$363 -> 0.00018 | E175: 0.9957 | F175: C
A176: 12.93 | B176: BARRA DE APOIO RETA, EM ACO INOX POLIDO, COMPRIMENTO 80 CM, FIXADA NA PAREDE - FORNECIMENTO E INSTALAÇÃO. AF_01/2020 | C176: 1356.3 | D176: =C176/'PLANILHA SEM DESONERAÇÃO'!$S$363 -> 0.00017 | E176: 0.9959 | F176: C
A177: 12.45 | B177: TUBO, PVC, SOLDÁVEL, DN 40MM, INSTALADO EM PRUMADA DE ÁGUA - FORNECIMENTO E INSTALAÇÃO. AF_06/2022 | C177: 1335.44 | D177: =C177/'PLANILHA SEM DESONERAÇÃO'!$S$363 -> 0.00017 | E177: 0.9961 | F177: C
A178: 15.19 | B178: REGISTRO DE GAVETA BRUTO, LATÃO, ROSCÁVEL, 3" - FORNECIMENTO E INSTALAÇÃO. AF_08/2021 | C178: 1327.56 | D178: =C178/'PLANILHA SEM DESONERAÇÃO'!$S$363 -> 0.00017 | E178: 0.9963 | F178: C
A179: 12.61 | B179: TUBO PVC, SERIE NORMAL, ESGOTO PREDIAL, DN 50 MM, FORNECIDO E INSTALADO EM RAMAL DE DESCARGA OU RAMAL DE ESGOTO SANITÁRIO. AF_08/2022 | C179: 1293.92 | D179: =C179/'PLANILHA SEM DESONERAÇÃO'!$S$363 -> 0.00017 | E179: 0.9965 | F179: C
A180: 7.7 | B180: CORRIMÃO SIMPLES, DIÂMETRO EXTERNO = 1 1/2", EM ALUMÍNIO. AF_04/2019 | C180: 1277.2 | D180: =C180/'PLANILHA SEM DESONERAÇÃO'!$S$363 -> 0.00016 | E180: 0.9967 | F180: C
A181: 13.10 | B181: INTERRUPTOR SIMPLES (1 MÓDULO), 10A/250V, INCLUINDO SUPORTE E PLACA - FORNECIMENTO E INSTALAÇÃO. AF_12/2015 | C181: 1198.43 | D181: =C181/'PLANILHA SEM DESONERAÇÃO'!$S$363 -> 0.00015 | E181: 0.9969 | F181: C
A182: 15.11 | B182: TÊ, EM FERRO GALVANIZADO, CONEXÃO ROSQUEADA, DN 65 (2 1/2), INSTALADO EM RESERVAÇÃO DE ÁGUA DE EDIFICAÇÃO QUE POSSUA RESERVATÓRIO DE FIBRA/FIBROCIMENTO FORNECIMENTO E INSTALAÇÃO. AF_06/2016 | C182: 1190.22 | D182: =C182/'PLANILHA SEM DESONERAÇÃO'!$S$363 -> 0.00015 | E182: 0.9971 | F182: C
A183: 13.33 | B183: REFLETOR RETANGULAR FECHADO, COM LÂMPADA VAPOR METÁLICO 400 W - FORNECIMENTO E INSTALAÇÃO. AF_08/2020 | C183: 1149.52 | D183: =C183/'PLANILHA SEM DESONERAÇÃO'!$S$363 -> 0.00015 | E183: 0.9973 | F183: C
A184: 13.31 | B184: ELETRODUTO RÍGIDO ROSCÁVEL, PVC, DN 60 MM (2"), PARA REDE ENTERRADA DE DISTRIBUIÇÃO DE ENERGIA ELÉTRICA - FORNECIMENTO E INSTALAÇÃO. AF_12/2021 | C184: 1098 | D184: =C184/'PLANILHA SEM DESONERAÇÃO'!$S$363 -> 0.00014 | E184: 0.9974 | F184: C
A185: 15.18 | B185: REGISTRO DE GAVETA BRUTO, LATÃO, ROSCÁVEL, 2 1/2" - FORNECIMENTO E INSTALAÇÃO. AF_08/2021 | C185: 1094.31 | D185: =C185/'PLANILHA SEM DESONERAÇÃO'!$S$363 -> 0.00014 | E185: 0.9975 | F185: C
A186: 12.7 | B186: ENGATE FLEXÍVEL EM INOX, 1/2 X 30CM - FORNECIMENTO E INSTALAÇÃO. AF_01/2020 | C186: 1047.52 | D186: =C186/'PLANILHA SEM DESONERAÇÃO'!$S$363 -> 0.00013 | E186: 0.9976 | F186: C
A187: 3.5 | B187: CARGA, MANOBRA E DESCARGA DE ENTULHO EM CAMINHÃO BASCULANTE 14 M³ - CARGA COM ESCAVADEIRA HIDRÁULICA (CAÇAMBA DE 0,80 M³ / 111 HP) E DESCARGA LIVRE (UNIDADE: M3). AF_07/2020 | C187: 1043 | D187: =C187/'PLANILHA SEM DESONERAÇÃO'!$S$363 -> 0.00013 | E187: 0.9977 | F187: C
A188: 8.1 | B188: IMPERMEABILIZAÇÃO DE SUPERFÍCIE COM ARGAMASSA POLIMÉRICA / MEMBRANA ACRÍLICA, 3 DEMÃOS. AF_06/2018 | C188: 1028.54 | D188: =C188/'PLANILHA SEM DESONERAÇÃO'!$S$363 -> 0.00013 | E188: 0.9978 | F188: C
A189: 13.47 | B189: CAIXA DE INSPEÇÃO PARA ATERRAMENTO, CIRCULAR, EM POLIETILENO, DIÂMETRO INTERNO = 0,3 M. AF_12/2020 | C189: 991.52 | D189: =C189/'PLANILHA SEM DESONERAÇÃO'!$S$363 -> 0.00013 | E189: 0.9979 | F189: C
A190: 13.12 | B190: INTERRUPTOR SIMPLES (2 MÓDULOS), 10A/250V, INCLUINDO SUPORTE E PLACA - FORNECIMENTO E INSTALAÇÃO. AF_12/2015 | C190: 925.56 | D190: =C190/'PLANILHA SEM DESONERAÇÃO'!$S$363 -> 0.00012 | E190: 0.998 | F190: C
A191: 12.102 | B191: ESCAVAÇÃO MECANIZADA DE VALA COM PROF. MAIOR QUE 1,5 M ATÉ 3,0 M (MÉDIA MONTANTE E JUSANTE/UMA COMPOSIÇÃO POR TRECHO),COM ESCAVADEIRA (1,2 M3),LARG. DE 1,5 M A 2,5 M, EM SOLO DE 1A CATEGORIA, LOCAIS COM BAIXO NÍVEL DE INTERFERÊNCIA. AF_02/2021 | C191: 911.39 | D191: =C191/'PLANILHA SEM DESONERAÇÃO'!$S$363 -> 0.00012 | E191: 0.9981 | F191: C
A192: 12.42 | B192: TUBO, PVC, SOLDÁVEL, DN 20MM, INSTALADO EM RAMAL DE DISTRIBUIÇÃO DE ÁGUA - FORNECIMENTO E INSTALAÇÃO. AF_06/2022 | C192: 903.9 | D192: =C192/'PLANILHA SEM DESONERAÇÃO'!$S$363 -> 0.00012 | E192: 0.9982 | F192: C
A193: 12.3 | B193: REGISTRO DE PRESSÃO BRUTO, LATÃO, ROSCÁVEL, 3/4", COM ACABAMENTO E CANOPLA CROMADOS - FORNECIMENTO E INSTALAÇÃO. AF_08/2021 | C193: 889.36 | D193: =C193/'PLANILHA SEM DESONERAÇÃO'!$S$363 -> 0.00011 | E193: 0.9983 | F193: C
A194: 15.15 | B194: CURVA 90 GRAUS, EM AÇO, CONEXÃO RANHURADA, DN 80 (3"), INSTALADO EM PRUMADAS - FORNECIMENTO E INSTALAÇÃO. AF_10/2020 | C194: 876.15 | D194: =C194/'PLANILHA SEM DESONERAÇÃO'!$S$363 -> 0.00011 | E194: 0.9984 | F194: C
A195: 12.80 | B195: VASO SANITARIO SIFONADO CONVENCIONAL PARA PCD SEM FURO FRONTAL COM LOUÇA BRANCA SEM ASSENTO - FORNECIMENTO E INSTALAÇÃO. AF_01/2020 | C195: 861.09 | D195: =C195/'PLANILHA SEM DESONERAÇÃO'!$S$363 -> 0.00011 | E195: 0.9985 | F195: C
A196: 12.92 | B196: ASSENTO SANITÁRIO CONVENCIONAL - FORNECIMENTO E INSTALACAO. AF_01/2020 | C196: 855.68 | D196: =C196/'PLANILHA SEM DESONERAÇÃO'!$S$363 -> 0.00011 | E196: 0.9986 | F196: =IF(E196<=$J$2,"A",IF(AND(E196<=$K$3,E196>$I$3),"B",IF(E196>$J$4,"C"))) -> C
A197: 15.20 | B197: VÁLVULA DE RETENÇÃO VERTICAL, DE BRONZE, ROSCÁVEL, 2 1/2" - FORNECIMENTO E INSTALAÇÃO. AF_08/2021 | C197: 839.84 | D197: =C197/'PLANILHA SEM DESONERAÇÃO'!$S$363 -> 0.00011 | E197: =D197+E196 -> 0.9987 | F197: C
A198: 15.9 | B198: NIPLE, EM FERRO GALVANIZADO, CONEXÃO ROSQUEADA, DN 80 (3), INSTALADO EM RESERVAÇÃO DE ÁGUA DE EDIFICAÇÃO QUE POSSUA RESERVATÓRIO DE FIBRA/FIBROCIMENTO FORNECIMENTO E INSTALAÇÃO. AF_06/2016 | C198: 814.32 | D198: =C198/'PLANILHA SEM DESONERAÇÃO'!$S$363 -> 0.0001 | E198: 0.9988 | F198: C
A199: 12.94 | B199: PUXADOR PARA PCD, FIXADO NA PORTA - FORNECIMENTO E INSTALAÇÃO. AF_01/2020 | C199: 808.96 | D199: =C199/'PLANILHA SEM DESONERAÇÃO'!$S$363 -> 0.0001 | E199: 0.9989 | F199: C
A200: 15.8 | B200: NIPLE, EM FERRO GALVANIZADO, CONEXÃO ROSQUEADA, DN 65 (2 1/2), INSTALADO EM RESERVAÇÃO DE ÁGUA DE EDIFICAÇÃO QUE POSSUA RESERVATÓRIO DE FIBRA/FIBROCIMENTO FORNECIMENTO E INSTALAÇÃO. AF_06/2016 | C200: 786.15 | D200: =C200/'PLANILHA SEM DESONERAÇÃO'!$S$363 -> 0.0001 | E200: 0.999 | F200: C
... 96 more rows

Sheet SINAPI NÃO DESONERADO
A1: PCI.817.01 - CUSTO DE COMPOSIÇÕES - SINTÉTICO DATA DE EMISSÃO: 14/09/2023 23:11:12 DATA DE RT: 14/09/2023
A2: ENCARGOS SOCIAIS SOBRE PREÇOS DA MÃO-DE-OBRA: 114,86%(HORA) 69,44%(MÊS)
A3: ABRANGÊNCIA : NACIONAL LOCALIDADE : MACAPA DATA DE PREÇO : 08/2023 REFERÊNCIA COLETA : MEDIANO
A5: DESCRICAO DA CLASSE | B5: SIGLA DA CLASSE | C5: DESCRICAO DO TIPO 1 | D5: SIGLA DO TIPO 1 | E5: CODIGO DO AGRUPADOR | F5: DESCRICAO DO AGRUPADOR | G5: CODIGO DA COMPOSICAO | H5: DESCRICAO DA COMPOSICAO | I5: UNIDADE | J5: ORIGEM DE PREÇO | K5: CUSTO TOTAL | L5: VINCULO
A7: ASSENTAMENTO DE TUBOS E PECAS | B7: ASTU | C7: FORNEC E/OU ASSENT DE TUBO DE FERRO FUNDIDO JUNTA ELASTICA | D7: 0045 | G7: 97141 | H7: ASSENTAMENTO DE TUBO DE FERRO FUNDIDO PARA REDE DE ÁGUA, DN 80 MM, JUNTA ELÁSTICA, INSTALADO EM LOCAL COM NÍVEL ALTO DE INTERFERÊNCIAS (NÃO INCLUI FORNECIMENTO). AF_11/2017 | I7: M | J7: ATRIBUÍDO SÃO PAULO | K7: 7.2 | L7: CAIXA REFERENCIAL
A8: ASSENTAMENTO DE TUBOS E PECAS | B8: ASTU | C8: FORNEC E/OU ASSENT DE TUBO DE FERRO FUNDIDO JUNTA ELASTICA | D8: 0045 | G8: 97142 | H8: ASSENTAMENTO DE TUBO DE FERRO FUNDIDO PARA REDE DE ÁGUA, DN 100 MM, JUNTA ELÁSTICA, INSTALADO EM LOCAL COM NÍVEL ALTO DE INTERFERÊNCIAS (NÃO INCLUI FORNECIMENTO). AF_11/2017 | I8: M | J8: ATRIBUÍDO SÃO PAULO | K8: 8.01 | L8: CAIXA REFERENCIAL
A9: ASSENTAMENTO DE TUBOS E PECAS | B9: ASTU | C9: FORNEC E/OU ASSENT DE TUBO DE FERRO FUNDIDO JUNTA ELASTICA | D9: 0045 | G9: 97143 | H9: ASSENTAMENTO DE TUBO DE FERRO FUNDIDO PARA REDE DE ÁGUA, DN 150 MM, JUNTA ELÁSTICA, INSTALADO EM LOCAL COM NÍVEL ALTO DE INTERFERÊNCIAS (NÃO INCLUI FORNECIMENTO). AF_11/2017 | I9: M | J9: ATRIBUÍDO SÃO PAULO | K9: 10.03 | L9: CAIXA REFERENCIAL
A10: ASSENTAMENTO DE TUBOS E PECAS | B10: ASTU | C10: FORNEC E/OU ASSENT DE TUBO DE FERRO FUNDIDO JUNTA ELASTICA | D10: 0045 | G10: 97144 | H10: ASSENTAMENTO DE TUBO DE FERRO FUNDIDO PARA REDE DE ÁGUA, DN 200 MM, JUNTA ELÁSTICA, INSTALADO EM LOCAL COM NÍVEL ALTO DE INTERFERÊNCIAS (NÃO INCLUI FORNECIMENTO). AF_11/2017 | I10: M | J10: ATRIBUÍDO SÃO PAULO | K10: 12.03 | L10: CAIXA REFERENCIAL
A11: ASSENTAMENTO DE TUBOS E PECAS | B11: ASTU | C11: FORNEC E/OU ASSENT DE TUBO DE FERRO FUNDIDO JUNTA ELASTICA | D11: 0045 | G11: 97145 | H11: ASSENTAMENTO DE TUBO DE FERRO FUNDIDO PARA REDE DE ÁGUA, DN 250 MM, JUNTA ELÁSTICA, INSTALADO EM LOCAL COM NÍVEL ALTO DE INTERFERÊNCIAS (NÃO INCLUI FORNECIMENTO). AF_11/2017 | I11: M | J11: ATRIBUÍDO SÃO PAULO | K11: 14.08 | L11: CAIXA REFERENCIAL
A12: ASSENTAMENTO DE TUBOS E PECAS | B12: ASTU | C12: FORNEC E/OU ASSENT DE TUBO DE FERRO FUNDIDO JUNTA ELASTICA | D12: 0045 | G12: 97146 | H12: ASSENTAMENTO DE TUBO DE FERRO FUNDIDO PARA REDE DE ÁGUA, DN 300 MM, JUNTA ELÁSTICA, INSTALADO EM LOCAL COM NÍVEL ALTO DE INTERFERÊNCIAS (NÃO INCLUI FORNECIMENTO). AF_11/2017 | I12: M | J12: ATRIBUÍDO SÃO PAULO | K12: 16.11 | L12: CAIXA REFERENCIAL
A13: ASSENTAMENTO DE TUBOS E PECAS | B13: ASTU | C13: FORNEC E/OU ASSENT DE TUBO DE FERRO FUNDIDO JUNTA ELASTICA | D13: 0045 | G13: 97147 | H13: ASSENTAMENTO DE TUBO DE FERRO FUNDIDO PARA REDE DE ÁGUA, DN 350 MM, JUNTA ELÁSTICA, INSTALADO EM LOCAL COM NÍVEL ALTO DE INTERFERÊNCIAS (NÃO INCLUI FORNECIMENTO). AF_11/2017 | I13: M | J13: ATRIBUÍDO SÃO PAULO | K13: 18.16 | L13: CAIXA REFERENCIAL
A14: ASSENTAMENTO DE TUBOS E PECAS | B14: ASTU | C14: FORNEC E/OU ASSENT DE TUBO DE FERRO FUNDIDO JUNTA ELASTICA | D14: 0045 | G14: 97148 | H14: ASSENTAMENTO DE TUBO DE FERRO FUNDIDO PARA REDE DE ÁGUA, DN 400 MM, JUNTA ELÁSTICA, INSTALADO EM LOCAL COM NÍVEL ALTO DE INTERFERÊNCIAS (NÃO INCLUI FORNECIMENTO). AF_11/2017 | I14: M | J14: ATRIBUÍDO SÃO PAULO | K14: 20.18 | L14: CAIXA REFERENCIAL
A15: ASSENTAMENTO DE TUBOS E PECAS | B15: ASTU | C15: FORNEC E/OU ASSENT DE TUBO DE FERRO FUNDIDO JUNTA ELASTICA | D15: 0045 | G15: 97149 | H15: ASSENTAMENTO DE TUBO DE FERRO FUNDIDO PARA REDE DE ÁGUA, DN 450 MM, JUNTA ELÁSTICA, INSTALADO EM LOCAL COM NÍVEL ALTO DE INTERFERÊNCIAS (NÃO INCLUI FORNECIMENTO). AF_11/2017 | I15: M | J15: ATRIBUÍDO SÃO PAULO | K15: 22.24 | L15: CAIXA REFERENCIAL
A16: ASSENTAMENTO DE TUBOS E PECAS | B16: ASTU | C16: FORNEC E/OU ASSENT DE TUBO DE FERRO FUNDIDO JUNTA ELASTICA | D16: 0045 | G16: 97150 | H16: ASSENTAMENTO DE TUBO DE FERRO FUNDIDO PARA REDE DE ÁGUA, DN 500 MM, JUNTA ELÁSTICA, INSTALADO EM LOCAL COM NÍVEL ALTO DE INTERFERÊNCIAS (NÃO INCLUI FORNECIMENTO). AF_11/2017 | I16: M | J16: ATRIBUÍDO SÃO PAULO | K16: 29.25 | L16: CAIXA REFERENCIAL
A17: ASSENTAMENTO DE TUBOS E PECAS | B17: ASTU | C17: FORNEC E/OU ASSENT DE TUBO DE FERRO FUNDIDO JUNTA ELASTICA | D17: 0045 | G17: 97151 | H17: ASSENTAMENTO DE TUBO DE FERRO FUNDIDO PARA REDE DE ÁGUA, DN 600 MM, JUNTA ELÁSTICA, INSTALADO EM LOCAL COM NÍVEL ALTO DE INTERFERÊNCIAS (NÃO INCLUI FORNECIMENTO). AF_11/2017 | I17: M | J17: ATRIBUÍDO SÃO PAULO | K17: 34.07 | L17: CAIXA REFERENCIAL
A18: ASSENTAMENTO DE TUBOS E PECAS | B18: ASTU | C18: FORNEC E/OU ASSENT DE TUBO DE FERRO FUNDIDO JUNTA ELASTICA | D18: 0045 | G18: 97152 | H18: ASSENTAMENTO DE TUBO DE FERRO FUNDIDO PARA REDE DE ÁGUA, DN 700 MM, JUNTA ELÁSTICA, INSTALADO EM LOCAL COM NÍVEL ALTO DE INTERFERÊNCIAS (NÃO INCLUI FORNECIMENTO). AF_11/2017 | I18: M | J18: ATRIBUÍDO SÃO PAULO | K18: 38.65 | L18: CAIXA REFERENCIAL
A19: ASSENTAMENTO DE TUBOS E PECAS | B19: ASTU | C19: FORNEC E/OU ASSENT DE TUBO DE FERRO FUNDIDO JUNTA ELASTICA | D19: 0045 | G19: 97153 | H19: ASSENTAMENTO DE TUBO DE FERRO FUNDIDO PARA REDE DE ÁGUA, DN 800 MM, JUNTA ELÁSTICA, INSTALADO EM LOCAL COM NÍVEL ALTO DE INTERFERÊNCIAS (NÃO INCLUI FORNECIMENTO). AF_11/2017 | I19: M | J19: ATRIBUÍDO SÃO PAULO | K19: 43.38 | L19: CAIXA REFERENCIAL
A20: ASSENTAMENTO DE TUBOS E PECAS | B20: ASTU | C20: FORNEC E/OU ASSENT DE TUBO DE FERRO FUNDIDO JUNTA ELASTICA | D20: 0045 | G20: 97154 | H20: ASSENTAMENTO DE TUBO DE FERRO FUNDIDO PARA REDE DE ÁGUA, DN 900 MM, JUNTA ELÁSTICA, INSTALADO EM LOCAL COM NÍVEL ALTO DE INTERFERÊNCIAS (NÃO INCLUI FORNECIMENTO). AF_11/2017 | I20: M | J20: ATRIBUÍDO SÃO PAULO | K20: 48.13 | L20: CAIXA REFERENCIAL
A21: ASSENTAMENTO DE TUBOS E PECAS | B21: ASTU | C21: FORNEC E/OU ASSENT DE TUBO DE FERRO FUNDIDO JUNTA ELASTICA | D21: 0045 | G21: 97155 | H21: ASSENTAMENTO DE TUBO DE FERRO FUNDIDO PARA REDE DE ÁGUA, DN 1000 MM, JUNTA ELÁSTICA, INSTALADO EM LOCAL COM NÍVEL ALTO DE INTERFERÊNCIAS (NÃO INCLUI FORNECIMENTO). AF_11/2017 | I21: M | J21: ATRIBUÍDO SÃO PAULO | K21: 52.9 | L21: CAIXA REFERENCIAL
A22: ASSENTAMENTO DE TUBOS E PECAS | B22: ASTU | C22: FORNEC E/OU ASSENT DE TUBO DE FERRO FUNDIDO JUNTA ELASTICA | D22: 0045 | G22: 97156 | H22: ASSENTAMENTO DE TUBO DE FERRO FUNDIDO PARA REDE DE ÁGUA, DN 1200 MM, JUNTA ELÁSTICA, INSTALADO EM LOCAL COM NÍVEL ALTO DE INTERFERÊNCIAS (NÃO INCLUI FORNECIMENTO). AF_11/2017 | I22: M | J22: ATRIBUÍDO SÃO PAULO | K22: 62.82 | L22: CAIXA REFERENCIAL
A23: ASSENTAMENTO DE TUBOS E PECAS | B23: ASTU | C23: FORNEC E/OU ASSENT DE TUBO DE FERRO FUNDIDO JUNTA ELASTICA | D23: 0045 | G23: 97157 | H23: ASSENTAMENTO DE TUBO DE FERRO FUNDIDO PARA REDE DE ÁGUA, DN 80 MM, JUNTA ELÁSTICA, INSTALADO EM LOCAL COM NÍVEL BAIXO DE INTERFERÊNCIAS (NÃO INCLUI FORNECIMENTO). AF_11/2017 | I23: M | J23: ATRIBUÍDO SÃO PAULO | K23: 4.38 | L23: CAIXA REFERENCIAL
A24: ASSENTAMENTO DE TUBOS E PECAS | B24: ASTU | C24: FORNEC E/OU ASSENT DE TUBO DE FERRO FUNDIDO JUNTA ELASTICA | D24: 0045 | G24: 97158 | H24: ASSENTAMENTO DE TUBO DE FERRO FUNDIDO PARA REDE DE ÁGUA, DN 100 MM, JUNTA ELÁSTICA, INSTALADO EM LOCAL COM NÍVEL BAIXO DE INTERFERÊNCIAS (NÃO INCLUI FORNECIMENTO). AF_11/2017 | I24: M | J24: ATRIBUÍDO SÃO PAULO | K24: 4.88 | L24: CAIXA REFERENCIAL
A25: ASSENTAMENTO DE TUBOS E PECAS | B25: ASTU | C25: FORNEC E/OU ASSENT DE TUBO DE FERRO FUNDIDO JUNTA ELASTICA | D25: 0045 | G25: 97159 | H25: ASSENTAMENTO DE TUBO DE FERRO FUNDIDO PARA REDE DE ÁGUA, DN 150 MM, JUNTA ELÁSTICA, INSTALADO EM LOCAL COM NÍVEL BAIXO DE INTERFERÊNCIAS (NÃO INCLUI FORNECIMENTO). AF_11/2017 | I25: M | J25: ATRIBUÍDO SÃO PAULO | K25: 6.12 | L25: CAIXA REFERENCIAL
A26: ASSENTAMENTO DE TUBOS E PECAS | B26: ASTU | C26: FORNEC E/OU ASSENT DE TUBO DE FERRO FUNDIDO JUNTA ELASTICA | D26: 0045 | G26: 97160 | H26: ASSENTAMENTO DE TUBO DE FERRO FUNDIDO PARA REDE DE ÁGUA, DN 200 MM, JUNTA ELÁSTICA, INSTALADO EM LOCAL COM NÍVEL BAIXO DE INTERFERÊNCIAS (NÃO INCLUI FORNECIMENTO). AF_11/2017 | I26: M | J26: ATRIBUÍDO SÃO PAULO | K26: 7.33 | L26: CAIXA REFERENCIAL
A27: ASSENTAMENTO DE TUBOS E PECAS | B27: ASTU | C27: FORNEC E/OU ASSENT DE TUBO DE FERRO FUNDIDO JUNTA ELASTICA | D27: 0045 | G27: 97161 | H27: ASSENTAMENTO DE TUBO DE FERRO FUNDIDO PARA REDE DE ÁGUA, DN 250 MM, JUNTA ELÁSTICA, INSTALADO EM LOCAL COM NÍVEL BAIXO DE INTERFERÊNCIAS (NÃO INCLUI FORNECIMENTO). AF_11/2017 | I27: M | J27: ATRIBUÍDO SÃO PAULO | K27: 8.62 | L27: CAIXA REFERENCIAL
A28: ASSENTAMENTO DE TUBOS E PECAS | B28: ASTU | C28: FORNEC E/OU ASSENT DE TUBO DE FERRO FUNDIDO JUNTA ELASTICA | D28: 0045 | G28: 97162 | H28: ASSENTAMENTO DE TUBO DE FERRO FUNDIDO PARA REDE DE ÁGUA, DN 300 MM, JUNTA ELÁSTICA, INSTALADO EM LOCAL COM NÍVEL BAIXO DE INTERFERÊNCIAS (NÃO INCLUI FORNECIMENTO). AF_11/2017 | I28: M | J28: ATRIBUÍDO SÃO PAULO | K28: 9.87 | L28: CAIXA REFERENCIAL
A29: ASSENTAMENTO DE TUBOS E PECAS | B29: ASTU | C29: FORNEC E/OU ASSENT DE TUBO DE FERRO FUNDIDO JUNTA ELASTICA | D29: 0045 | G29: 97163 | H29: ASSENTAMENTO DE TUBO DE FERRO FUNDIDO PARA REDE DE ÁGUA, DN 350 MM, JUNTA ELÁSTICA, INSTALADO EM LOCAL COM NÍVEL BAIXO DE INTERFERÊNCIAS (NÃO INCLUI FORNECIMENTO). AF_11/2017 | I29: M | J29: ATRIBUÍDO SÃO PAULO | K29: 11.12 | L29: CAIXA REFERENCIAL
A30: ASSENTAMENTO DE TUBOS E PECAS | B30: ASTU | C30: FORNEC E/OU ASSENT DE TUBO DE FERRO FUNDIDO JUNTA ELASTICA | D30: 0045 | G30: 97164 | H30: ASSENTAMENTO DE TUBO DE FERRO FUNDIDO PARA REDE DE ÁGUA, DN 400 MM, JUNTA ELÁSTICA, INSTALADO EM LOCAL COM NÍVEL BAIXO DE INTERFERÊNCIAS (NÃO INCLUI FORNECIMENTO). AF_11/2017 | I30: M | J30: ATRIBUÍDO SÃO PAULO | K30: 12.36 | L30: CAIXA REFERENCIAL
A31: ASSENTAMENTO DE TUBOS E PECAS | B31: ASTU | C31: FORNEC E/OU ASSENT DE TUBO DE FERRO FUNDIDO JUNTA ELASTICA | D31: 0045 | G31: 97165 | H31: ASSENTAMENTO DE TUBO DE FERRO FUNDIDO PARA REDE DE ÁGUA, DN 450 MM, JUNTA ELÁSTICA, INSTALADO EM LOCAL COM NÍVEL BAIXO DE INTERFERÊNCIAS (NÃO INCLUI FORNECIMENTO). AF_11/2017 | I31: M | J31: ATRIBUÍDO SÃO PAULO | K31: 13.66 | L31: CAIXA REFERENCIAL
A32: ASSENTAMENTO DE TUBOS E PECAS | B32: ASTU | C32: FORNEC E/OU ASSENT DE TUBO DE FERRO FUNDIDO JUNTA ELASTICA | D32: 0045 | G32: 97166 | H32: ASSENTAMENTO DE TUBO DE FERRO FUNDIDO PARA REDE DE ÁGUA, DN 500 MM, JUNTA ELÁSTICA, INSTALADO EM LOCAL COM NÍVEL BAIXO DE INTERFERÊNCIAS (NÃO INCLUI FORNECIMENTO). AF_11/2017 | I32: M | J32: ATRIBUÍDO SÃO PAULO | K32: 17.88 | L32: CAIXA REFERENCIAL
A33: ASSENTAMENTO DE TUBOS E PECAS | B33: ASTU | C33: FORNEC E/OU ASSENT DE TUBO DE FERRO FUNDIDO JUNTA ELASTICA | D33: 0045 | G33: 97167 | H33: ASSENTAMENTO DE TUBO DE FERRO FUNDIDO PARA REDE DE ÁGUA, DN 600 MM, JUNTA ELÁSTICA, INSTALADO EM LOCAL COM NÍVEL BAIXO DE INTERFERÊNCIAS (NÃO INCLUI FORNECIMENTO). AF_11/2017 | I33: M | J33: ATRIBUÍDO SÃO PAULO | K33: 20.88 | L33: CAIXA REFERENCIAL
A34: ASSENTAMENTO DE TUBOS E PECAS | B34: ASTU | C34: FORNEC E/OU ASSENT DE TUBO DE FERRO FUNDIDO JUNTA ELASTICA | D34: 0045 | G34: 97168 | H34: ASSENTAMENTO DE TUBO DE FERRO FUNDIDO PARA REDE DE ÁGUA, DN 700 MM, JUNTA ELÁSTICA, INSTALADO EM LOCAL COM NÍVEL BAIXO DE INTERFERÊNCIAS (NÃO INCLUI FORNECIMENTO). AF_11/2017 | I34: M | J34: ATRIBUÍDO SÃO PAULO | K34: 23.6 | L34: CAIXA REFERENCIAL
A35: ASSENTAMENTO DE TUBOS E PECAS | B35: ASTU | C35: FORNEC E/OU ASSENT DE TUBO DE FERRO FUNDIDO JUNTA ELASTICA | D35: 0045 | G35: 97169 | H35: ASSENTAMENTO DE TUBO DE FERRO FUNDIDO PARA REDE DE ÁGUA, DN 800 MM, JUNTA ELÁSTICA, INSTALADO EM LOCAL COM NÍVEL BAIXO DE INTERFERÊNCIAS (NÃO INCLUI FORNECIMENTO). AF_11/2017 | I35: M | J35: ATRIBUÍDO SÃO PAULO | K35: 26.48 | L35: CAIXA REFERENCIAL
A36: ASSENTAMENTO DE TUBOS E PECAS | B36: ASTU | C36: FORNEC E/OU ASSENT DE TUBO DE FERRO FUNDIDO JUNTA ELASTICA | D36: 0045 | G36: 97170 | H36: ASSENTAMENTO DE TUBO DE FERRO FUNDIDO PARA REDE DE ÁGUA, DN 900 MM, JUNTA ELÁSTICA, INSTALADO EM LOCAL COM NÍVEL BAIXO DE INTERFERÊNCIAS (NÃO INCLUI FORNECIMENTO). AF_11/2017 | I36: M | J36: ATRIBUÍDO SÃO PAULO | K36: 29.4 | L36: CAIXA REFERENCIAL
A37: ASSENTAMENTO DE TUBOS E PECAS | B37: ASTU | C37: FORNEC E/OU ASSENT DE TUBO DE FERRO FUNDIDO JUNTA ELASTICA | D37: 0045 | G37: 97171 | H37: ASSENTAMENTO DE TUBO DE FERRO FUNDIDO PARA REDE DE ÁGUA, DN 1000 MM, JUNTA ELÁSTICA, INSTALADO EM LOCAL COM NÍVEL BAIXO DE INTERFERÊNCIAS (NÃO INCLUI FORNECIMENTO). AF_11/2017 | I37: M | J37: ATRIBUÍDO SÃO PAULO | K37: 32.32 | L37: CAIXA REFERENCIAL
A38: ASSENTAMENTO DE TUBOS E PECAS | B38: ASTU | C38: FORNEC E/OU ASSENT DE TUBO DE FERRO FUNDIDO JUNTA ELASTICA | D38: 0045 | G38: 97172 | H38: ASSENTAMENTO DE TUBO DE FERRO FUNDIDO PARA REDE DE ÁGUA, DN 1200 MM, JUNTA ELÁSTICA, INSTALADO EM LOCAL COM NÍVEL BAIXO DE INTERFERÊNCIAS (NÃO INCLUI FORNECIMENTO). AF_11/2017 | I38: M | J38: ATRIBUÍDO SÃO PAULO | K38: 38.57 | L38: CAIXA REFERENCIAL
A39: ASSENTAMENTO DE TUBOS E PECAS | B39: ASTU | C39: FORNEC E/OU ASSENT DE TUBO DE ACO COM JUNTA SOLDADA | D39: 0046 | G39: 97173 | H39: ASSENTAMENTO DE TUBO DE AÇO CARBONO PARA REDE DE ÁGUA, DN 600 MM (24), JUNTA SOLDADA, INSTALADO EM LOCAL COM NÍVEL ALTO DE INTERFERÊNCIAS (NÃO INCLUI FORNECIMENTO). AF_11/2017 | I39: M | J39: ATRIBUÍDO SÃO PAULO | K39: 33.35 | L39: CAIXA REFERENCIAL
A40: ASSENTAMENTO DE TUBOS E PECAS | B40: ASTU | C40: FORNEC E/OU ASSENT DE TUBO DE ACO COM JUNTA SOLDADA | D40: 0046 | G40: 97174 | H40: ASSENTAMENTO DE TUBO DE AÇO CARBONO PARA REDE DE ÁGUA, DN 700 MM (28), JUNTA SOLDADA, INSTALADO EM LOCAL COM NÍVEL ALTO DE INTERFERÊNCIAS (NÃO INCLUI FORNECIMENTO). AF_11/2017 | I40: M | J40: ATRIBUÍDO SÃO PAULO | K40: 38.62 | L40: CAIXA REFERENCIAL
A41: ASSENTAMENTO DE TUBOS E PECAS | B41: ASTU | C41: FORNEC E/OU ASSENT DE TUBO DE ACO COM JUNTA SOLDADA | D41: 0046 | G41: 97175 | H41: ASSENTAMENTO DE TUBO DE AÇO CARBONO PARA REDE DE ÁGUA, DN 800 MM (32), JUNTA SOLDADA, INSTALADO EM LOCAL COM NÍVEL ALTO DE INTERFERÊNCIAS (NÃO INCLUI FORNECIMENTO). AF_11/2017 | I41: M | J41: ATRIBUÍDO SÃO PAULO | K41: 43.9 | L41: CAIXA REFERENCIAL
A42: ASSENTAMENTO DE TUBOS E PECAS | B42: ASTU | C42: FORNEC E/OU ASSENT DE TUBO DE ACO COM JUNTA SOLDADA | D42: 0046 | G42: 97176 | H42: ASSENTAMENTO DE TUBO DE AÇO CARBONO PARA REDE DE ÁGUA, DN 900 MM (36), JUNTA SOLDADA, INSTALADO EM LOCAL COM NÍVEL ALTO DE INTERFERÊNCIAS (NÃO INCLUI FORNECIMENTO). AF_11/2017 | I42: M | J42: ATRIBUÍDO SÃO PAULO | K42: 49.16 | L42: CAIXA REFERENCIAL
A43: ASSENTAMENTO DE TUBOS E PECAS | B43: ASTU | C43: FORNEC E/OU ASSENT DE TUBO DE ACO COM JUNTA SOLDADA | D43: 0046 | G43: 97177 | H43: ASSENTAMENTO DE TUBO DE AÇO CARBONO PARA REDE DE ÁGUA, DN 1000 MM (40) OU DN 1100 MM (44), JUNTA SOLDADA, INSTALADO EM LOCAL COM NÍVEL ALTO DE INTERFERÊNCIAS (NÃO INCLUI FORNECIMENTO). AF_11/2017 | I43: M | J43: ATRIBUÍDO SÃO PAULO | K43: 59.71 | L43: CAIXA REFERENCIAL
A44: ASSENTAMENTO DE TUBOS E PECAS | B44: ASTU | C44: FORNEC E/OU ASSENT DE TUBO DE ACO COM JUNTA SOLDADA | D44: 0046 | G44: 97178 | H44: ASSENTAMENTO DE TUBO DE AÇO CARBONO PARA REDE DE ÁGUA, DN 1200 MM (48) OU DN 1300 MM (52), JUNTA SOLDADA, INSTALADO EM LOCAL COM NÍVEL ALTO DE INTERFERÊNCIAS (NÃO INCLUI FORNECIMENTO). AF_11/2017 | I44: M | J44: ATRIBUÍDO SÃO PAULO | K44: 70.28 | L44: CAIXA REFERENCIAL
A45: ASSENTAMENTO DE TUBOS E PECAS | B45: ASTU | C45: FORNEC E/OU ASSENT DE TUBO DE ACO COM JUNTA SOLDADA | D45: 0046 | G45: 97179 | H45: ASSENTAMENTO DE TUBO DE AÇO CARBONO PARA REDE DE ÁGUA, DN 1400 MM (56'') OU DN 1500 MM (60), JUNTA SOLDADA, INSTALADO EM LOCAL COM NÍVEL ALTO DE INTERFERÊNCIAS (NÃO INCLUI FORNECIMENTO). AF_11/2017 | I45: M | J45: ATRIBUÍDO SÃO PAULO | K45: 80.8 | L45: CAIXA REFERENCIAL
A46: ASSENTAMENTO DE TUBOS E PECAS | B46: ASTU | C46: FORNEC E/OU ASSENT DE TUBO DE ACO COM JUNTA SOLDADA | D46: 0046 | G46: 97180 | H46: ASSENTAMENTO DE TUBO DE AÇO CARBONO PARA REDE DE ÁGUA, DN 1600 MM (64) OU DN 1700 MM (68), JUNTA SOLDADA, INSTALADO EM LOCAL COM NÍVEL ALTO DE INTERFERÊNCIAS (NÃO INCLUI FORNECIMENTO). AF_11/2017 | I46: M | J46: ATRIBUÍDO SÃO PAULO | K46: 91.36 | L46: CAIXA REFERENCIAL
A47: ASSENTAMENTO DE TUBOS E PECAS | B47: ASTU | C47: FORNEC E/OU ASSENT DE TUBO DE ACO COM JUNTA SOLDADA | D47: 0046 | G47: 97181 | H47: ASSENTAMENTO DE TUBO DE AÇO CARBONO PARA REDE DE ÁGUA, DN 1800 MM (72) OU DN 1900 MM (76), JUNTA SOLDADA, INSTALADO EM LOCAL COM NÍVEL ALTO DE INTERFERÊNCIAS (NÃO INCLUI FORNECIMENTO). AF_11/2017 | I47: M | J47: ATRIBUÍDO SÃO PAULO | K47: 106.36 | L47: CAIXA REFERENCIAL
A48: ASSENTAMENTO DE TUBOS E PECAS | B48: ASTU | C48: FORNEC E/OU ASSENT DE TUBO DE ACO COM JUNTA SOLDADA | D48: 0046 | G48: 97182 | H48: ASSENTAMENTO DE TUBO DE AÇO CARBONO PARA REDE DE ÁGUA, DN 2000 MM (80) OU DN 2100 MM (84), JUNTA SOLDADA, INSTALADO EM LOCAL COM NÍVEL ALTO DE INTERFERÊNCIAS (NÃO INCLUI FORNECIMENTO). AF_11/2017 | I48: M | J48: ATRIBUÍDO SÃO PAULO | K48: 117.38 | L48: CAIXA REFERENCIAL
A49: ASSENTAMENTO DE TUBOS E PECAS | B49: ASTU | C49: FORNEC E/OU ASSENT DE TUBO DE ACO COM JUNTA SOLDADA | D49: 0046 | G49: 97183 | H49: ASSENTAMENTO DE TUBO DE AÇO CARBONO PARA REDE DE ÁGUA, DN 600 MM (24), JUNTA SOLDADA, INSTALADO EM LOCAL COM NÍVEL BAIXO DE INTERFERÊNCIAS (NÃO INCLUI FORNECIMENTO). AF_11/2017 | I49: M | J49: ATRIBUÍDO SÃO PAULO | K49: 26.91 | L49: CAIXA REFERENCIAL
A50: ASSENTAMENTO DE TUBOS E PECAS | B50: ASTU | C50: FORNEC E/OU ASSENT DE TUBO DE ACO COM JUNTA SOLDADA | D50: 0046 | G50: 97184 | H50: ASSENTAMENTO DE TUBO DE AÇO CARBONO PARA REDE DE ÁGUA, DN 700 MM (28), JUNTA SOLDADA, INSTALADO EM LOCAL COM NÍVEL BAIXO DE INTERFERÊNCIAS (NÃO INCLUI FORNECIMENTO). AF_11/2017 | I50: M | J50: ATRIBUÍDO SÃO PAULO | K50: 31.24 | L50: CAIXA REFERENCIAL
A51: ASSENTAMENTO DE TUBOS E PECAS | B51: ASTU | C51: FORNEC E/OU ASSENT DE TUBO DE ACO COM JUNTA SOLDADA | D51: 0046 | G51: 97185 | H51: ASSENTAMENTO DE TUBO DE AÇO CARBONO PARA REDE DE ÁGUA, DN 800 MM (32), JUNTA SOLDADA, INSTALADO EM LOCAL COM NÍVEL BAIXO DE INTERFERÊNCIAS (NÃO INCLUI FORNECIMENTO). AF_11/2017 | I51: M | J51: ATRIBUÍDO SÃO PAULO | K51: 35.55 | L51: CAIXA REFERENCIAL
A52: ASSENTAMENTO DE TUBOS E PECAS | B52: ASTU | C52: FORNEC E/OU ASSENT DE TUBO DE ACO COM JUNTA SOLDADA | D52: 0046 | G52: 97186 | H52: ASSENTAMENTO DE TUBO DE AÇO CARBONO PARA REDE DE ÁGUA, DN 900 MM (36), JUNTA SOLDADA, INSTALADO EM LOCAL COM NÍVEL BAIXO DE INTERFERÊNCIAS (NÃO INCLUI FORNECIMENTO). AF_11/2017 | I52: M | J52: ATRIBUÍDO SÃO PAULO | K52: 39.86 | L52: CAIXA REFERENCIAL
A53: ASSENTAMENTO DE TUBOS E PECAS | B53: ASTU | C53: FORNEC E/OU ASSENT DE TUBO DE ACO COM JUNTA SOLDADA | D53: 0046 | G53: 97187 | H53: ASSENTAMENTO DE TUBO DE AÇO CARBONO PARA REDE DE ÁGUA, DN 1000 MM (40 ) OU DN 1100 MM (44 ), JUNTA SOLDADA, INSTALADO EM LOCAL COM NÍVEL BAIXO DE INTERFERÊNCIAS (NÃO INCLUI FORNECIMENTO). AF_11/2017 | I53: M | J53: ATRIBUÍDO SÃO PAULO | K53: 48.49 | L53: CAIXA REFERENCIAL
A54: ASSENTAMENTO DE TUBOS E PECAS | B54: ASTU | C54: FORNEC E/OU ASSENT DE TUBO DE ACO COM JUNTA SOLDADA | D54: 0046 | G54: 97188 | H54: ASSENTAMENTO DE TUBO DE AÇO CARBONO PARA REDE DE ÁGUA, DN 1200 MM (48) OU DN 1300 MM (52), JUNTA SOLDADA, INSTALADO EM LOCAL COM NÍVEL BAIXO DE INTERFERÊNCIAS (NÃO INCLUI FORNECIMENTO). AF_11/2017 | I54: M | J54: ATRIBUÍDO SÃO PAULO | K54: 57.13 | L54: CAIXA REFERENCIAL
A55: ASSENTAMENTO DE TUBOS E PECAS | B55: ASTU | C55: FORNEC E/OU ASSENT DE TUBO DE ACO COM JUNTA SOLDADA | D55: 0046 | G55: 97189 | H55: ASSENTAMENTO DE TUBO DE AÇO CARBONO PARA REDE DE ÁGUA, DN 1400 MM (56'') OU DN 1500 MM (60), JUNTA SOLDADA, INSTALADO EM LOCAL COM NÍVEL BAIXO DE INTERFERÊNCIAS (NÃO INCLUI FORNECIMENTO). AF_11/2017 | I55: M | J55: ATRIBUÍDO SÃO PAULO | K55: 65.75 | L55: CAIXA REFERENCIAL
A56: ASSENTAMENTO DE TUBOS E PECAS | B56: ASTU | C56: FORNEC E/OU ASSENT DE TUBO DE ACO COM JUNTA SOLDADA | D56: 0046 | G56: 97190 | H56: ASSENTAMENTO DE TUBO DE AÇO CARBONO PARA REDE DE ÁGUA, DN 1600 MM (64) OU DN 1700 MM (68), JUNTA SOLDADA, INSTALADO EM LOCAL COM NÍVEL BAIXO DE INTERFERÊNCIAS (NÃO INCLUI FORNECIMENTO). AF_11/2017 | I56: M | J56: ATRIBUÍDO SÃO PAULO | K56: 74.38 | L56: CAIXA REFERENCIAL
A57: ASSENTAMENTO DE TUBOS E PECAS | B57: ASTU | C57: FORNEC E/OU ASSENT DE TUBO DE ACO COM JUNTA SOLDADA | D57: 0046 | G57: 97191 | H57: ASSENTAMENTO DE TUBO DE AÇO CARBONO PARA REDE DE ÁGUA, DN 1800 MM (72) OU DN 1900 MM (76), JUNTA SOLDADA, INSTALADO EM LOCAL COM NÍVEL BAIXO DE INTERFERÊNCIAS (NÃO INCLUI FORNECIMENTO). AF_11/2017 | I57: M | J57: ATRIBUÍDO SÃO PAULO | K57: 86.22 | L57: CAIXA REFERENCIAL
A58: ASSENTAMENTO DE TUBOS E PECAS | B58: ASTU | C58: FORNEC E/OU ASSENT DE TUBO DE ACO COM JUNTA SOLDADA | D58: 0046 | G58: 97192 | H58: ASSENTAMENTO DE TUBO DE AÇO CARBONO PARA REDE DE ÁGUA, DN 2000 MM (80) OU DN 2100 MM (84), JUNTA SOLDADA, INSTALADO EM LOCAL COM NÍVEL BAIXO DE INTERFERÊNCIAS (NÃO INCLUI FORNECIMENTO). AF_11/2017 | I58: M | J58: ATRIBUÍDO SÃO PAULO | K58: 95.2 | L58: CAIXA REFERENCIAL
A59: ASSENTAMENTO DE TUBOS E PECAS | B59: ASTU | C59: FORNEC E/OU ASSENT DE TUBO DE PVC COM JUNTA ELASTICA | D59: 0048 | G59: 90694 | H59: TUBO DE PVC PARA REDE COLETORA DE ESGOTO DE PAREDE MACIÇA, DN 100 MM, JUNTA ELÁSTICA - FORNECIMENTO E ASSENTAMENTO. AF_01/2021 | I59: M | J59: COEFICIENTE DE REPRESENTATIVIDADE | K59: 47.84 | L59: CAIXA REFERENCIAL
A60: ASSENTAMENTO DE TUBOS E PECAS | B60: ASTU | C60: FORNEC E/OU ASSENT DE TUBO DE PVC COM JUNTA ELASTICA | D60: 0048 | G60: 90695 | H60: TUBO DE PVC PARA REDE COLETORA DE ESGOTO DE PAREDE MACIÇA, DN 150 MM, JUNTA ELÁSTICA - FORNECIMENTO E ASSENTAMENTO. AF_01/2021 | I60: M | J60: COEFICIENTE DE REPRESENTATIVIDADE | K60: 91.5 | L60: CAIXA REFERENCIAL
A61: ASSENTAMENTO DE TUBOS E PECAS | B61: ASTU | C61: FORNEC E/OU ASSENT DE TUBO DE PVC COM JUNTA ELASTICA | D61: 0048 | G61: 90696 | H61: TUBO DE PVC PARA REDE COLETORA DE ESGOTO DE PAREDE MACIÇA, DN 200 MM, JUNTA ELÁSTICA - FORNECIMENTO E ASSENTAMENTO. AF_01/2021 | I61: M | J61: COEFICIENTE DE REPRESENTATIVIDADE | K61: 153.37 | L61: CAIXA REFERENCIAL
A62: ASSENTAMENTO DE TUBOS E PECAS | B62: ASTU | C62: FORNEC E/OU ASSENT DE TUBO DE PVC COM JUNTA ELASTICA | D62: 0048 | G62: 90697 | H62: TUBO DE PVC PARA REDE COLETORA DE ESGOTO DE PAREDE MACIÇA, DN 250 MM, JUNTA ELÁSTICA - FORNECIMENTO E ASSENTAMENTO. AF_01/2021 | I62: M | J62: COEFICIENTE DE REPRESENTATIVIDADE | K62: 238.42 | L62: CAIXA REFERENCIAL
A63: ASSENTAMENTO DE TUBOS E PECAS | B63: ASTU | C63: FORNEC E/OU ASSENT DE TUBO DE PVC COM JUNTA ELASTICA | D63: 0048 | G63: 90698 | H63: TUBO DE PVC PARA REDE COLETORA DE ESGOTO DE PAREDE MACIÇA, DN 300 MM, JUNTA ELÁSTICA, FORNECIMENTO E ASSENTAMENTO. AF_01/2021 | I63: M | J63: COEFICIENTE DE REPRESENTATIVIDADE | K63: 364.96 | L63: CAIXA REFERENCIAL
A64: ASSENTAMENTO DE TUBOS E PECAS | B64: ASTU | C64: FORNEC E/OU ASSENT DE TUBO DE PVC COM JUNTA ELASTICA | D64: 0048 | G64: 90699 | H64: TUBO DE PVC PARA REDE COLETORA DE ESGOTO DE PAREDE MACIÇA, DN 350 MM, JUNTA ELÁSTICA - FORNECIMENTO E ASSENTAMENTO. AF_01/2021 | I64: M | J64: COEFICIENTE DE REPRESENTATIVIDADE | K64: 514.11 | L64: CAIXA REFERENCIAL
A65: ASSENTAMENTO DE TUBOS E PECAS | B65: ASTU | C65: FORNEC E/OU ASSENT DE TUBO DE PVC COM JUNTA ELASTICA | D65: 0048 | G65: 90700 | H65: TUBO DE PVC PARA REDE COLETORA DE ESGOTO DE PAREDE MACIÇA, DN 400 MM, JUNTA ELÁSTICA FORNECIMENTO E ASSENTAMENTO. AF_01/2021 | I65: M | J65: ATRIBUÍDO SÃO PAULO | K65: 600.17 | L65: CAIXA REFERENCIAL
A66: ASSENTAMENTO DE TUBOS E PECAS | B66: ASTU | C66: FORNEC E/OU ASSENT DE TUBO DE PVC COM JUNTA ELASTICA | D66: 0048 | G66: 90701 | H66: TUBO DE PVC CORRUGADO DE DUPLA PAREDE PARA REDE COLETORA DE ESGOTO, DN 150 MM, JUNTA ELÁSTICA - FORNECIMENTO E ASSENTAMENTO. AF_01/2021 | I66: M | J66: COEFICIENTE DE REPRESENTATIVIDADE | K66: 72.56 | L66: CAIXA REFERENCIAL
A67: ASSENTAMENTO DE TUBOS E PECAS | B67: ASTU | C67: FORNEC E/OU ASSENT DE TUBO DE PVC COM JUNTA ELASTICA | D67: 0048 | G67: 90702 | H67: TUBO DE PVC CORRUGADO DE DUPLA PAREDE PARA REDE COLETORA DE ESGOTO, DN 200 MM, JUNTA ELÁSTICA - FORNECIMENTO E ASSENTAMENTO. AF_01/2021 | I67: M | J67: COEFICIENTE DE REPRESENTATIVIDADE | K67: 120.57 | L67: CAIXA REFERENCIAL
A68: ASSENTAMENTO DE TUBOS E PECAS | B68: ASTU | C68: FORNEC E/OU ASSENT DE TUBO DE PVC COM JUNTA ELASTICA | D68: 0048 | G68: 90703 | H68: TUBO DE PVC CORRUGADO DE DUPLA PAREDE PARA REDE COLETORA DE ESGOTO, DN 250 MM, JUNTA ELÁSTICA - FORNECIMENTO E ASSENTAMENTO. AF_01/2021 | I68: M | J68: COEFICIENTE DE REPRESENTATIVIDADE | K68: 190.9 | L68: CAIXA REFERENCIAL
A69: ASSENTAMENTO DE TUBOS E PECAS | B69: ASTU | C69: FORNEC E/OU ASSENT DE TUBO DE PVC COM JUNTA ELASTICA | D69: 0048 | G69: 90704 | H69: TUBO DE PVC CORRUGADO DE DUPLA PAREDE PARA REDE COLETORA DE ESGOTO, DN 300 MM, JUNTA ELÁSTICA - FORNECIMENTO E ASSENTAMENTO. AF_01/2021 | I69: M | J69: COEFICIENTE DE REPRESENTATIVIDADE | K69: 287.17 | L69: CAIXA REFERENCIAL
A70: ASSENTAMENTO DE TUBOS E PECAS | B70: ASTU | C70: FORNEC E/OU ASSENT DE TUBO DE PVC COM JUNTA ELASTICA | D70: 0048 | G70: 90705 | H70: TUBO DE PVC CORRUGADO DE DUPLA PAREDE PARA REDE COLETORA DE ESGOTO, DN 350 MM, JUNTA ELÁSTICA - FORNECIMENTO E ASSENTAMENTO. AF_01/2021 | I70: M | J70: COEFICIENTE DE REPRESENTATIVIDADE | K70: 370.65 | L70: CAIXA REFERENCIAL
A71: ASSENTAMENTO DE TUBOS E PECAS | B71: ASTU | C71: FORNEC E/OU ASSENT DE TUBO DE PVC COM JUNTA ELASTICA | D71: 0048 | G71: 90706 | H71: TUBO DE PVC CORRUGADO DE DUPLA PAREDE PARA REDE COLETORA DE ESGOTO, DN 400 MM, JUNTA ELÁSTICA - FORNECIMENTO E ASSENTAMENTO. AF_01/2021 | I71: M | J71: ATRIBUÍDO SÃO PAULO | K71: 491.6 | L71: CAIXA REFERENCIAL
A72: ASSENTAMENTO DE TUBOS E PECAS | B72: ASTU | C72: FORNEC E/OU ASSENT DE TUBO DE PVC COM JUNTA ELASTICA | D72: 0048 | G72: 90708 | H72: TUBO DE PEAD CORRUGADO DE DUPLA PAREDE PARA REDE COLETORA DE ESGOTO, DN 600 MM, JUNTA ELÁSTICA INTEGRADA - FORNECIMENTO E ASSENTAMENTO. AF_01/2021 | I72: M | J72: ATRIBUÍDO SÃO PAULO | K72: 666.55 | L72: CAIXA REFERENCIAL
A73: ASSENTAMENTO DE TUBOS E PECAS | B73: ASTU | C73: FORNEC E/OU ASSENT DE TUBO DE PVC COM JUNTA ELASTICA | D73: 0048 | G73: 90724 | H73: JUNTA ARGAMASSADA ENTRE TUBO DN 100 MM E O POÇO DE VISITA/ CAIXA DE CONCRETO OU ALVENARIA EM REDES DE ESGOTO. AF_01/2021 | I73: UN | J73: COEFICIENTE DE REPRESENTATIVIDADE | K73: 20.44 | L73: CAIXA REFERENCIAL
A74: ASSENTAMENTO DE TUBOS E PECAS | B74: ASTU | C74: FORNEC E/OU ASSENT DE TUBO DE PVC COM JUNTA ELASTICA | D74: 0048 | G74: 90725 | H74: JUNTA ARGAMASSADA ENTRE TUBO DN 150 MM E O POÇO DE VISITA/ CAIXA DE CONCRETO OU ALVENARIA EM REDES DE ESGOTO. AF_01/2021 | I74: UN | J74: COEFICIENTE DE REPRESENTATIVIDADE | K74: 25.22 | L74: CAIXA REFERENCIAL
A75: ASSENTAMENTO DE TUBOS E PECAS | B75: ASTU | C75: FORNEC E/OU ASSENT DE TUBO DE PVC COM JUNTA ELASTICA | D75: 0048 | G75: 90726 | H75: JUNTA ARGAMASSADA ENTRE TUBO DN 200 MM E O POÇO/ CAIXA DE CONCRETO OU ALVENARIA EM REDES DE ESGOTO. AF_01/2021 | I75: UN | J75: COEFICIENTE DE REPRESENTATIVIDADE | K75: 30.07 | L75: CAIXA REFERENCIAL
A76: ASSENTAMENTO DE TUBOS E PECAS | B76: ASTU | C76: FORNEC E/OU ASSENT DE TUBO DE PVC COM JUNTA ELASTICA | D76: 0048 | G76: 90727 | H76: JUNTA ARGAMASSADA ENTRE TUBO DN 250 MM E O POÇO DE VISITA/ CAIXA DE CONCRETO OU ALVENARIA EM REDES DE ESGOTO. AF_01/2021 | I76: UN | J76: COEFICIENTE DE REPRESENTATIVIDADE | K76: 34.85 | L76: CAIXA REFERENCIAL
A77: ASSENTAMENTO DE TUBOS E PECAS | B77: ASTU | C77: FORNEC E/OU ASSENT DE TUBO DE PVC COM JUNTA ELASTICA | D77: 0048 | G77: 90728 | H77: JUNTA ARGAMASSADA ENTRE TUBO DN 300 MM E O POÇO DE VISITA/ CAIXA DE CONCRETO OU ALVENARIA EM REDES DE ESGOTO. AF_01/2021 | I77: UN | J77: COEFICIENTE DE REPRESENTATIVIDADE | K77: 39.62 | L77: CAIXA REFERENCIAL
A78: ASSENTAMENTO DE TUBOS E PECAS | B78: ASTU | C78: FORNEC E/OU ASSENT DE TUBO DE PVC COM JUNTA ELASTICA | D78: 0048 | G78: 90729 | H78: JUNTA ARGAMASSADA ENTRE TUBO DN 350 MM E O POÇO DE VISITA/ CAIXA DE CONCRETO OU ALVENARIA EM REDES DE ESGOTO. AF_01/2021 | I78: UN | J78: COEFICIENTE DE REPRESENTATIVIDADE | K78: 44.4 | L78: CAIXA REFERENCIAL
A79: ASSENTAMENTO DE TUBOS E PECAS | B79: ASTU | C79: FORNEC E/OU ASSENT DE TUBO DE PVC COM JUNTA ELASTICA | D79: 0048 | G79: 90730 | H79: JUNTA ARGAMASSADA ENTRE TUBO DN 400 MM E O POÇO DE VISITA/ CAIXA DE CONCRETO OU ALVENARIA EM REDES DE ESGOTO. AF_01/2021 | I79: UN | J79: COEFICIENTE DE REPRESENTATIVIDADE | K79: 49.17 | L79: CAIXA REFERENCIAL
A80: ASSENTAMENTO DE TUBOS E PECAS | B80: ASTU | C80: FORNEC E/OU ASSENT DE TUBO DE PVC COM JUNTA ELASTICA | D80: 0048 | G80: 90731 | H80: JUNTA ARGAMASSADA ENTRE TUBO DN 450 MM E O POÇO DE VISITA/ CAIXA DE CONCRETO OU ALVENARIA EM REDES DE ESGOTO. AF_01/2021 | I80: UN | J80: COEFICIENTE DE REPRESENTATIVIDADE | K80: 53.94 | L80: CAIXA REFERENCIAL
A81: ASSENTAMENTO DE TUBOS E PECAS | B81: ASTU | C81: FORNEC E/OU ASSENT DE TUBO DE PVC COM JUNTA ELASTICA | D81: 0048 | G81: 90732 | H81: JUNTA ARGAMASSADA ENTRE TUBO DN 600 MM E O POÇO DE VISITA/ CAIXA DE CONCRETO OU ALVENARIA EM REDES DE ESGOTO. AF_01/2021 | I81: UN | J81: COEFICIENTE DE REPRESENTATIVIDADE | K81: 68.27 | L81: CAIXA REFERENCIAL
A82: ASSENTAMENTO DE TUBOS E PECAS | B82: ASTU | C82: FORNEC E/OU ASSENT DE TUBO DE PVC COM JUNTA ELASTICA | D82: 0048 | G82: 90733 | H82: ASSENTAMENTO DE TUBO DE PVC PARA REDE COLETORA DE ESGOTO DE PAREDE MACIÇA, DN 100 MM, JUNTA ELÁSTICA (NÃO INCLUI FORNECIMENTO). AF_01/2021 | I82: M | J82: COEFICIENTE DE REPRESENTATIVIDADE | K82: 2.83 | L82: CAIXA REFERENCIAL
A83: ASSENTAMENTO DE TUBOS E PECAS | B83: ASTU | C83: FORNEC E/OU ASSENT DE TUBO DE PVC COM JUNTA ELASTICA | D83: 0048 | G83: 90734 | H83: ASSENTAMENTO DE TUBO DE PVC PARA REDE COLETORA DE ESGOTO DE PAREDE MACIÇA, DN 150 MM, JUNTA ELÁSTICA, (NÃO INCLUI FORNECIMENTO). AF_01/2021 | I83: M | J83: COEFICIENTE DE REPRESENTATIVIDADE | K83: 3.35 | L83: CAIXA REFERENCIAL
A84: ASSENTAMENTO DE TUBOS E PECAS | B84: ASTU | C84: FORNEC E/OU ASSENT DE TUBO DE PVC COM JUNTA ELASTICA | D84: 0048 | G84: 90735 | H84: ASSENTAMENTO DE TUBO DE PVC PARA REDE COLETORA DE ESGOTO DE PAREDE MACIÇA, DN 200 MM, JUNTA ELÁSTICA (NÃO INCLUI FORNECIMENTO). AF_01/2021 | I84: M | J84: COEFICIENTE DE REPRESENTATIVIDADE | K84: 3.86 | L84: CAIXA REFERENCIAL
A85: ASSENTAMENTO DE TUBOS E PECAS | B85: ASTU | C85: FORNEC E/OU ASSENT DE TUBO DE PVC COM JUNTA ELASTICA | D85: 0048 | G85: 90736 | H85: ASSENTAMENTO DE TUBO DE PVC PARA REDE COLETORA DE ESGOTO DE PAREDE MACIÇA, DN 250 MM, JUNTA ELÁSTICA (NÃO INCLUI FORNECIMENTO). AF_01/2021 | I85: M | J85: COEFICIENTE DE REPRESENTATIVIDADE | K85: 4.39 | L85: CAIXA REFERENCIAL
A86: ASSENTAMENTO DE TUBOS E PECAS | B86: ASTU | C86: FORNEC E/OU ASSENT DE TUBO DE PVC COM JUNTA ELASTICA | D86: 0048 | G86: 90737 | H86: ASSENTAMENTO DE TUBO DE PVC PARA REDE COLETORA DE ESGOTO DE PAREDE MACIÇA, DN 300 MM, JUNTA ELÁSTICA (NÃO INCLUI FORNECIMENTO). AF_01/2021 | I86: M | J86: COEFICIENTE DE REPRESENTATIVIDADE | K86: 4.91 | L86: CAIXA REFERENCIAL
A87: ASSENTAMENTO DE TUBOS E PECAS | B87: ASTU | C87: FORNEC E/OU ASSENT DE TUBO DE PVC COM JUNTA ELASTICA | D87: 0048 | G87: 90738 | H87: ASSENTAMENTO DE TUBO DE PVC PARA REDE COLETORA DE ESGOTO DE PAREDE MACIÇA, DN 350 MM, JUNTA ELÁSTICA (NÃO INCLUI FORNECIMENTO). AF_01/2021 | I87: M | J87: COEFICIENTE DE REPRESENTATIVIDADE | K87: 5.44 | L87: CAIXA REFERENCIAL
A88: ASSENTAMENTO DE TUBOS E PECAS | B88: ASTU | C88: FORNEC E/OU ASSENT DE TUBO DE PVC COM JUNTA ELASTICA | D88: 0048 | G88: 90739 | H88: ASSENTAMENTO DE TUBO DE PVC PARA REDE COLETORA DE ESGOTO DE PAREDE MACIÇA, DN 400 MM, JUNTA ELÁSTICA (NÃO INCLUI FORNECIMENTO). AF_01/2021 | I88: M | J88: ATRIBUÍDO SÃO PAULO | K88: 7.76 | L88: CAIXA REFERENCIAL
A89: ASSENTAMENTO DE TUBOS E PECAS | B89: ASTU | C89: FORNEC E/OU ASSENT DE TUBO DE PVC COM JUNTA ELASTICA | D89: 0048 | G89: 90740 | H89: ASSENTAMENTO DE TUBO DE PVC CORRUGADO DE DUPLA PAREDE PARA REDE COLETORA DE ESGOTO, DN 150 MM, JUNTA ELÁSTICA (NÃO INCLUI FORNECIMENTO). AF_01/2021 | I89: M | J89: COEFICIENTE DE REPRESENTATIVIDADE | K89: 3.72 | L89: CAIXA REFERENCIAL
A90: ASSENTAMENTO DE TUBOS E PECAS | B90: ASTU | C90: FORNEC E/OU ASSENT DE TUBO DE PVC COM JUNTA ELASTICA | D90: 0048 | G90: 90741 | H90: ASSENTAMENTO DE TUBO DE PVC CORRUGADO DE DUPLA PAREDE PARA REDE COLETORA DE ESGOTO, DN 200 MM, JUNTA ELÁSTICA (NÃO INCLUI FORNECIMENTO). AF_01/2021 | I90: M | J90: COEFICIENTE DE REPRESENTATIVIDADE | K90: 4.25 | L90: CAIXA REFERENCIAL
A91: ASSENTAMENTO DE TUBOS E PECAS | B91: ASTU | C91: FORNEC E/OU ASSENT DE TUBO DE PVC COM JUNTA ELASTICA | D91: 0048 | G91: 90742 | H91: ASSENTAMENTO DE TUBO DE PVC CORRUGADO DE DUPLA PAREDE PARA REDE COLETORA DE ESGOTO, DN 250 MM, JUNTA ELÁSTICA (NÃO INCLUI FORNECIMENTO). AF_01/2021 | I91: M | J91: COEFICIENTE DE REPRESENTATIVIDADE | K91: 4.77 | L91: CAIXA REFERENCIAL
A92: ASSENTAMENTO DE TUBOS E PECAS | B92: ASTU | C92: FORNEC E/OU ASSENT DE TUBO DE PVC COM JUNTA ELASTICA | D92: 0048 | G92: 90743 | H92: ASSENTAMENTO DE TUBO DE PVC CORRUGADO DE DUPLA PAREDE PARA REDE COLETORA DE ESGOTO, DN 300 MM, JUNTA ELÁSTICA (NÃO INCLUI FORNECIMENTO). AF_01/2021 | I92: M | J92: COEFICIENTE DE REPRESENTATIVIDADE | K92: 5.29 | L92: CAIXA REFERENCIAL
A93: ASSENTAMENTO DE TUBOS E PECAS | B93: ASTU | C93: FORNEC E/OU ASSENT DE TUBO DE PVC COM JUNTA ELASTICA | D93: 0048 | G93: 90744 | H93: ASSENTAMENTO DE TUBO DE PVC CORRUGADO DE DUPLA PAREDE PARA REDE COLETORA DE ESGOTO, DN 350 MM, JUNTA ELÁSTICA (NÃO INCLUI FORNECIMENTO). AF_01/2021 | I93: M | J93: COEFICIENTE DE REPRESENTATIVIDADE | K93: 5.81 | L93: CAIXA REFERENCIAL
A94: ASSENTAMENTO DE TUBOS E PECAS | B94: ASTU | C94: FORNEC E/OU ASSENT DE TUBO DE PVC COM JUNTA ELASTICA | D94: 0048 | G94: 90745 | H94: ASSENTAMENTO DE TUBO DE PVC CORRUGADO DE DUPLA PAREDE PARA REDE COLETORA DE ESGOTO, DN 400 MM, JUNTA ELÁSTICA (NÃO INCLUI FORNECIMENTO). AF_01/2021 | I94: M | J94: ATRIBUÍDO SÃO PAULO | K94: 8.67 | L94: CAIXA REFERENCIAL
A95: ASSENTAMENTO DE TUBOS E PECAS | B95: ASTU | C95: FORNEC E/OU ASSENT DE TUBO DE PVC COM JUNTA ELASTICA | D95: 0048 | G95: 90746 | H95: ASSENTAMENTO DE TUBO DE PEAD CORRUGADO DE DUPLA PAREDE PARA REDE COLETORA DE ESGOTO, DN 450 MM, JUNTA ELÁSTICA INTEGRADA (NÃO INCLUI FORNECIMENTO). AF_01/2021 | I95: M | J95: COEFICIENTE DE REPRESENTATIVIDADE | K95: 3.05 | L95: CAIXA REFERENCIAL
A96: ASSENTAMENTO DE TUBOS E PECAS | B96: ASTU | C96: FORNEC E/OU ASSENT DE TUBO DE PVC COM JUNTA ELASTICA | D96: 0048 | G96: 90747 | H96: ASSENTAMENTO DE TUBO DE PEAD CORRUGADO DE DUPLA PAREDE PARA REDE COLETORA DE ESGOTO, DN 600 MM, JUNTA ELÁSTICA INTEGRADA (NÃO INCLUI FORNECIMENTO). AF_01/2021 | I96: M | J96: ATRIBUÍDO SÃO PAULO | K96: 15.16 | L96: CAIXA REFERENCIAL
A97: ASSENTAMENTO DE TUBOS E PECAS | B97: ASTU | C97: FORNEC E/OU ASSENT DE TUBO DE PVC COM JUNTA ELASTICA | D97: 0048 | G97: 94869 | H97: TUBO DE PEAD CORRUGADO DE DUPLA PAREDE PARA REDE COLETORA DE ESGOTO, DN 250 MM, JUNTA ELÁSTICA INTEGRADA - FORNECIMENTO E ASSENTAMENTO. AF_01/2021 | I97: M | J97: COEFICIENTE DE REPRESENTATIVIDADE | K97: 117.44 | L97: CAIXA REFERENCIAL
A98: ASSENTAMENTO DE TUBOS E PECAS | B98: ASTU | C98: FORNEC E/OU ASSENT DE TUBO DE PVC COM JUNTA ELASTICA | D98: 0048 | G98: 94870 | H98: ASSENTAMENTO DE TUBO DE PEAD CORRUGADO DE DUPLA PAREDE PARA REDE COLETORA DE ESGOTO, DN 250 MM, JUNTA ELÁSTICA INTEGRADA (NÃO INCLUI FORNECIMENTO). AF_01/2021 | I98: M | J98: COEFICIENTE DE REPRESENTATIVIDADE | K98: 1.68 | L98: CAIXA REFERENCIAL
A99: ASSENTAMENTO DE TUBOS E PECAS | B99: ASTU | C99: FORNEC E/OU ASSENT DE TUBO DE PVC COM JUNTA ELASTICA | D99: 0048 | G99: 94871 | H99: TUBO DE PEAD CORRUGADO DE DUPLA PAREDE PARA REDE COLETORA DE ESGOTO, DN 300 MM, JUNTA ELÁSTICA INTEGRADA - FORNECIMENTO E ASSENTAMENTO. AF_01/2021 | I99: M | J99: COEFICIENTE DE REPRESENTATIVIDADE | K99: 183.69 | L99: CAIXA REFERENCIAL
A100: ASSENTAMENTO DE TUBOS E PECAS | B100: ASTU | C100: FORNEC E/OU ASSENT DE TUBO DE PVC COM JUNTA ELASTICA | D100: 0048 | G100: 94872 | H100: ASSENTAMENTO DE TUBO DE PEAD CORRUGADO DE DUPLA PAREDE PARA REDE COLETORA DE ESGOTO, DN 300 MM, JUNTA ELÁSTICA INTEGRADA (NÃO INCLUI FORNECIMENTO). AF_01/2021 | I100: M | J100: COEFICIENTE DE REPRESENTATIVIDADE | K100: 2.34 | L100: CAIXA REFERENCIAL
A101: ASSENTAMENTO DE TUBOS E PECAS | B101: ASTU | C101: FORNEC E/OU ASSENT DE TUBO DE PVC COM JUNTA ELASTICA | D101: 0048 | G101: 94875 | H101: TUBO DE PEAD CORRUGADO DE DUPLA PAREDE PARA REDE COLETORA DE ESGOTO, DN 800 MM, JUNTA ELÁSTICA INTEGRADA - FORNECIMENTO E ASSENTAMENTO. AF_01/2021 | I101: M | J101: ATRIBUÍDO SÃO PAULO | K101: 1082.27 | L101: CAIXA REFERENCIAL
A102: ASSENTAMENTO DE TUBOS E PECAS | B102: ASTU | C102: FORNEC E/OU ASSENT DE TUBO DE PVC COM JUNTA ELASTICA | D102: 0048 | G102: 94876 | H102: ASSENTAMENTO DE TUBO DE PEAD CORRUGADO DE DUPLA PAREDE PARA REDE COLETORA DE ESGOTO, DN 800 MM, JUNTA ELÁSTICA INTEGRADA (NÃO INCLUI FORNECIMENTO). AF_01/2021 | I102: M | J102: ATRIBUÍDO SÃO PAULO | K102: 25.57 | L102: CAIXA REFERENCIAL
A103: ASSENTAMENTO DE TUBOS E PECAS | B103: ASTU | C103: FORNEC E/OU ASSENT DE TUBO DE PVC COM JUNTA ELASTICA | D103: 0048 | G103: 94878 | H103: ASSENTAMENTO DE TUBO DE PEAD CORRUGADO DE DUPLA PAREDE PARA REDE COLETORA DE ESGOTO, DN 900 MM, JUNTA ELÁSTICA INTEGRADA (NÃO INCLUI FORNECIMENTO). AF_01/2021 | I103: M | J103: ATRIBUÍDO SÃO PAULO | K103: 29.55 | L103: CAIXA REFERENCIAL
A104: ASSENTAMENTO DE TUBOS E PECAS | B104: ASTU | C104: FORNEC E/OU ASSENT DE TUBO DE PVC COM JUNTA ELASTICA | D104: 0048 | G104: 94879 | H104: TUBO DE PEAD CORRUGADO DE DUPLA PAREDE PARA REDE COLETORA DE ESGOTO, DN 1000 MM, JUNTA ELÁSTICA INTEGRADA - FORNECIMENTO E ASSENTAMENTO. AF_01/2021 | I104: M | J104: ATRIBUÍDO SÃO PAULO | K104: 1666.04 | L104: CAIXA REFERENCIAL
A105: ASSENTAMENTO DE TUBOS E PECAS | B105: ASTU | C105: FORNEC E/OU ASSENT DE TUBO DE PVC COM JUNTA ELASTICA | D105: 0048 | G105: 94880 | H105: ASSENTAMENTO DE TUBO DE PEAD CORRUGADO DE DUPLA PAREDE PARA REDE COLETORA DE ESGOTO, DN 1000 MM, JUNTA ELÁSTICA INTEGRADA (NÃO INCLUI FORNECIMENTO). AF_01/2021 | I105: M | J105: ATRIBUÍDO SÃO PAULO | K105: 38.2 | L105: CAIXA REFERENCIAL
A106: ASSENTAMENTO DE TUBOS E PECAS | B106: ASTU | C106: FORNEC E/OU ASSENT DE TUBO DE PVC COM JUNTA ELASTICA | D106: 0048 | G106: 94881 | H106: TUBO DE PEAD CORRUGADO DE DUPLA PAREDE PARA REDE COLETORA DE ESGOTO, DN 1200 MM, JUNTA ELÁSTICA INTEGRADA - FORNECIMENTO E ASSENTAMENTO. AF_01/2021 | I106: M | J106: ATRIBUÍDO SÃO PAULO | K106: 2294.12 | L106: CAIXA REFERENCIAL
A107: ASSENTAMENTO DE TUBOS E PECAS | B107: ASTU | C107: FORNEC E/OU ASSENT DE TUBO DE PVC COM JUNTA ELASTICA | D107: 0048 | G107: 94882 | H107: ASSENTAMENTO DE TUBO DE PEAD CORRUGADO DE DUPLA PAREDE PARA REDE COLETORA DE ESGOTO, DN 1200 MM, JUNTA ELÁSTICA INTEGRADA (NÃO INCLUI FORNECIMENTO). AF_01/2021 | I107: M | J107: ATRIBUÍDO SÃO PAULO | K107: 44.34 | L107: CAIXA REFERENCIAL
A108: ASSENTAMENTO DE TUBOS E PECAS | B108: ASTU | C108: FORNEC E/OU ASSENT DE TUBO DE PVC COM JUNTA ELASTICA | D108: 0048 | G108: 94884 | H108: ASSENTAMENTO DE TUBO DE PEAD CORRUGADO DE DUPLA PAREDE PARA REDE COLETORA DE ESGOTO, DN 1500 MM, JUNTA ELÁSTICA INTEGRADA (NÃO INCLUI FORNECIMENTO). AF_01/2021 | I108: M | J108: ATRIBUÍDO SÃO PAULO | K108: 56.81 | L108: CAIXA REFERENCIAL
A109: ASSENTAMENTO DE TUBOS E PECAS | B109: ASTU | C109: FORNEC E/OU ASSENT DE TUBO DE PVC COM JUNTA ELASTICA | D109: 0048 | G109: 97121 | H109: ASSENTAMENTO DE TUBO DE PVC PBA PARA REDE DE ÁGUA, DN 50 MM, JUNTA ELÁSTICA INTEGRADA, INSTALADO EM LOCAL COM NÍVEL ALTO DE INTERFERÊNCIAS (NÃO INCLUI FORNECIMENTO). AF_11/2017 | I109: M | J109: COEFICIENTE DE REPRESENTATIVIDADE | K109: 1.69 | L109: CAIXA REFERENCIAL
A110: ASSENTAMENTO DE TUBOS E PECAS | B110: ASTU | C110: FORNEC E/OU ASSENT DE TUBO DE PVC COM JUNTA ELASTICA | D110: 0048 | G110: 97122 | H110: ASSENTAMENTO DE TUBO DE PVC PBA PARA REDE DE ÁGUA, DN 75 MM, JUNTA ELÁSTICA INTEGRADA, INSTALADO EM LOCAL COM NÍVEL ALTO DE INTERFERÊNCIAS (NÃO INCLUI FORNECIMENTO). AF_11/2017 | I110: M | J110: COEFICIENTE DE REPRESENTATIVIDADE | K110: 2.36 | L110: CAIXA REFERENCIAL
A111: ASSENTAMENTO DE TUBOS E PECAS | B111: ASTU | C111: FORNEC E/OU ASSENT DE TUBO DE PVC COM JUNTA ELASTICA | D111: 0048 | G111: 97123 | H111: ASSENTAMENTO DE TUBO DE PVC PBA PARA REDE DE ÁGUA, DN 100 MM, JUNTA ELÁSTICA INTEGRADA, INSTALADO EM LOCAL COM NÍVEL ALTO DE INTERFERÊNCIAS (NÃO INCLUI FORNECIMENTO). AF_11/2017 | I111: M | J111: COEFICIENTE DE REPRESENTATIVIDADE | K111: 2.99 | L111: CAIXA REFERENCIAL
A112: ASSENTAMENTO DE TUBOS E PECAS | B112: ASTU | C112: FORNEC E/OU ASSENT DE TUBO DE PVC COM JUNTA ELASTICA | D112: 0048 | G112: 97124 | H112: ASSENTAMENTO DE TUBO DE PVC PBA PARA REDE DE ÁGUA, DN 50 MM, JUNTA ELÁSTICA INTEGRADA, INSTALADO EM LOCAL COM NÍVEL BAIXO DE INTERFERÊNCIAS (NÃO INCLUI FORNECIMENTO). AF_11/2017 | I112: M | J112: COEFICIENTE DE REPRESENTATIVIDADE | K112: 0.75 | L112: CAIXA REFERENCIAL
A113: ASSENTAMENTO DE TUBOS E PECAS | B113: ASTU | C113: FORNEC E/OU ASSENT DE TUBO DE PVC COM JUNTA ELASTICA | D113: 0048 | G113: 97125 | H113: ASSENTAMENTO DE TUBO DE PVC PBA PARA REDE DE ÁGUA, DN 75 MM, JUNTA ELÁSTICA INTEGRADA, INSTALADO EM LOCAL COM NÍVEL BAIXO DE INTERFERÊNCIAS (NÃO INCLUI FORNECIMENTO). AF_11/2017 | I113: M | J113: COEFICIENTE DE REPRESENTATIVIDADE | K113: 1.07 | L113: CAIXA REFERENCIAL
A114: ASSENTAMENTO DE TUBOS E PECAS | B114: ASTU | C114: FORNEC E/OU ASSENT DE TUBO DE PVC COM JUNTA ELASTICA | D114: 0048 | G114: 97126 | H114: ASSENTAMENTO DE TUBO DE PVC PBA PARA REDE DE ÁGUA, DN 100 MM, JUNTA ELÁSTICA INTEGRADA, INSTALADO EM LOCAL COM NÍVEL BAIXO DE INTERFERÊNCIAS (NÃO INCLUI FORNECIMENTO). AF_11/2017 | I114: M | J114: COEFICIENTE DE REPRESENTATIVIDADE | K114: 1.37 | L114: CAIXA REFERENCIAL
A115: ASSENTAMENTO DE TUBOS E PECAS | B115: ASTU | C115: FORNEC E/OU ASSENT DE TUBO DE PVC COM JUNTA ELASTICA | D115: 0048 | G115: 102264 | H115: TUBO DE PVC BRANCO PARA REDE COLETORA DE ESGOTO CONDOMINIAL DE PAREDE MACIÇA, DN 100 MM, JUNTA ELÁSTICA - FORNECIMENTO E ASSENTAMENTO. AF_01/2021 | I115: M | J115: COEFICIENTE DE REPRESENTATIVIDADE | K115: 20.6 | L115: CAIXA REFERENCIAL
A116: ASSENTAMENTO DE TUBOS E PECAS | B116: ASTU | C116: FORNEC E/OU ASSENT DE TUBO DE PVC COM JUNTA ELASTICA | D116: 0048 | G116: 102265 | H116: JUNTA ARGAMASSADA ENTRE TUBO DN 800 MM E O POÇO DE VISITA/ CAIXA DE CONCRETO OU ALVENARIA EM REDES DE ESGOTO. AF_01/2021 | I116: UN | J116: COEFICIENTE DE REPRESENTATIVIDADE | K116: 87.36 | L116: CAIXA REFERENCIAL
A117: ASSENTAMENTO DE TUBOS E PECAS | B117: ASTU | C117: FORNEC E/OU ASSENT DE TUBO DE PVC COM JUNTA ELASTICA | D117: 0048 | G117: 102266 | H117: JUNTA ARGAMASSADA ENTRE TUBO DN 900 MM E O POÇO DE VISITA/ CAIXA DE CONCRETO OU ALVENARIA EM REDES DE ESGOTO. AF_01/2021 | I117: UN | J117: COEFICIENTE DE REPRESENTATIVIDADE | K117: 96.9 | L117: CAIXA REFERENCIAL
A118: ASSENTAMENTO DE TUBOS E PECAS | B118: ASTU | C118: FORNEC E/OU ASSENT DE TUBO DE PVC COM JUNTA ELASTICA | D118: 0048 | G118: 102267 | H118: JUNTA ARGAMASSADA ENTRE TUBO DN 1000 MM E O POÇO DE VISITA/ CAIXA DE CONCRETO OU ALVENARIA EM REDES DE ESGOTO. AF_01/2021 | I118: UN | J118: COEFICIENTE DE REPRESENTATIVIDADE | K118: 111.31 | L118: CAIXA REFERENCIAL
A119: ASSENTAMENTO DE TUBOS E PECAS | B119: ASTU | C119: FORNEC E/OU ASSENT DE TUBO DE PVC COM JUNTA ELASTICA | D119: 0048 | G119: 102268 | H119: JUNTA ARGAMASSADA ENTRE TUBO DN 1200 MM E O POÇO DE VISITA/ CAIXA DE CONCRETO OU ALVENARIA EM REDES DE ESGOTO. AF_01/2021 | I119: UN | J119: COEFICIENTE DE REPRESENTATIVIDADE | K119: 125.63 | L119: CAIXA REFERENCIAL
A120: ASSENTAMENTO DE TUBOS E PECAS | B120: ASTU | C120: FORNEC E/OU ASSENT DE TUBO DE PVC COM JUNTA ELASTICA | D120: 0048 | G120: 102269 | H120: JUNTA ARGAMASSADA ENTRE TUBO DN 1500 MM E O POÇO DE VISITA/ CAIXA DE CONCRETO OU ALVENARIA EM REDES DE ESGOTO. AF_01/2021 | I120: UN | J120: COEFICIENTE DE REPRESENTATIVIDADE | K120: 154.28 | L120: CAIXA REFERENCIAL
A121: ASSENTAMENTO DE TUBOS E PECAS | B121: ASTU | C121: FORNEC E/OU ASSENT DE TUBO DE CONCRETO COM JUNTA ELASTICA | D121: 0051 | G121: 92833 | H121: TUBO DE CONCRETO PARA REDES COLETORAS DE ESGOTO SANITÁRIO, DIÂMETRO DE 300 MM, JUNTA ELÁSTICA, INSTALADO EM LOCAL COM BAIXO NÍVEL DE INTERFERÊNCIAS - FORNECIMENTO E ASSENTAMENTO. AF_12/2015 | I121: M | J121: ATRIBUÍDO SÃO PAULO | K121: 207.32 | L121: CAIXA REFERENCIAL
A122: ASSENTAMENTO DE TUBOS E PECAS | B122: ASTU | C122: FORNEC E/OU ASSENT DE TUBO DE CONCRETO COM JUNTA ELASTICA | D122: 0051 | G122: 92834 | H122: ASSENTAMENTO DE TUBO DE CONCRETO PARA REDES COLETORAS DE ESGOTO SANITÁRIO, DIÂMETRO DE 300 MM, JUNTA ELÁSTICA, INSTALADO EM LOCAL COM BAIXO NÍVEL DE INTERFERÊNCIAS (NÃO INCLUI FORNECIMENTO). AF_12/2015 | I122: M | J122: ATRIBUÍDO SÃO PAULO | K122: 8.11 | L122: CAIXA REFERENCIAL
A123: ASSENTAMENTO DE TUBOS E PECAS | B123: ASTU | C123: FORNEC E/OU ASSENT DE TUBO DE CONCRETO COM JUNTA ELASTICA | D123: 0051 | G123: 92835 | H123: TUBO DE CONCRETO PARA REDES COLETORAS DE ESGOTO SANITÁRIO, DIÂMETRO DE 400 MM, JUNTA ELÁSTICA, INSTALADO EM LOCAL COM BAIXO NÍVEL DE INTERFERÊNCIAS - FORNECIMENTO E ASSENTAMENTO. AF_12/2015 | I123: M | J123: ATRIBUÍDO SÃO PAULO | K123: 217.66 | L123: CAIXA REFERENCIAL
A124: ASSENTAMENTO DE TUBOS E PECAS | B124: ASTU | C124: FORNEC E/OU ASSENT DE TUBO DE CONCRETO COM JUNTA ELASTICA | D124: 0051 | G124: 92836 | H124: ASSENTAMENTO DE TUBO DE CONCRETO PARA REDES COLETORAS DE ESGOTO SANITÁRIO, DIÂMETRO DE 400 MM, JUNTA ELÁSTICA, INSTALADO EM LOCAL COM BAIXO NÍVEL DE INTERFERÊNCIAS (NÃO INCLUI FORNECIMENTO). AF_12/2015 | I124: M | J124: ATRIBUÍDO SÃO PAULO | K124: 10.35 | L124: CAIXA REFERENCIAL
A125: ASSENTAMENTO DE TUBOS E PECAS | B125: ASTU | C125: FORNEC E/OU ASSENT DE TUBO DE CONCRETO COM JUNTA ELASTICA | D125: 0051 | G125: 92837 | H125: TUBO DE CONCRETO PARA REDES COLETORAS DE ESGOTO SANITÁRIO, DIÂMETRO DE 500 MM, JUNTA ELÁSTICA, INSTALADO EM LOCAL COM BAIXO NÍVEL DE INTERFERÊNCIAS - FORNECIMENTO E ASSENTAMENTO. AF_12/2015 | I125: M | J125: ATRIBUÍDO SÃO PAULO | K125: 381.95 | L125: CAIXA REFERENCIAL
A126: ASSENTAMENTO DE TUBOS E PECAS | B126: ASTU | C126: FORNEC E/OU ASSENT DE TUBO DE CONCRETO COM JUNTA ELASTICA | D126: 0051 | G126: 92838 | H126: ASSENTAMENTO DE TUBO DE CONCRETO PARA REDES COLETORAS DE ESGOTO SANITÁRIO, DIÂMETRO DE 500 MM, JUNTA ELÁSTICA, INSTALADO EM LOCAL COM BAIXO NÍVEL DE INTERFERÊNCIAS (NÃO INCLUI FORNECIMENTO). AF_12/2015 | I126: M | J126: ATRIBUÍDO SÃO PAULO | K126: 12.41 | L126: CAIXA REFERENCIAL
A127: ASSENTAMENTO DE TUBOS E PECAS | B127: ASTU | C127: FORNEC E/OU ASSENT DE TUBO DE CONCRETO COM JUNTA ELASTICA | D127: 0051 | G127: 92839 | H127: TUBO DE CONCRETO PARA REDES COLETORAS DE ESGOTO SANITÁRIO, DIÂMETRO DE 600 MM, JUNTA ELÁSTICA, INSTALADO EM LOCAL COM BAIXO NÍVEL DE INTERFERÊNCIAS - FORNECIMENTO E ASSENTAMENTO. AF_12/2015 | I127: M | J127: ATRIBUÍDO SÃO PAULO | K127: 467.1 | L127: CAIXA REFERENCIAL
A128: ASSENTAMENTO DE TUBOS E PECAS | B128: ASTU | C128: FORNEC E/OU ASSENT DE TUBO DE CONCRETO COM JUNTA ELASTICA | D128: 0051 | G128: 92840 | H128: ASSENTAMENTO DE TUBO DE CONCRETO PARA REDES COLETORAS DE ESGOTO SANITÁRIO, DIÂMETRO DE 600 MM, JUNTA ELÁSTICA, INSTALADO EM LOCAL COM BAIXO NÍVEL DE INTERFERÊNCIAS (NÃO INCLUI FORNECIMENTO). AF_12/2015 | I128: M | J128: ATRIBUÍDO SÃO PAULO | K128: 14.71 | L128: CAIXA REFERENCIAL
A129: ASSENTAMENTO DE TUBOS E PECAS | B129: ASTU | C129: FORNEC E/OU ASSENT DE TUBO DE CONCRETO COM JUNTA ELASTICA | D129: 0051 | G129: 92841 | H129: TUBO DE CONCRETO PARA REDES COLETORAS DE ESGOTO SANITÁRIO, DIÂMETRO DE 700 MM, JUNTA ELÁSTICA, INSTALADO EM LOCAL COM BAIXO NÍVEL DE INTERFERÊNCIAS - FORNECIMENTO E ASSENTAMENTO. AF_12/2015 | I129: M | J129: ATRIBUÍDO SÃO PAULO | K129: 609.41 | L129: CAIXA REFERENCIAL
A130: ASSENTAMENTO DE TUBOS E PECAS | B130: ASTU | C130: FORNEC E/OU ASSENT DE TUBO DE CONCRETO COM JUNTA ELASTICA | D130: 0051 | G130: 92842 | H130: ASSENTAMENTO DE TUBO DE CONCRETO PARA REDES COLETORAS DE ESGOTO SANITÁRIO, DIÂMETRO DE 700 MM, JUNTA ELÁSTICA, INSTALADO EM LOCAL COM BAIXO NÍVEL DE INTERFERÊNCIAS (NÃO INCLUI FORNECIMENTO). AF_12/2015 | I130: M | J130: ATRIBUÍDO SÃO PAULO | K130: 16.79 | L130: CAIXA REFERENCIAL
A131: ASSENTAMENTO DE TUBOS E PECAS | B131: ASTU | C131: FORNEC E/OU ASSENT DE TUBO DE CONCRETO COM JUNTA ELASTICA | D131: 0051 | G131: 92843 | H131: TUBO DE CONCRETO PARA REDES COLETORAS DE ESGOTO SANITÁRIO, DIÂMETRO DE 800 MM, JUNTA ELÁSTICA, INSTALADO EM LOCAL COM BAIXO NÍVEL DE INTERFERÊNCIAS - FORNECIMENTO E ASSENTAMENTO. AF_12/2015 | I131: M | J131: ATRIBUÍDO SÃO PAULO | K131: 633.44 | L131: CAIXA REFERENCIAL
A132: ASSENTAMENTO DE TUBOS E PECAS | B132: ASTU | C132: FORNEC E/OU ASSENT DE TUBO DE CONCRETO COM JUNTA ELASTICA | D132: 0051 | G132: 92844 | H132: ASSENTAMENTO DE TUBO DE CONCRETO PARA REDES COLETORAS DE ESGOTO SANITÁRIO, DIÂMETRO DE 800 MM, JUNTA ELÁSTICA, INSTALADO EM LOCAL COM BAIXO NÍVEL DE INTERFERÊNCIAS (NÃO INCLUI FORNECIMENTO). AF_12/2015 | I132: M | J132: ATRIBUÍDO SÃO PAULO | K132: 19.09 | L132: CAIXA REFERENCIAL
A133: ASSENTAMENTO DE TUBOS E PECAS | B133: ASTU | C133: FORNEC E/OU ASSENT DE TUBO DE CONCRETO COM JUNTA ELASTICA | D133: 0051 | G133: 92845 | H133: TUBO DE CONCRETO PARA REDES COLETORAS DE ESGOTO SANITÁRIO, DIÂMETRO DE 900 MM, JUNTA ELÁSTICA, INSTALADO EM LOCAL COM BAIXO NÍVEL DE INTERFERÊNCIAS - FORNECIMENTO E ASSENTAMENTO. AF_12/2015 | I133: M | J133: ATRIBUÍDO SÃO PAULO | K133: 934.64 | L133: CAIXA REFERENCIAL
A134: ASSENTAMENTO DE TUBOS E PECAS | B134: ASTU | C134: FORNEC E/OU ASSENT DE TUBO DE CONCRETO COM JUNTA ELASTICA | D134: 0051 | G134: 92846 | H134: ASSENTAMENTO DE TUBO DE CONCRETO PARA REDES COLETORAS DE ESGOTO SANITÁRIO, DIÂMETRO DE 900 MM, JUNTA ELÁSTICA, INSTALADO EM LOCAL COM BAIXO NÍVEL DE INTERFERÊNCIAS (NÃO INCLUI FORNECIMENTO). AF_12/2015 | I134: M | J134: ATRIBUÍDO SÃO PAULO | K134: 21.16 | L134: CAIXA REFERENCIAL
A135: ASSENTAMENTO DE TUBOS E PECAS | B135: ASTU | C135: FORNEC E/OU ASSENT DE TUBO DE CONCRETO COM JUNTA ELASTICA | D135: 0051 | G135: 92847 | H135: TUBO DE CONCRETO PARA REDES COLETORAS DE ESGOTO SANITÁRIO, DIÂMETRO DE 1000 MM, JUNTA ELÁSTICA, INSTALADO EM LOCAL COM BAIXO NÍVEL DE INTERFERÊNCIAS - FORNECIMENTO E ASSENTAMENTO. AF_12/2015 | I135: M | J135: ATRIBUÍDO SÃO PAULO | K135: 964.11 | L135: CAIXA REFERENCIAL
A136: ASSENTAMENTO DE TUBOS E PECAS | B136: ASTU | C136: FORNEC E/OU ASSENT DE TUBO DE CONCRETO COM JUNTA ELASTICA | D136: 0051 | G136: 92848 | H136: ASSENTAMENTO DE TUBO DE CONCRETO PARA REDES COLETORAS DE ESGOTO SANITÁRIO, DIÂMETRO DE 1000 MM, JUNTA ELÁSTICA, INSTALADO EM LOCAL COM BAIXO NÍVEL DE INTERFERÊNCIAS (NÃO INCLUI FORNECIMENTO). AF_12/2015 | I136: M | J136: ATRIBUÍDO SÃO PAULO | K136: 23.49 | L136: CAIXA REFERENCIAL
A137: ASSENTAMENTO DE TUBOS E PECAS | B137: ASTU | C137: FORNEC E/OU ASSENT DE TUBO DE CONCRETO COM JUNTA ELASTICA | D137: 0051 | G137: 92849 | H137: TUBO DE CONCRETO PARA REDES COLETORAS DE ESGOTO SANITÁRIO, DIÂMETRO DE 300 MM, JUNTA ELÁSTICA, INSTALADO EM LOCAL COM ALTO NÍVEL DE INTERFERÊNCIAS - FORNECIMENTO E ASSENTAMENTO. AF_12/2015 | I137: M | J137: ATRIBUÍDO SÃO PAULO | K137: 214.53 | L137: CAIXA REFERENCIAL
A138: ASSENTAMENTO DE TUBOS E PECAS | B138: ASTU | C138: FORNEC E/OU ASSENT DE TUBO DE CONCRETO COM JUNTA ELASTICA | D138: 0051 | G138: 92850 | H138: ASSENTAMENTO DE TUBO DE CONCRETO PARA REDES COLETORAS DE ESGOTO SANITÁRIO, DIÂMETRO DE 300 MM, JUNTA ELÁSTICA, INSTALADO EM LOCAL COM ALTO NÍVEL DE INTERFERÊNCIAS (NÃO INCLUI FORNECIMENTO). AF_12/2015 | I138: M | J138: ATRIBUÍDO SÃO PAULO | K138: 15.32 | L138: CAIXA REFERENCIAL
A139: ASSENTAMENTO DE TUBOS E PECAS | B139: ASTU | C139: FORNEC E/OU ASSENT DE TUBO DE CONCRETO COM JUNTA ELASTICA | D139: 0051 | G139: 92851 | H139: TUBO DE CONCRETO PARA REDES COLETORAS DE ESGOTO SANITÁRIO, DIÂMETRO DE 400 MM, JUNTA ELÁSTICA, INSTALADO EM LOCAL COM ALTO NÍVEL DE INTERFERÊNCIAS - FORNECIMENTO E ASSENTAMENTO. AF_12/2015 | I139: M | J139: ATRIBUÍDO SÃO PAULO | K139: 226.64 | L139: CAIXA REFERENCIAL
A140: ASSENTAMENTO DE TUBOS E PECAS | B140: ASTU | C140: FORNEC E/OU ASSENT DE TUBO DE CONCRETO COM JUNTA ELASTICA | D140: 0051 | G140: 92852 | H140: ASSENTAMENTO DE TUBO DE CONCRETO PARA REDES COLETORAS DE ESGOTO SANITÁRIO, DIÂMETRO DE 400 MM, JUNTA ELÁSTICA, INSTALADO EM LOCAL COM ALTO NÍVEL DE INTERFERÊNCIAS (NÃO INCLUI FORNECIMENTO). AF_12/2015 | I140: M | J140: ATRIBUÍDO SÃO PAULO | K140: 19.33 | L140: CAIXA REFERENCIAL
A141: ASSENTAMENTO DE TUBOS E PECAS | B141: ASTU | C141: FORNEC E/OU ASSENT DE TUBO DE CONCRETO COM JUNTA ELASTICA | D141: 0051 | G141: 92853 | H141: TUBO DE CONCRETO PARA REDES COLETORAS DE ESGOTO SANITÁRIO, DIÂMETRO DE 500 MM, JUNTA ELÁSTICA, INSTALADO EM LOCAL COM ALTO NÍVEL DE INTERFERÊNCIAS - FORNECIMENTO E ASSENTAMENTO. AF_12/2015 | I141: M | J141: ATRIBUÍDO SÃO PAULO | K141: 393.1 | L141: CAIXA REFERENCIAL
A142: ASSENTAMENTO DE TUBOS E PECAS | B142: ASTU | C142: FORNEC E/OU ASSENT DE TUBO DE CONCRETO COM JUNTA ELASTICA | D142: 0051 | G142: 92854 | H142: ASSENTAMENTO DE TUBO DE CONCRETO PARA REDES COLETORAS DE ESGOTO SANITÁRIO, DIÂMETRO DE 500 MM, JUNTA ELÁSTICA, INSTALADO EM LOCAL COM ALTO NÍVEL DE INTERFERÊNCIAS (NÃO INCLUI FORNECIMENTO). AF_12/2015 | I142: M | J142: ATRIBUÍDO SÃO PAULO | K142: 23.56 | L142: CAIXA REFERENCIAL
A143: ASSENTAMENTO DE TUBOS E PECAS | B143: ASTU | C143: FORNEC E/OU ASSENT DE TUBO DE CONCRETO COM JUNTA ELASTICA | D143: 0051 | G143: 92855 | H143: TUBO DE CONCRETO PARA REDES COLETORAS DE ESGOTO SANITÁRIO, DIÂMETRO DE 600 MM, JUNTA ELÁSTICA, INSTALADO EM LOCAL COM ALTO NÍVEL DE INTERFERÊNCIAS - FORNECIMENTO E ASSENTAMENTO. AF_12/2015 | I143: M | J143: ATRIBUÍDO SÃO PAULO | K143: 480.16 | L143: CAIXA REFERENCIAL
A144: ASSENTAMENTO DE TUBOS E PECAS | B144: ASTU | C144: FORNEC E/OU ASSENT DE TUBO DE CONCRETO COM JUNTA ELASTICA | D144: 0051 | G144: 92856 | H144: ASSENTAMENTO DE TUBO DE CONCRETO PARA REDES COLETORAS DE ESGOTO SANITÁRIO, DIÂMETRO DE 600 MM, JUNTA ELÁSTICA, INSTALADO EM LOCAL COM ALTO NÍVEL DE INTERFERÊNCIAS (NÃO INCLUI FORNECIMENTO). AF_12/2015 | I144: M | J144: ATRIBUÍDO SÃO PAULO | K144: 27.77 | L144: CAIXA REFERENCIAL
A145: ASSENTAMENTO DE TUBOS E PECAS | B145: ASTU | C145: FORNEC E/OU ASSENT DE TUBO DE CONCRETO COM JUNTA ELASTICA | D145: 0051 | G145: 92857 | H145: TUBO DE CONCRETO PARA REDES COLETORAS DE ESGOTO SANITÁRIO, DIÂMETRO DE 700 MM, JUNTA ELÁSTICA, INSTALADO EM LOCAL COM ALTO NÍVEL DE INTERFERÊNCIAS - FORNECIMENTO E ASSENTAMENTO. AF_12/2015 | I145: M | J145: ATRIBUÍDO SÃO PAULO | K145: 624.39 | L145: CAIXA REFERENCIAL
A146: ASSENTAMENTO DE TUBOS E PECAS | B146: ASTU | C146: FORNEC E/OU ASSENT DE TUBO DE CONCRETO COM JUNTA ELASTICA | D146: 0051 | G146: 92858 | H146: ASSENTAMENTO DE TUBO DE CONCRETO PARA REDES COLETORAS DE ESGOTO SANITÁRIO, DIÂMETRO DE 700 MM, JUNTA ELÁSTICA, INSTALADO EM LOCAL COM ALTO NÍVEL DE INTERFERÊNCIAS (NÃO INCLUI FORNECIMENTO). AF_12/2015 | I146: M | J146: ATRIBUÍDO SÃO PAULO | K146: 31.77 | L146: CAIXA REFERENCIAL
A147: ASSENTAMENTO DE TUBOS E PECAS | B147: ASTU | C147: FORNEC E/OU ASSENT DE TUBO DE CONCRETO COM JUNTA ELASTICA | D147: 0051 | G147: 92859 | H147: TUBO DE CONCRETO PARA REDES COLETORAS DE ESGOTO SANITÁRIO, DIÂMETRO DE 800 MM, JUNTA ELÁSTICA, INSTALADO EM LOCAL COM ALTO NÍVEL DE INTERFERÊNCIAS - FORNECIMENTO E ASSENTAMENTO. AF_12/2015 | I147: M | J147: ATRIBUÍDO SÃO PAULO | K147: 650.43 | L147: CAIXA REFERENCIAL
A148: ASSENTAMENTO DE TUBOS E PECAS | B148: ASTU | C148: FORNEC E/OU ASSENT DE TUBO DE CONCRETO COM JUNTA ELASTICA | D148: 0051 | G148: 92860 | H148: ASSENTAMENTO DE TUBO DE CONCRETO PARA REDES COLETORAS DE ESGOTO SANITÁRIO, DIÂMETRO DE 800 MM, JUNTA ELÁSTICA, INSTALADO EM LOCAL COM ALTO NÍVEL DE INTERFERÊNCIAS (NÃO INCLUI FORNECIMENTO). AF_12/2015 | I148: M | J148: ATRIBUÍDO SÃO PAULO | K148: 36.08 | L148: CAIXA REFERENCIAL
A149: ASSENTAMENTO DE TUBOS E PECAS | B149: ASTU | C149: FORNEC E/OU ASSENT DE TUBO DE CONCRETO COM JUNTA ELASTICA | D149: 0051 | G149: 92861 | H149: TUBO DE CONCRETO PARA REDES COLETORAS DE ESGOTO SANITÁRIO, DIÂMETRO DE 900 MM, JUNTA ELÁSTICA, INSTALADO EM LOCAL COM ALTO NÍVEL DE INTERFERÊNCIAS - FORNECIMENTO E ASSENTAMENTO. AF_12/2015 | I149: M | J149: ATRIBUÍDO SÃO PAULO | K149: 953.75 | L149: CAIXA REFERENCIAL
A150: ASSENTAMENTO DE TUBOS E PECAS | B150: ASTU | C150: FORNEC E/OU ASSENT DE TUBO DE CONCRETO COM JUNTA ELASTICA | D150: 0051 | G150: 92862 | H150: ASSENTAMENTO DE TUBO DE CONCRETO PARA REDES COLETORAS DE ESGOTO SANITÁRIO, DIÂMETRO DE 900 MM, JUNTA ELÁSTICA, INSTALADO EM LOCAL COM ALTO NÍVEL DE INTERFERÊNCIAS (NÃO INCLUI FORNECIMENTO). AF_12/2015 | I150: M | J150: ATRIBUÍDO SÃO PAULO | K150: 40.27 | L150: CAIXA REFERENCIAL
A151: ASSENTAMENTO DE TUBOS E PECAS | B151: ASTU | C151: FORNEC E/OU ASSENT DE TUBO DE CONCRETO COM JUNTA ELASTICA | D151: 0051 | G151: 92863 | H151: TUBO DE CONCRETO PARA REDES COLETORAS DE ESGOTO SANITÁRIO, DIÂMETRO DE 1000 MM, JUNTA ELÁSTICA, INSTALADO EM LOCAL COM ALTO NÍVEL DE INTERFERÊNCIAS - FORNECIMENTO E ASSENTAMENTO. AF_12/2015 | I151: M | J151: ATRIBUÍDO SÃO PAULO | K151: 985.11 | L151: CAIXA REFERENCIAL
A152: ASSENTAMENTO DE TUBOS E PECAS | B152: ASTU | C152: FORNEC E/OU ASSENT DE TUBO DE CONCRETO COM JUNTA ELASTICA | D152: 0051 | G152: 92864 | H152: ASSENTAMENTO DE TUBO DE CONCRETO PARA REDES COLETORAS DE ESGOTO SANITÁRIO, DIÂMETRO DE 1000 MM, JUNTA ELÁSTICA, INSTALADO EM LOCAL COM ALTO NÍVEL DE INTERFERÊNCIAS (NÃO INCLUI FORNECIMENTO). AF_12/2015 | I152: M | J152: ATRIBUÍDO SÃO PAULO | K152: 44.49 | L152: CAIXA REFERENCIAL
A153: ASSENTAMENTO DE TUBOS E PECAS | B153: ASTU | C153: FORNEC E/OU ASSENT DE TUBO DE CONCRETO COM JUNTA ARGAMASSADA | D153: 0052 | G153: 92210 | H153: TUBO DE CONCRETO PARA REDES COLETORAS DE ÁGUAS PLUVIAIS, DIÂMETRO DE 400 MM, JUNTA RÍGIDA, INSTALADO EM LOCAL COM BAIXO NÍVEL DE INTERFERÊNCIAS - FORNECIMENTO E ASSENTAMENTO. AF_12/2015 | I153: M | J153: ATRIBUÍDO SÃO PAULO | K153: 161.57 | L153: CAIXA REFERENCIAL
A154: ASSENTAMENTO DE TUBOS E PECAS | B154: ASTU | C154: FORNEC E/OU ASSENT DE TUBO DE CONCRETO COM JUNTA ARGAMASSADA | D154: 0052 | G154: 92211 | H154: TUBO DE CONCRETO PARA REDES COLETORAS DE ÁGUAS PLUVIAIS, DIÂMETRO DE 500 MM, JUNTA RÍGIDA, INSTALADO EM LOCAL COM BAIXO NÍVEL DE INTERFERÊNCIAS - FORNECIMENTO E ASSENTAMENTO. AF_12/2015 | I154: M | J154: ATRIBUÍDO SÃO PAULO | K154: 194.23 | L154: CAIXA REFERENCIAL
A155: ASSENTAMENTO DE TUBOS E PECAS | B155: ASTU | C155: FORNEC E/OU ASSENT DE TUBO DE CONCRETO COM JUNTA ARGAMASSADA | D155: 0052 | G155: 92212 | H155: TUBO DE CONCRETO PARA REDES COLETORAS DE ÁGUAS PLUVIAIS, DIÂMETRO DE 600 MM, JUNTA RÍGIDA, INSTALADO EM LOCAL COM BAIXO NÍVEL DE INTERFERÊNCIAS - FORNECIMENTO E ASSENTAMENTO. AF_12/2015 | I155: M | J155: ATRIBUÍDO SÃO PAULO | K155: 290.11 | L155: CAIXA REFERENCIAL
A156: ASSENTAMENTO DE TUBOS E PECAS | B156: ASTU | C156: FORNEC E/OU ASSENT DE TUBO DE CONCRETO COM JUNTA ARGAMASSADA | D156: 0052 | G156: 92213 | H156: TUBO DE CONCRETO PARA REDES COLETORAS DE ÁGUAS PLUVIAIS, DIÂMETRO DE 700 MM, JUNTA RÍGIDA, INSTALADO EM LOCAL COM BAIXO NÍVEL DE INTERFERÊNCIAS - FORNECIMENTO E ASSENTAMENTO. AF_12/2015 | I156: M | J156: ATRIBUÍDO SÃO PAULO | K156: 381.54 | L156: CAIXA REFERENCIAL
A157: ASSENTAMENTO DE TUBOS E PECAS | B157: ASTU | C157: FORNEC E/OU ASSENT DE TUBO DE CONCRETO COM JUNTA ARGAMASSADA | D157: 0052 | G157: 92214 | H157: TUBO DE CONCRETO PARA REDES COLETORAS DE ÁGUAS PLUVIAIS, DIÂMETRO DE 800 MM, JUNTA RÍGIDA, INSTALADO EM LOCAL COM BAIXO NÍVEL DE INTERFERÊNCIAS - FORNECIMENTO E ASSENTAMENTO. AF_12/2015 | I157: M | J157: ATRIBUÍDO SÃO PAULO | K157: 461.63 | L157: CAIXA REFERENCIAL
A158: ASSENTAMENTO DE TUBOS E PECAS | B158: ASTU | C158: FORNEC E/OU ASSENT DE TUBO DE CONCRETO COM JUNTA ARGAMASSADA | D158: 0052 | G158: 92215 | H158: TUBO DE CONCRETO PARA REDES COLETORAS DE ÁGUAS PLUVIAIS, DIÂMETRO DE 900 MM, JUNTA RÍGIDA, INSTALADO EM LOCAL COM BAIXO NÍVEL DE INTERFERÊNCIAS - FORNECIMENTO E ASSENTAMENTO. AF_12/2015 | I158: M | J158: ATRIBUÍDO SÃO PAULO | K158: 530.75 | L158: CAIXA REFERENCIAL
A159: ASSENTAMENTO DE TUBOS E PECAS | B159: ASTU | C159: FORNEC E/OU ASSENT DE TUBO DE CONCRETO COM JUNTA ARGAMASSADA | D159: 0052 | G159: 92216 | H159: TUBO DE CONCRETO PARA REDES COLETORAS DE ÁGUAS PLUVIAIS, DIÂMETRO DE 1000 MM, JUNTA RÍGIDA, INSTALADO EM LOCAL COM BAIXO NÍVEL DE INTERFERÊNCIAS - FORNECIMENTO E ASSENTAMENTO. AF_12/2015 | I159: M | J159: ATRIBUÍDO SÃO PAULO | K159: 556.04 | L159: CAIXA REFERENCIAL
A160: ASSENTAMENTO DE TUBOS E PECAS | B160: ASTU | C160: FORNEC E/OU ASSENT DE TUBO DE CONCRETO COM JUNTA ARGAMASSADA | D160: 0052 | G160: 92219 | H160: TUBO DE CONCRETO PARA REDES COLETORAS DE ÁGUAS PLUVIAIS, DIÂMETRO DE 400 MM, JUNTA RÍGIDA, INSTALADO EM LOCAL COM ALTO NÍVEL DE INTERFERÊNCIAS - FORNECIMENTO E ASSENTAMENTO. AF_12/2015 | I160: M | J160: ATRIBUÍDO SÃO PAULO | K160: 170.55 | L160: CAIXA REFERENCIAL
A161: ASSENTAMENTO DE TUBOS E PECAS | B161: ASTU | C161: FORNEC E/OU ASSENT DE TUBO DE CONCRETO COM JUNTA ARGAMASSADA | D161: 0052 | G161: 92220 | H161: TUBO DE CONCRETO PARA REDES COLETORAS DE ÁGUAS PLUVIAIS, DIÂMETRO DE 500 MM, JUNTA RÍGIDA, INSTALADO EM LOCAL COM ALTO NÍVEL DE INTERFERÊNCIAS - FORNECIMENTO E ASSENTAMENTO. AF_12/2015 | I161: M | J161: ATRIBUÍDO SÃO PAULO | K161: 205.37 | L161: CAIXA REFERENCIAL
A162: ASSENTAMENTO DE TUBOS E PECAS | B162: ASTU | C162: FORNEC E/OU ASSENT DE TUBO DE CONCRETO COM JUNTA ARGAMASSADA | D162: 0052 | G162: 92221 | H162: TUBO DE CONCRETO PARA REDES COLETORAS DE ÁGUAS PLUVIAIS, DIÂMETRO DE 600 MM, JUNTA RÍGIDA, INSTALADO EM LOCAL COM ALTO NÍVEL DE INTERFERÊNCIAS - FORNECIMENTO E ASSENTAMENTO. AF_12/2015 | I162: M | J162: ATRIBUÍDO SÃO PAULO | K162: 303.16 | L162: CAIXA REFERENCIAL
A163: ASSENTAMENTO DE TUBOS E PECAS | B163: ASTU | C163: FORNEC E/OU ASSENT DE TUBO DE CONCRETO COM JUNTA ARGAMASSADA | D163: 0052 | G163: 92222 | H163: TUBO DE CONCRETO PARA REDES COLETORAS DE ÁGUAS PLUVIAIS, DIÂMETRO DE 700 MM, JUNTA RÍGIDA, INSTALADO EM LOCAL COM ALTO NÍVEL DE INTERFERÊNCIAS - FORNECIMENTO E ASSENTAMENTO. AF_12/2015 | I163: M | J163: ATRIBUÍDO SÃO PAULO | K163: 396.74 | L163: CAIXA REFERENCIAL
A164: ASSENTAMENTO DE TUBOS E PECAS | B164: ASTU | C164: FORNEC E/OU ASSENT DE TUBO DE CONCRETO COM JUNTA ARGAMASSADA | D164: 0052 | G164: 92223 | H164: TUBO DE CONCRETO PARA REDES COLETORAS DE ÁGUAS PLUVIAIS, DIÂMETRO DE 800 MM, JUNTA RÍGIDA, INSTALADO EM LOCAL COM ALTO NÍVEL DE INTERFERÊNCIAS - FORNECIMENTO E ASSENTAMENTO. AF_12/2015 | I164: M | J164: ATRIBUÍDO SÃO PAULO | K164: 478.61 | L164: CAIXA REFERENCIAL
A165: ASSENTAMENTO DE TUBOS E PECAS | B165: ASTU | C165: FORNEC E/OU ASSENT DE TUBO DE CONCRETO COM JUNTA ARGAMASSADA | D165: 0052 | G165: 92224 | H165: TUBO DE CONCRETO PARA REDES COLETORAS DE ÁGUAS PLUVIAIS, DIÂMETRO DE 900 MM, JUNTA RÍGIDA, INSTALADO EM LOCAL COM ALTO NÍVEL DE INTERFERÊNCIAS - FORNECIMENTO E ASSENTAMENTO. AF_12/2015 | I165: M | J165: ATRIBUÍDO SÃO PAULO | K165: 549.6 | L165: CAIXA REFERENCIAL
A166: ASSENTAMENTO DE TUBOS E PECAS | B166: ASTU | C166: FORNEC E/OU ASSENT DE TUBO DE CONCRETO COM JUNTA ARGAMASSADA | D166: 0052 | G166: 92226 | H166: TUBO DE CONCRETO PARA REDES COLETORAS DE ÁGUAS PLUVIAIS, DIÂMETRO DE 1000 MM, JUNTA RÍGIDA, INSTALADO EM LOCAL COM ALTO NÍVEL DE INTERFERÊNCIAS - FORNECIMENTO E ASSENTAMENTO. AF_12/2015 | I166: M | J166: ATRIBUÍDO SÃO PAULO | K166: 577.15 | L166: CAIXA REFERENCIAL
A167: ASSENTAMENTO DE TUBOS E PECAS | B167: ASTU | C167: FORNEC E/OU ASSENT DE TUBO DE CONCRETO COM JUNTA ARGAMASSADA | D167: 0052 | G167: 92808 | H167: ASSENTAMENTO DE TUBO DE CONCRETO PARA REDES COLETORAS DE ÁGUAS PLUVIAIS, DIÂMETRO DE 300 MM, JUNTA RÍGIDA, INSTALADO EM LOCAL COM BAIXO NÍVEL DE INTERFERÊNCIAS (NÃO INCLUI FORNECIMENTO). AF_12/2015 | I167: M | J167: ATRIBUÍDO SÃO PAULO | K167: 36.67 | L167: CAIXA REFERENCIAL
A168: ASSENTAMENTO DE TUBOS E PECAS | B168: ASTU | C168: FORNEC E/OU ASSENT DE TUBO DE CONCRETO COM JUNTA ARGAMASSADA | D168: 0052 | G168: 92809 | H168: ASSENTAMENTO DE TUBO DE CONCRETO PARA REDES COLETORAS DE ÁGUAS PLUVIAIS, DIÂMETRO DE 400 MM, JUNTA RÍGIDA, INSTALADO EM LOCAL COM BAIXO NÍVEL DE INTERFERÊNCIAS (NÃO INCLUI FORNECIMENTO). AF_12/2015 | I168: M | J168: ATRIBUÍDO SÃO PAULO | K168: 47.17 | L168: CAIXA REFERENCIAL
A169: ASSENTAMENTO DE TUBOS E PECAS | B169: ASTU | C169: FORNEC E/OU ASSENT DE TUBO DE CONCRETO COM JUNTA ARGAMASSADA | D169: 0052 | G169: 92810 | H169: ASSENTAMENTO DE TUBO DE CONCRETO PARA REDES COLETORAS DE ÁGUAS PLUVIAIS, DIÂMETRO DE 500 MM, JUNTA RÍGIDA, INSTALADO EM LOCAL COM BAIXO NÍVEL DE INTERFERÊNCIAS (NÃO INCLUI FORNECIMENTO). AF_12/2015 | I169: M | J169: ATRIBUÍDO SÃO PAULO | K169: 57.5 | L169: CAIXA REFERENCIAL
A170: ASSENTAMENTO DE TUBOS E PECAS | B170: ASTU | C170: FORNEC E/OU ASSENT DE TUBO DE CONCRETO COM JUNTA ARGAMASSADA | D170: 0052 | G170: 92811 | H170: ASSENTAMENTO DE TUBO DE CONCRETO PARA REDES COLETORAS DE ÁGUAS PLUVIAIS, DIÂMETRO DE 600 MM, JUNTA RÍGIDA, INSTALADO EM LOCAL COM BAIXO NÍVEL DE INTERFERÊNCIAS (NÃO INCLUI FORNECIMENTO). AF_12/2015 | I170: M | J170: ATRIBUÍDO SÃO PAULO | K170: 68.74 | L170: CAIXA REFERENCIAL
A171: ASSENTAMENTO DE TUBOS E PECAS | B171: ASTU | C171: FORNEC E/OU ASSENT DE TUBO DE CONCRETO COM JUNTA ARGAMASSADA | D171: 0052 | G171: 92812 | H171: ASSENTAMENTO DE TUBO DE CONCRETO PARA REDES COLETORAS DE ÁGUAS PLUVIAIS, DIÂMETRO DE 700 MM, JUNTA RÍGIDA, INSTALADO EM LOCAL COM BAIXO NÍVEL DE INTERFERÊNCIAS (NÃO INCLUI FORNECIMENTO). AF_12/2015 | I171: M | J171: ATRIBUÍDO SÃO PAULO | K171: 79.81 | L171: CAIXA REFERENCIAL
A172: ASSENTAMENTO DE TUBOS E PECAS | B172: ASTU | C172: FORNEC E/OU ASSENT DE TUBO DE CONCRETO COM JUNTA ARGAMASSADA | D172: 0052 | G172: 92813 | H172: ASSENTAMENTO DE TUBO DE CONCRETO PARA REDES COLETORAS DE ÁGUAS PLUVIAIS, DIÂMETRO DE 800 MM, JUNTA RÍGIDA, INSTALADO EM LOCAL COM BAIXO NÍVEL DE INTERFERÊNCIAS (NÃO INCLUI FORNECIMENTO). AF_12/2015 | I172: M | J172: ATRIBUÍDO SÃO PAULO | K172: 93.3 | L172: CAIXA REFERENCIAL
A173: ASSENTAMENTO DE TUBOS E PECAS | B173: ASTU | C173: FORNEC E/OU ASSENT DE TUBO DE CONCRETO COM JUNTA ARGAMASSADA | D173: 0052 | G173: 92814 | H173: ASSENTAMENTO DE TUBO DE CONCRETO PARA REDES COLETORAS DE ÁGUAS PLUVIAIS, DIÂMETRO DE 900 MM, JUNTA RÍGIDA, INSTALADO EM LOCAL COM BAIXO NÍVEL DE INTERFERÊNCIAS (NÃO INCLUI FORNECIMENTO). AF_12/2015 | I173: M | J173: ATRIBUÍDO SÃO PAULO | K173: 107.54 | L173: CAIXA REFERENCIAL
A174: ASSENTAMENTO DE TUBOS E PECAS | B174: ASTU | C174: FORNEC E/OU ASSENT DE TUBO DE CONCRETO COM JUNTA ARGAMASSADA | D174: 0052 | G174: 92815 | H174: ASSENTAMENTO DE TUBO DE CONCRETO PARA REDES COLETORAS DE ÁGUAS PLUVIAIS, DIÂMETRO DE 1000 MM, JUNTA RÍGIDA, INSTALADO EM LOCAL COM BAIXO NÍVEL DE INTERFERÊNCIAS (NÃO INCLUI FORNECIMENTO). AF_12/2015 | I174: M | J174: ATRIBUÍDO SÃO PAULO | K174: 124.45 | L174: CAIXA REFERENCIAL
A175: ASSENTAMENTO DE TUBOS E PECAS | B175: ASTU | C175: FORNEC E/OU ASSENT DE TUBO DE CONCRETO COM JUNTA ARGAMASSADA | D175: 0052 | G175: 92816 | H175: TUBO DE CONCRETO PARA REDES COLETORAS DE ÁGUAS PLUVIAIS, DIÂMETRO DE 1200 MM, JUNTA RÍGIDA, INSTALADO EM LOCAL COM BAIXO NÍVEL DE INTERFERÊNCIAS - FORNECIMENTO E ASSENTAMENTO. AF_12/2015 | I175: M | J175: ATRIBUÍDO SÃO PAULO | K175: 800.31 | L175: CAIXA REFERENCIAL
A176: ASSENTAMENTO DE TUBOS E PECAS | B176: ASTU | C176: FORNEC E/OU ASSENT DE TUBO DE CONCRETO COM JUNTA ARGAMASSADA | D176: 0052 | G176: 92817 | H176: ASSENTAMENTO DE TUBO DE CONCRETO PARA REDES COLETORAS DE ÁGUAS PLUVIAIS, DIÂMETRO DE 1200 MM, JUNTA RÍGIDA, INSTALADO EM LOCAL COM BAIXO NÍVEL DE INTERFERÊNCIAS (NÃO INCLUI FORNECIMENTO). AF_12/2015 | I176: M | J176: ATRIBUÍDO SÃO PAULO | K176: 155.72 | L176: CAIXA REFERENCIAL
A177: ASSENTAMENTO DE TUBOS E PECAS | B177: ASTU | C177: FORNEC E/OU ASSENT DE TUBO DE CONCRETO COM JUNTA ARGAMASSADA | D177: 0052 | G177: 92818 | H177: TUBO DE CONCRETO PARA REDES COLETORAS DE ÁGUAS PLUVIAIS, DIÂMETRO DE 1500 MM, JUNTA RÍGIDA, INSTALADO EM LOCAL COM BAIXO NÍVEL DE INTERFERÊNCIAS - FORNECIMENTO E ASSENTAMENTO. AF_12/2015 | I177: M | J177: ATRIBUÍDO SÃO PAULO | K177: 1143.5 | L177: CAIXA REFERENCIAL
A178: ASSENTAMENTO DE TUBOS E PECAS | B178: ASTU | C178: FORNEC E/OU ASSENT DE TUBO DE CONCRETO COM JUNTA ARGAMASSADA | D178: 0052 | G178: 92819 | H178: ASSENTAMENTO DE TUBO DE CONCRETO PARA REDES COLETORAS DE ÁGUAS PLUVIAIS, DIÂMETRO DE 1500 MM, JUNTA RÍGIDA, INSTALADO EM LOCAL COM BAIXO NÍVEL DE INTERFERÊNCIAS (NÃO INCLUI FORNECIMENTO). AF_12/2015 | I178: M | J178: ATRIBUÍDO SÃO PAULO | K178: 209.63 | L178: CAIXA REFERENCIAL
A179: ASSENTAMENTO DE TUBOS E PECAS | B179: ASTU | C179: FORNEC E/OU ASSENT DE TUBO DE CONCRETO COM JUNTA ARGAMASSADA | D179: 0052 | G179: 92820 | H179: ASSENTAMENTO DE TUBO DE CONCRETO PARA REDES COLETORAS DE ÁGUAS PLUVIAIS, DIÂMETRO DE 300 MM, JUNTA RÍGIDA, INSTALADO EM LOCAL COM ALTO NÍVEL DE INTERFERÊNCIAS (NÃO INCLUI FORNECIMENTO). AF_12/2015 | I179: M | J179: ATRIBUÍDO SÃO PAULO | K179: 43.69 | L179: CAIXA REFERENCIAL
A180: ASSENTAMENTO DE TUBOS E PECAS | B180: ASTU | C180: FORNEC E/OU ASSENT DE TUBO DE CONCRETO COM JUNTA ARGAMASSADA | D180: 0052 | G180: 92821 | H180: ASSENTAMENTO DE TUBO DE CONCRETO PARA REDES COLETORAS DE ÁGUAS PLUVIAIS, DIÂMETRO DE 400 MM, JUNTA RÍGIDA, INSTALADO EM LOCAL COM ALTO NÍVEL DE INTERFERÊNCIAS (NÃO INCLUI FORNECIMENTO). AF_12/2015 | I180: M | J180: ATRIBUÍDO SÃO PAULO | K180: 56.15 | L180: CAIXA REFERENCIAL
A181: ASSENTAMENTO DE TUBOS E PECAS | B181: ASTU | C181: FORNEC E/OU ASSENT DE TUBO DE CONCRETO COM JUNTA ARGAMASSADA | D181: 0052 | G181: 92822 | H181: ASSENTAMENTO DE TUBO DE CONCRETO PARA REDES COLETORAS DE ÁGUAS PLUVIAIS, DIÂMETRO DE 500 MM, JUNTA RÍGIDA, INSTALADO EM LOCAL COM ALTO NÍVEL DE INTERFERÊNCIAS (NÃO INCLUI FORNECIMENTO). AF_12/2015 | I181: M | J181: ATRIBUÍDO SÃO PAULO | K181: 68.64 | L181: CAIXA REFERENCIAL
A182: ASSENTAMENTO DE TUBOS E PECAS | B182: ASTU | C182: FORNEC E/OU ASSENT DE TUBO DE CONCRETO COM JUNTA ARGAMASSADA | D182: 0052 | G182: 92824 | H182: ASSENTAMENTO DE TUBO DE CONCRETO PARA REDES COLETORAS DE ÁGUAS PLUVIAIS, DIÂMETRO DE 600 MM, JUNTA RÍGIDA, INSTALADO EM LOCAL COM ALTO NÍVEL DE INTERFERÊNCIAS (NÃO INCLUI FORNECIMENTO). AF_12/2015 | I182: M | J182: ATRIBUÍDO SÃO PAULO | K182: 81.79 | L182: CAIXA REFERENCIAL
A183: ASSENTAMENTO DE TUBOS E PECAS | B183: ASTU | C183: FORNEC E/OU ASSENT DE TUBO DE CONCRETO COM JUNTA ARGAMASSADA | D183: 0052 | G183: 92825 | H183: ASSENTAMENTO DE TUBO DE CONCRETO PARA REDES COLETORAS DE ÁGUAS PLUVIAIS, DIÂMETRO DE 700 MM, JUNTA RÍGIDA, INSTALADO EM LOCAL COM ALTO NÍVEL DE INTERFERÊNCIAS (NÃO INCLUI FORNECIMENTO). AF_12/2015 | I183: M | J183: ATRIBUÍDO SÃO PAULO | K183: 95.01 | L183: CAIXA REFERENCIAL
A184: ASSENTAMENTO DE TUBOS E PECAS | B184: ASTU | C184: FORNEC E/OU ASSENT DE TUBO DE CONCRETO COM JUNTA ARGAMASSADA | D184: 0052 | G184: 92826 | H184: ASSENTAMENTO DE TUBO DE CONCRETO PARA REDES COLETORAS DE ÁGUAS PLUVIAIS, DIÂMETRO DE 800 MM, JUNTA RÍGIDA, INSTALADO EM LOCAL COM ALTO NÍVEL DE INTERFERÊNCIAS (NÃO INCLUI FORNECIMENTO). AF_12/2015 | I184: M | J184: ATRIBUÍDO SÃO PAULO | K184: 110.28 | L184: CAIXA REFERENCIAL
A185: ASSENTAMENTO DE TUBOS E PECAS | B185: ASTU | C185: FORNEC E/OU ASSENT DE TUBO DE CONCRETO COM JUNTA ARGAMASSADA | D185: 0052 | G185: 92827 | H185: ASSENTAMENTO DE TUBO DE CONCRETO PARA REDES COLETORAS DE ÁGUAS PLUVIAIS, DIÂMETRO DE 900 MM, JUNTA RÍGIDA, INSTALADO EM LOCAL COM ALTO NÍVEL DE INTERFERÊNCIAS (NÃO INCLUI FORNECIMENTO). AF_12/2015 | I185: M | J185: ATRIBUÍDO SÃO PAULO | K185: 126.39 | L185: CAIXA REFERENCIAL
A186: ASSENTAMENTO DE TUBOS E PECAS | B186: ASTU | C186: FORNEC E/OU ASSENT DE TUBO DE CONCRETO COM JUNTA ARGAMASSADA | D186: 0052 | G186: 92828 | H186: ASSENTAMENTO DE TUBO DE CONCRETO PARA REDES COLETORAS DE ÁGUAS PLUVIAIS, DIÂMETRO DE 1000 MM, JUNTA RÍGIDA, INSTALADO EM LOCAL COM ALTO NÍVEL DE INTERFERÊNCIAS (NÃO INCLUI FORNECIMENTO). AF_12/2015 | I186: M | J186: ATRIBUÍDO SÃO PAULO | K186: 145.56 | L186: CAIXA REFERENCIAL
A187: ASSENTAMENTO DE TUBOS E PECAS | B187: ASTU | C187: FORNEC E/OU ASSENT DE TUBO DE CONCRETO COM JUNTA ARGAMASSADA | D187: 0052 | G187: 92829 | H187: TUBO DE CONCRETO PARA REDES COLETORAS DE ÁGUAS PLUVIAIS, DIÂMETRO DE 1200 MM, JUNTA RÍGIDA, INSTALADO EM LOCAL COM ALTO NÍVEL DE INTERFERÊNCIAS - FORNECIMENTO E ASSENTAMENTO. AF_12/2015 | I187: M | J187: ATRIBUÍDO SÃO PAULO | K187: 825.15 | L187: CAIXA REFERENCIAL
A188: ASSENTAMENTO DE TUBOS E PECAS | B188: ASTU | C188: FORNEC E/OU ASSENT DE TUBO DE CONCRETO COM JUNTA ARGAMASSADA | D188: 0052 | G188: 92830 | H188: ASSENTAMENTO DE TUBO DE CONCRETO PARA REDES COLETORAS DE ÁGUAS PLUVIAIS, DIÂMETRO DE 1200 MM, JUNTA RÍGIDA, INSTALADO EM LOCAL COM ALTO NÍVEL DE INTERFERÊNCIAS (NÃO INCLUI FORNECIMENTO). AF_12/2015 | I188: M | J188: ATRIBUÍDO SÃO PAULO | K188: 180.56 | L188: CAIXA REFERENCIAL
A189: ASSENTAMENTO DE TUBOS E PECAS | B189: ASTU | C189: FORNEC E/OU ASSENT DE TUBO DE CONCRETO COM JUNTA ARGAMASSADA | D189: 0052 | G189: 92831 | H189: TUBO DE CONCRETO PARA REDES COLETORAS DE ÁGUAS PLUVIAIS, DIÂMETRO DE 1500 MM, JUNTA RÍGIDA, INSTALADO EM LOCAL COM ALTO NÍVEL DE INTERFERÊNCIAS - FORNECIMENTO E ASSENTAMENTO. AF_12/2015 | I189: M | J189: ATRIBUÍDO SÃO PAULO | K189: 1173.9 | L189: CAIXA REFERENCIAL
A190: ASSENTAMENTO DE TUBOS E PECAS | B190: ASTU | C190: FORNEC E/OU ASSENT DE TUBO DE CONCRETO COM JUNTA ARGAMASSADA | D190: 0052 | G190: 92832 | H190: ASSENTAMENTO DE TUBO DE CONCRETO PARA REDES COLETORAS DE ÁGUAS PLUVIAIS, DIÂMETRO DE 1500 MM, JUNTA RÍGIDA, INSTALADO EM LOCAL COM ALTO NÍVEL DE INTERFERÊNCIAS (NÃO INCLUI FORNECIMENTO). AF_12/2015 | I190: M | J190: ATRIBUÍDO SÃO PAULO | K190: 240.03 | L190: CAIXA REFERENCIAL
A191: ASSENTAMENTO DE TUBOS E PECAS | B191: ASTU | C191: FORNEC E/OU ASSENT DE TUBO DE CONCRETO COM JUNTA ARGAMASSADA | D191: 0052 | G191: 95565 | H191: TUBO DE CONCRETO PARA REDES COLETORAS DE ÁGUAS PLUVIAIS, DIÂMETRO DE 300MM, JUNTA RÍGIDA, INSTALADO EM LOCAL COM BAIXO NÍVEL DE INTERFERÊNCIAS - FORNECIMENTO E ASSENTAMENTO. AF_12/2015 | I191: M | J191: ATRIBUÍDO SÃO PAULO | K191: 138.05 | L191: CAIXA REFERENCIAL
A192: ASSENTAMENTO DE TUBOS E PECAS | B192: ASTU | C192: FORNEC E/OU ASSENT DE TUBO DE CONCRETO COM JUNTA ARGAMASSADA | D192: 0052 | G192: 95566 | H192: TUBO DE CONCRETO PARA REDES COLETORAS DE ÁGUAS PLUVIAIS, DIÂMETRO DE 300MM, JUNTA RÍGIDA, INSTALADO EM LOCAL COM ALTO NÍVEL DE INTERFERÊNCIAS - FORNECIMENTO E ASSENTAMENTO. AF_12/2015 | I192: M | J192: ATRIBUÍDO SÃO PAULO | K192: 145.07 | L192: CAIXA REFERENCIAL
A193: ASSENTAMENTO DE TUBOS E PECAS | B193: ASTU | C193: FORNEC E/OU ASSENT DE TUBO DE CONCRETO COM JUNTA ARGAMASSADA | D193: 0052 | G193: 95567 | H193: TUBO DE CONCRETO (SIMPLES) PARA REDES COLETORAS DE ÁGUAS PLUVIAIS, DIÂMETRO DE 300 MM, JUNTA RÍGIDA, INSTALADO EM LOCAL COM BAIXO NÍVEL DE INTERFERÊNCIAS - FORNECIMENTO E ASSENTAMENTO. AF_12/2015 | I193: M | J193: ATRIBUÍDO SÃO PAULO | K193: 98.47 | L193: CAIXA REFERENCIAL
A194: ASSENTAMENTO DE TUBOS E PECAS | B194: ASTU | C194: FORNEC E/OU ASSENT DE TUBO DE CONCRETO COM JUNTA ARGAMASSADA | D194: 0052 | G194: 95568 | H194: TUBO DE CONCRETO (SIMPLES) PARA REDES COLETORAS DE ÁGUAS PLUVIAIS, DIÂMETRO DE 400 MM, JUNTA RÍGIDA, INSTALADO EM LOCAL COM BAIXO NÍVEL DE INTERFERÊNCIAS - FORNECIMENTO E ASSENTAMENTO. AF_12/2015 | I194: M | J194: ATRIBUÍDO SÃO PAULO | K194: 120.19 | L194: CAIXA REFERENCIAL
A195: ASSENTAMENTO DE TUBOS E PECAS | B195: ASTU | C195: FORNEC E/OU ASSENT DE TUBO DE CONCRETO COM JUNTA ARGAMASSADA | D195: 0052 | G195: 95569 | H195: TUBO DE CONCRETO (SIMPLES) PARA REDES COLETORAS DE ÁGUAS PLUVIAIS, DIÂMETRO DE 500 MM, JUNTA RÍGIDA, INSTALADO EM LOCAL COM BAIXO NÍVEL DE INTERFERÊNCIAS - FORNECIMENTO E ASSENTAMENTO. AF_12/2015 | I195: M | J195: ATRIBUÍDO SÃO PAULO | K195: 166.18 | L195: CAIXA REFERENCIAL
A196: ASSENTAMENTO DE TUBOS E PECAS | B196: ASTU | C196: FORNEC E/OU ASSENT DE TUBO DE CONCRETO COM JUNTA ARGAMASSADA | D196: 0052 | G196: 95570 | H196: TUBO DE CONCRETO (SIMPLES) PARA REDES COLETORAS DE ÁGUAS PLUVIAIS, DIÂMETRO DE 300 MM, JUNTA RÍGIDA, INSTALADO EM LOCAL COM ALTO NÍVEL DE INTERFERÊNCIAS - FORNECIMENTO E ASSENTAMENTO. AF_12/2015 | I196: M | J196: ATRIBUÍDO SÃO PAULO | K196: 105.49 | L196: CAIXA REFERENCIAL
A197: ASSENTAMENTO DE TUBOS E PECAS | B197: ASTU | C197: FORNEC E/OU ASSENT DE TUBO DE CONCRETO COM JUNTA ARGAMASSADA | D197: 0052 | G197: 95571 | H197: TUBO DE CONCRETO (SIMPLES) PARA REDES COLETORAS DE ÁGUAS PLUVIAIS, DIÂMETRO DE 400 MM, JUNTA RÍGIDA, INSTALADO EM LOCAL COM ALTO NÍVEL DE INTERFERÊNCIAS - FORNECIMENTO E ASSENTAMENTO. AF_12/2015 | I197: M | J197: ATRIBUÍDO SÃO PAULO | K197: 129.17 | L197: CAIXA REFERENCIAL
A198: ASSENTAMENTO DE TUBOS E PECAS | B198: ASTU | C198: FORNEC E/OU ASSENT DE TUBO DE CONCRETO COM JUNTA ARGAMASSADA | D198: 0052 | G198: 95572 | H198: TUBO DE CONCRETO (SIMPLES) PARA REDES COLETORAS DE ÁGUAS PLUVIAIS, DIÂMETRO DE 500 MM, JUNTA RÍGIDA, INSTALADO EM LOCAL COM ALTO NÍVEL DE INTERFERÊNCIAS - FORNECIMENTO E ASSENTAMENTO. AF_12/2015 | I198: M | J198: ATRIBUÍDO SÃO PAULO | K198: 177.32 | L198: CAIXA REFERENCIAL
A199: ASSENTAMENTO DE TUBOS E PECAS | B199: ASTU | C199: FORNEC E/OU ASSENT DE TUBO PVC DEFOFO COM JUNTA ELASTICA | D199: 0230 | G199: 97127 | H199: ASSENTAMENTO DE TUBO DE PVC DEFOFO OU PRFV OU RPVC PARA REDE DE ÁGUA, DN 150 MM, JUNTA ELÁSTICA INTEGRADA, INSTALADO EM LOCAL COM NÍVEL ALTO DE INTERFERÊNCIAS (NÃO INCLUI FORNECIMENTO). AF_11/2017 | I199: M | J199: COEFICIENTE DE REPRESENTATIVIDADE | K199: 4.31 | L199: CAIXA REFERENCIAL
A200: ASSENTAMENTO DE TUBOS E PECAS | B200: ASTU | C200: FORNEC E/OU ASSENT DE TUBO PVC DEFOFO COM JUNTA ELASTICA | D200: 0230 | G200: 97128 | H200: ASSENTAMENTO DE TUBO DE PVC DEFOFO OU PRFV OU RPVC PARA REDE DE ÁGUA, DN 200 MM, JUNTA ELÁSTICA INTEGRADA, INSTALADO EM LOCAL COM NÍVEL ALTO DE INTERFERÊNCIAS (NÃO INCLUI FORNECIMENTO). AF_11/2017 | I200: M | J200: ATRIBUÍDO SÃO PAULO | K200: 8.79 | L200: CAIXA REFERENCIAL
A201: ASSENTAMENTO DE TUBOS E PECAS | B201: ASTU | C201: FORNEC E/OU ASSENT DE TUBO PVC DEFOFO COM JUNTA ELASTICA | D201: 0230 | G201: 97129 | H201: ASSENTAMENTO DE TUBO DE PVC DEFOFO OU PRFV OU RPVC PARA REDE DE ÁGUA, DN 250 MM, JUNTA ELÁSTICA INTEGRADA, INSTALADO EM LOCAL COM NÍVEL ALTO DE INTERFERÊNCIAS (NÃO INCLUI FORNECIMENTO). AF_11/2017 | I201: M | J201: ATRIBUÍDO SÃO PAULO | K201: 10.81 | L201: CAIXA REFERENCIAL
A202: ASSENTAMENTO DE TUBOS E PECAS | B202: ASTU | C202: FORNEC E/OU ASSENT DE TUBO PVC DEFOFO COM JUNTA ELASTICA | D202: 0230 | G202: 97130 | H202: ASSENTAMENTO DE TUBO DE PVC DEFOFO OU PRFV OU RPVC PARA REDE DE ÁGUA, DN 300 MM, JUNTA ELÁSTICA INTEGRADA, INSTALADO EM LOCAL COM NÍVEL ALTO DE INTERFERÊNCIAS (NÃO INCLUI FORNECIMENTO). AF_11/2017 | I202: M | J202: ATRIBUÍDO SÃO PAULO | K202: 12.83 | L202: CAIXA REFERENCIAL
... 4297 more rows

Sheet MEMORIA DE CÁLCULO
A1: MEMÓRIA DE CÁLCULO
A3: Obra: Construção da Sede da 11ª Superintendência Regional da Codevasf, no Estado do Amapá.
A4: Data: Jan/23
A5: ITENS DA PLANILHA ORÇAMENTÁRIA
A7: 1.1 | B7: FORNECIMENTO E COLOCAÇÃO DE PLACA DE OBRA (4,80 X 2,4 0 M) - EM CHAPA GALVANIZADA *N. 22*, ADESIVADA E FIXADA COM SUPORTE EM EUCALIPTO AUTOCLAVADO. | P7: ok
A9: LOCAL | E9: QUANT. | F9: COMP. (M) | H9: ALT. (M) | J9: ÁREA (M²) | L9: TRANSP | M9: OBS
A10: Alinhamento da divisa do terreno | E10: 1
L12: Total levantado | O12: =E10 -> 1
A14: 1.2 | B14: EXECUÇÃO DE ESCRITÓRIO EM CANTEIRO DE OBRA EM ALVENARIA, NÃO INCLUSO MOBILIÁRIO E EQUIPAMENTOS. AF_02/2016 | P14: ok
A16: LOCAL | E16: QUANT. | F16: COMP. (M) | H16: LARG. (M) | J16: ÁREA (M²) | L16: TRANSP | M16: OBS
A17: Canteiro de obra | E17: 1 | J17: 54.09 | M17: Área conforme projeto padrão do caderno técnico de composições do SINAPI. Layout fica a critério da contratada
L19: Total levantado | O19: =J17 -> 54.09
A21: 1.3 | B21: EXECUÇÃO DE ALMOXARIFADO EM CANTEIRO DE OBRA EM ALVENARIA, INCLUSO PRATELEIRAS. AF_02/2016 | P21: ok
A23: LOCAL | E23: QUANT. | F23: COMP. (M) | H23: LARG. (M) | J23: ÁREA (M²) | L23: TRANSP | M23: OBS
A24: Canteiro de obra | E24: 1 | J24: 57.91 | M24: =M17 -> Área conforme projeto padrão do caderno técnico de composições do SINAPI. Layout fica a critério da contratada
L26: Total levantado | O26: =J24 -> 57.91
A28: 1.4 | B28: EXECUÇÃO DE REFEITÓRIO EM CANTEIRO DE OBRA EM ALVENARIA, NÃO INCLUSO MOBILIÁRIO E EQUIPAMENTOS. AF_02/2016 | P28: ok
A30: LOCAL | E30: QUANT. | F30: COMP. (M) | H30: LARG. (M) | J30: ÁREA (M²) | L30: TRANSP | M30: OBS
A31: Canteiro de obra | E31: 1 | J31: 49.39 | M31: =M17 -> Área conforme projeto padrão do caderno técnico de composições do SINAPI. Layout fica a critério da contratada
L33: Total levantado | O33: =J31 -> 49.39
A35: 1.5 | B35: EXECUÇÃO DE SANITÁRIO E VESTIÁRIO EM CANTEIRO DE OBRA EM ALVENARIA, NÃO INCLUSO MOBILIÁRIO. AF_02/2016 | P35: ok
A37: LOCAL | E37: QUANT. | F37: COMP. (M) | H37: LARG. (M) | J37: ÁREA (M²) | L37: TRANSP | M37: OBS
A38: Canteiro de obra | E38: 1 | J38: =25.2+24 -> 49.2 | M38: =M17 -> Área conforme projeto padrão do caderno técnico de composições do SINAPI. Layout fica a critério da contratada
L40: Total levantado | O40: =J38 -> 49.2
A42: 2.1 | B42: DEMOLIÇÃO DE ALVENARIA DE BLOCO FURADO, DE FORMA MANUAL, SEM REAPROVEITAMENTO. AF_12/2017 | P42: ok
A44: LOCAL | E44: QUANT. | F44: COMP. (M) | H44: ALT. (M) | J44: LARG. (M) | L44: VOL. (M³) | M44: OBS
A45: Demolição de muro existente | E45: 1 | F45: 9 | H45: 1.9 | J45: 0.2 | L45: =E45*F45*H45*J45 -> 3.42
L47: Total levantado | O47: =L45 -> 3.42
A49: 2.2 | B49: DEMOLIÇÃO DE PILARES E VIGAS EM CONCRETO ARMADO, DE FORMA MECANIZADA COM MARTELETE, SEM REAPROVEITAMENTO. AF_12/2017 | P49: ok
A51: LOCAL | E51: QUANT. | F51: COMP. (M) | H51: ALT. (M) | J51: LARG. (M) | L51: VOL. (M³) | M51: OBS
A52: Demolição de pilares de muro existente | E52: 4 | F52: 0.2 | H52: 1.9 | J52: 0.2 | L52: =E52*F52*H52*J52 -> 0.3
L54: Total levantado | O54: =ROUND(L52,2) -> 0.3
A56: 2.3 | B56: CARGA, MANOBRA E DESCARGA DE ENTULHO EM CAMINHÃO BASCULANTE 14 M³ - CARGA COM ESCAVADEIRA HIDRÁULICA (CAÇAMBA DE 0,80 M³ / 111 HP) E DESCARGA LIVRE (UNIDADE: M3). AF_07/2020 | P56: ok
A58: LOCAL | E58: QUANT. | F58: VOL. MATERIAL (M³) | H58: ALT. (M) | J58: ÁREA (M²) | L58: TRANSP | M58: OBS
A59: Entulho demolição do muro | E59: 1 | F59: =L52+L45 -> 3.72
L61: Total levantado | O61: =ROUND(F59,2) -> 3.72
A63: 2.4 | B63: TRANSPORTE COM CAMINHÃO BASCULANTE DE 14 M³, EM VIA URBANA PAVIMENTADA, DMT ATÉ 30 KM (UNIDADE: M3XKM). AF_07/2020 | P63: ok | Q63: VERIFICAR ESSSE QUANTITATIVO
A65: LOCAL | E65: QUANT. | F65: VOL. MATERIAL (M³) | H65: VOL + EMP 30% (M³) | J65: DIST. | L65: TRANSP | M65: OBS
A66: Demolição de muro para entrada | E66: 1 | F66: 3.72 | H66: =F66*1.3 -> 4.836 | J66: 28 | L66: =ROUND(H66*J66,2) -> 135.41
L68: Total levantado | O68: =L66 -> 135.41
A70: 3.1 | B70: CORTE RASO E RECORTE DE ÁRVORE COM DIÂMETRO DE TRONCO MAIOR OU IGUAL A 0,20 M E MENOR QUE 0,40 M.AF_05/2018 | P70: ok
A72: LOCAL | E72: QUANT. | F72: COMP. (M) | H72: ALT. (M) | J72: ÁREA (M²) | L72: TRANSP | M72: OBS
A73: Remoção de vegetação existente | E73: 166 | M73: Quantidade estimada de 1 árvore a cada 30m². Será medido e pago a quantidade efetivamente executada.
L75: Total levantado | O75: =E73 -> 166
A77: 3.2 | B77: REMOÇÃO DE RAÍZES REMANESCENTES DE TRONCO DE ÁRVORE COM DIÂMETRO MAIOR OU IGUAL A 0,40 M E MENOR QUE 0,60 M.AF_05/2018 | P77: ok
A79: LOCAL | E79: QUANT. | F79: COMP. (M) | H79: ALT. (M) | J79: ÁREA (M²) | L79: TRANSP | M79: OBS
A80: Remoção de vegetação existente | E80: 166 | M80: Quantidade estimada de 1 árvore a cada 30m². Será medido e pago a quantidade efetivamente executada.
L82: Total levantado | O82: =E80 -> 166
A84: 3.3 | B84: LIMPEZA MECANIZADA DE CAMADA VEGETAL, VEGETAÇÃO E PEQUENAS ÁRVORES (DIÂMETRO DE TRONCO MENOR QUE 0,20 M), COM TRATOR DE ESTEIRAS.AF_05/2018 | P84: ok
A86: LOCAL | E86: QUANT. | F86: COMP. (M) | H86: LARG. (M) | J86: ÁREA (M²) | L86: TRANSP | M86: OBS
A87: Terreno | E87: 1 | F87: 110 | H87: 60 | J87: =F87*H87 -> 6600 | M87: Terreno de 100x50. Será limpado uma área de 110x60 para abrir espaço para realização de serviços, tais como instalação de cerca.
L89: Total levantado | O89: =J87 -> 6600
A91: 3.4 | B91: REGULARIZAÇÃO DE SUPERFÍCIES COM MOTONIVELADORA. AF_11/2019 | P91: ok
A93: LOCAL | E93: QUANT. | F93: COMP. (M) | H93: LARG. (M) | J93: ÁREA (M²) | L93: TRANSP | M93: OBS
A94: Terreno | E94: 1 | F94: 100 | H94: 50 | J94: =F94*H94 -> 5000
L96: Total levantado | O96: =J94 -> 5000
A98: 3.5 | B98: CARGA, MANOBRA E DESCARGA DE ENTULHO EM CAMINHÃO BASCULANTE 14 M³ - CARGA COM ESCAVADEIRA HIDRÁULICA (CAÇAMBA DE 0,80 M³ / 111 HP) E DESCARGA LIVRE (UNIDADE: M3). AF_07/2020 | P98: ok
A100: LOCAL | E100: QUANT. | F100: ÁREA. (M) | H100: ESP. (M) | J100: VOL. (M³) | L100: TRANSP | M100: OBS
A101: Entulho gerado pela limpeza do terreno | E101: 1 | F101: 5000 | H101: 0.02 | J101: =F101*H101 -> 100 | M101: Adotou-se 2cm para quantificar as árvores que serão suprimidas e deverão ser transportadas para aterro. Será medido e pago o quantitativo efetivamente executado.
L103: Total levantado | O103: =J101 -> 100
A105: 3.6 | B105: EXECUÇÃO E COMPACTAÇÃO DE ATERRO COM SOLO PREDOMINANTEMENTE ARENOSO - EXCLUSIVE SOLO, ESCAVAÇÃO, CARGA E TRANSPORTE. AF_11/2019 | P105: OK
A107: LOCAL | E107: QUANT. | F107: ÁREA DA SEÇÃO ANTERIOR (M²) | G107: ÁREA DA SEÇÃO ATUAL (M²) | H107: SEMIDISTÂNCIA ENTRE SEÇÕES (M) | J107: VOL. (M³) | L107: TRANSP | M107: OBS
A108: ATERRO | E108: 1 | G108: -2.7 | H108: 10 | M108: VOLUME = (SEÇÃO 1 + SEÇÃO 2) * SEMIDISTANCIA SEÇÕES DETALHADAS EM PROJETO.
F109: =G108 -> -2.7 | G109: 19.41 | H109: 10 | J109: =ROUND((F109+G109)*H109/2,2) -> 83.55
F110: 19.41 | G110: 66.09 | H110: 10 | J110: 427.5
F111: 66.09 | G111: 84.34 | H111: 10 | J111: 752.15
F112: =G110 -> 66.09 | G112: 110.68 | H112: 10 | J112: 883.85
F113: =G111 -> 84.34 | G113: 109.84 | H113: 10 | J113: 970.9
L115: Total levantado | O115: =SUM(J108:J113) -> 3117.95
A117: 3.7 | B117: AREIA PARA ATERRO - POSTO JAZIDA/FORNECEDOR (RETIRADO NA JAZIDA, SEM TRANSPORTE E SEM CARGA DO MATERIAL EM CAMINHÃO)
A119: LOCAL | E119: QUANT. | F119: VOL. MATERIAL COMPACTADO (M³) | H119: TAXA DE CONTRAÇÃO | I119: TAXA DE EMPOLAMENTO | J119: VOL. (M³) | L119: TRANSP | M119: OBS | P119: OK
A120: Material para confecção do corpo do aterro com equipamento mecânico | E120: 1 | F120: =O115 -> 3117.95 | H120: 0.9 | I120: 1.25 | J120: =ROUND(F120/H120*I120,2) -> 4330.49
L122: Total levantado | O122: =J120 -> 4330.49
A124: 3.8 | B124: CARGA, MANOBRA E DESCARGA DE SOLOS E MATERIAIS GRANULARES EM CAMINHÃO BASCULANTE 14 M³ - CARGA COM ESCAVADEIRA HIDRÁULICA (CAÇAMBA DE 1,20 M³ / 155 HP) E DESCARGA LIVRE (UNIDADE: M3). AF_07/2020 | P124: OK
A126: LOCAL | E126: QUANT. | F126: VOL. MATERIAL COMPACTADO (M³) | H126: TAXA DE CONTRAÇÃO | I126: TAXA DE EMPOLAMENTO | J126: VOL. (M³) | L126: TRANSP | M126: OBS
A127: Material para confecção do corpo do aterro | E127: 1 | J127: =J120 -> 4330.49
L129: Total levantado | O129: =J127 -> 4330.49
A131: 3.9 | B131: ESCAVAÇÃO HORIZONTAL, INCLUINDO CARGA, DESCARGA E TRANSPORTE EM SOLO DE 1A CATEGORIA COM TRATOR DE ESTEIRAS (170HP/LÂMINA: 5,20M3) E CAMINHÃO BASCULANTE DE 10M3, DMT ATÉ 200M. AF_07/2020 | P131: OK
A133: LOCAL | E133: QUANT. | F133: ÁREA. (M) | H133: ESP. (M) | J133: VOL. (M³) | L133: TRANSP | M133: OBS
A134: Remoção de camada superficial do terreno | E134: 1 | F134: 5000 | H134: 0.2 | J134: =F134*H134 -> 1000 | M134: Considerou-se uma raspagem superficial do terreno de aproximadamente 20cm, para remoção de solo com grande presença de vegetação rasteira e material orgânico.
L136: Total levantado | O136: =J134 -> 1000
A138: 3.10 | B138: TRANSPORTE COM CAMINHÃO BASCULANTE DE 14 M³, EM VIA URBANA PAVIMENTADA, DMT ATÉ 30 KM (UNIDADE: M3XKM). AF_07/2020 | P138: OK
A140: LOCAL | E140: QUANT. | F140: VOL. MATERIAL (M³) | H140: VOL + EMP 30% (M³) | J140: DIST. | L140: TRANSP | M140: OBS
A141: Árvores suprimidas | E141: 1 | F141: =O103 -> 100 | H141: =F141*1.3 -> 130 | J141: 28 | L141: =H141*J141 -> 3640
A142: Camada vegetal do solo | E142: 1 | F142: =O136 -> 1000 | H142: =F142*1.3 -> 1300 | J142: 28 | L142: 36400
A143: Terra para aterro | E143: 1 | H143: 4330.49 | J143: 20 | L143: 86609.8
L145: Total levantado | O145: =L143+L142+L141 -> 126649.8
A147: 4.1 | B147: LOCAÇÃO DE PONTO PARA REFERÊNCIA TOPOGRÁFICA. AF_10/2018 | P147: OK
A149: LOCAL | E149: QUANT. | F149: ÁREA. (M) | H149: ESP. (M) | J149: VOL. (M³) | L149: TRANSP | M149: OBS
A150: Locação para movimentação de terra | E150: =5000/20 -> 250 | M150: 1 ponto a cada 20m²
L152: Total levantado | O152: =E150 -> 250
A154: 4.2 | B154: LOCACAO CONVENCIONAL DE OBRA, UTILIZANDO GABARITO DE TÁBUAS CORRIDAS PONTALETADAS A CADA 2,00M - 2 UTILIZAÇÕES. AF_10/2018 | P154: OK
A156: LOCAL | E156: QUANT. | F156: COMP. (M) | H156: LARG. (M) | J156: PERÍMETRO (M) | L156: TRANSP | M156: OBS
A157: Locação para edificação | E157: 1 | F157: 54 | H157: 24 | J157: =(F157+H157)*2 -> 156 | M157: Edificação 20*50 + afastamento de 2m em cada lado
L159: Total levantado | O159: =J157 -> 156
A161: 5.1 | B161: ESCAVAÇÃO MANUAL PARA BLOCO DE COROAMENTO OU SAPATA (INCLUINDO ESCAVAÇÃO PARA COLOCAÇÃO DE FÔRMAS). AF_06/2017 | P161: OK
A163: LOCAL | E163: QUANT. | F163: COMP. (M) | H163: LARG. (M) | J163: ALT (M) | L163: VOL. (M³) | M163: OBS
A164: Sapatas tipo 01 | E164: 9 | F164: 1.5 | H164: 1.5 | J164: 2.5 | L164: =ROUND(E164*F164*H164*J164,2) -> 50.63 | M164: Comprimento e largura com afastamentos para colocação de fôrmas.
A165: Sapatas tipo 02 | E165: 11 | F165: 1.65 | H165: 1.65 | J165: 2.5 | L165: =ROUND(E165*F165*H165*J165,2) -> 74.87
A166: Sapatas tipo 03 | E166: 6 | F166: 1.5 | H166: 1.5 | J166: 2.5 | L166: =ROUND(E166*F166*H166*J166,2) -> 33.75
L168: Total levantado | O168: =L164+L165+L166 -> 159.25
A170: 5.2 | B170: ESCAVAÇÃO MANUAL DE VALA PARA VIGA BALDRAME (INCLUINDO ESCAVAÇÃO PARA COLOCAÇÃO DE FÔRMAS). AF_06/2017 | P170: ok
A172: LOCAL | E172: QUANT. | F172: COMP. (M) | H172: LARG. (M) | J172: ALT (M) | L172: VOL. (M³) | M172: OBS
A173: Baldrame/Muro de arrimo | E173: 1 | F173: =140+120+8.5 -> 268.5 | H173: 0.2 | J173: 0.4 | L173: =E173*F173*H173*J173 -> 21.48
L175: Total levantado | O175: =L173 -> 21.48
A177: 5.3 | B177: LASTRO DE CONCRETO MAGRO, APLICADO EM BLOCOS DE COROAMENTO OU SAPATAS, ESPESSURA DE 5 CM. AF_08/2017 | P177: ok
A179: LOCAL | E179: QUANT. | F179: COMP. (M) | H179: LARG. (M) | J179: ÁREA (M²) | L179: VOL. (M³) | M179: OBS
A180: Lastro para sapatas | E180: 1 | J180: =2.1/0.05 -> 42 | M180: Lastro de concreto conforme projeto estrutural = 2,1m³, o que equivale a uma área de 42m², considerando espessura de 5cm.
L182: Total levantado | O182: =J180 -> 42
A184: 5.4 | B184: FABRICAÇÃO, MONTAGEM E DESMONTAGEM DE FÔRMA PARA SAPATA, EM CHAPA DE MADEIRA COMPENSADA RESINADA, E=17 MM, 4 UTILIZAÇÕES. AF_06/2017 | P184: ok
A186: LOCAL | E186: QUANT. | F186: COMP. (M) | H186: LARG. (M) | J186: ÁREA (M²) | L186: VOL. (M³) | M186: OBS
A187: Fundação | E187: 1 | J187: 43.41 | M187: Área conforme projeto estrutural
L189: Total levantado | O189: =J187 -> 43.41
A191: 5.5 | B191: FABRICAÇÃO, MONTAGEM E DESMONTAGEM DE FÔRMA PARA VIGA BALDRAME, EM CHAPA DE MADEIRA COMPENSADA RESINADA, E=17 MM, 4 UTILIZAÇÕES. AF_06/2017 | P191: ok
A193: LOCAL | E193: QUANT. | F193: COMP. (M) | H193: LARG. (M) | J193: ÁREA (M²) | L193: VOL. (M³) | M193: OBS
A194: Fundação | E194: 1 | J194: =486.2+59.77 -> 545.97 | M194: =M187 -> Área conforme projeto estrutural
L196: Total levantado | O196: =J194 -> 545.97
A198: 5.6 | B198: MONTAGEM E DESMONTAGEM DE FÔRMA DE PILARES RETANGULARES E ESTRUTURAS SIMILARES, PÉ-DIREITO SIMPLES, EM CHAPA DE MADEIRA COMPENSADA RESINADA, 4 UTILIZAÇÕES. AF_09/2020 | P198: ok
A200: LOCAL | E200: QUANT. | F200: COMP. (M) | H200: LARG. (M) | J200: ÁREA (M²) | L200: VOL. (M³) | M200: OBS
A201: Fundação | E201: 1 | J201: 142.57 | M201: =M194 -> Área conforme projeto estrutural
L203: Total levantado | O203: =J201 -> 142.57
A205: 5.7 | B205: ARMAÇÃO DE BLOCO, VIGA BALDRAME E SAPATA UTILIZANDO AÇO CA-60 DE 5 MM - MONTAGEM. AF_06/2017 | P205: ok
A207: LOCAL | E207: QUANT. | F207: PESO (KG) | H207: LARG. (M) | J207: ÁREA (M²) | L207: VOL. (M³) | M207: OBS
A208: Sapatas | E208: 1 | M208: Conforme projeto estrutural
A209: Vigas | E209: 1 | F209: =ROUND(1270/1.1,2) -> 1154.55 | M209: Conforme projeto estrutural
A210: Pilares | E210: 1 | F210: =ROUND(440/1.1,2) -> 400 | M210: Conforme projeto estrutural
L212: Total levantado | O212: =SUM(F208:G210) -> 1554.55
A214: 5.8 | B214: ARMAÇÃO DE BLOCO, VIGA BALDRAME OU SAPATA UTILIZANDO AÇO CA-50 DE 6,3 MM - MONTAGEM. AF_06/2017 | P214: ok
A216: LOCAL | E216: QUANT. | F216: PESO (KG) | H216: LARG. (M) | J216: ÁREA (M²) | L216: VOL. (M³) | M216: OBS
A217: Sapatas | E217: 1 | M217: Conforme projeto estrutural
A218: Vigas | E218: 1 | F218: =ROUND(2/1.1,2) -> 1.82 | M218: Conforme projeto estrutural
A219: Pilares | E219: 1 | M219: Conforme projeto estrutural
L221: Total levantado | O221: =SUM(F217:G219) -> 1.82
A223: 5.9 | B223: ARMAÇÃO DE BLOCO, VIGA BALDRAME OU SAPATA UTILIZANDO AÇO CA-50 DE 8 MM - MONTAGEM. AF_06/2017 | P223: ok
A225: LOCAL | E225: QUANT. | F225: PESO (KG) | H225: LARG. (M) | J225: ÁREA (M²) | L225: VOL. (M³) | M225: OBS
A226: Sapatas | E226: 1 | M226: Conforme projeto estrutural
A227: Vigas | E227: 1 | F227: =ROUND(148/1.1,2) -> 134.55 | M227: Conforme projeto estrutural
A228: Pilares | E228: 1 | M228: Conforme projeto estrutural
L230: Total levantado | O230: =SUM(F226:G228) -> 134.55
A232: 5.10 | B232: ARMAÇÃO DE BLOCO, VIGA BALDRAME OU SAPATA UTILIZANDO AÇO CA-50 DE 10 MM - MONTAGEM. AF_06/2017 | P232: ok
A234: LOCAL | E234: QUANT. | F234: PESO (KG) | H234: LARG. (M) | J234: ÁREA (M²) | L234: VOL. (M³) | M234: OBS
A235: Sapatas | E235: 1 | F235: =ROUND(156.8/1.1,2) -> 142.55 | M235: Conforme projeto estrutural
A236: Vigas | E236: 1 | F236: =ROUND(324/1.1,2) -> 294.55 | M236: Conforme projeto estrutural
A237: Pilares | E237: 1 | F237: =ROUND(284.3/1.1,2) -> 258.45 | M237: Conforme projeto estrutural
L239: Total levantado | O239: =SUM(F235:G237) -> 695.55
A241: 5.11 | B241: ARMAÇÃO DE BLOCO, VIGA BALDRAME OU SAPATA UTILIZANDO AÇO CA-50 DE 12,5 MM - MONTAGEM. AF_06/2017 | P241: ok
A243: LOCAL | E243: QUANT. | F243: PESO (KG) | H243: LARG. (M) | J243: ÁREA (M²) | L243: VOL. (M³) | M243: OBS
A244: Sapatas | E244: 1 | F244: =ROUND(306.9/1.1,2) -> 279 | M244: Conforme projeto estrutural
A245: Vigas | E245: 1 | F245: =ROUND(1178/1.1,2) -> 1070.91 | M245: Conforme projeto estrutural
A246: Pilares | E246: 1 | M246: Conforme projeto estrutural
L248: Total levantado | O248: =SUM(F244:G246) -> 1349.91
A250: 5.12 | B250: ARMAÇÃO DE BLOCO, VIGA BALDRAME OU SAPATA UTILIZANDO AÇO CA-50 DE 16 MM - MONTAGEM. AF_06/2017 | P250: ok
A252: LOCAL | E252: QUANT. | F252: PESO (KG) | H252: LARG. (M) | J252: ÁREA (M²) | L252: VOL. (M³) | M252: OBS
A253: Sapatas | E253: 1 | F253: =ROUND(84/1.1,2) -> 76.36 | M253: Conforme projeto estrutural
A254: Vigas | E254: 1 | M254: Conforme projeto estrutural
A255: Pilares | E255: 1 | F255: =ROUND(731/1.1,2) -> 664.55 | M255: Conforme projeto estrutural
L257: Total levantado | O257: =SUM(F253:G255) -> 740.91
A259: 5.13 | B259: CONCRETAGEM DE SAPATAS, FCK 30 MPA, COM USO DE BOMBA LANÇAMENTO, ADENSAMENTO E ACABAMENTO. AF_11/2016 | P259: ok
A261: LOCAL | E261: QUANT. | F261: COMP. (M) | H261: LARG. (M) | J261: ÁREA (M²) | L261: VOL. (M³) | M261: OBS
A262: Sapatas | E262: 1 | L262: 11.94 | M262: Conforme projeto estrutural
A263: Arranques dos Pilares | E263: 1 | L263: 18.67 | M263: Conforme projeto estrutural
L265: Total levantado | O265: =SUM(L262:L263) -> 30.61
A267: 5.14 | B267: CONCRETAGEM DE BLOCOS DE COROAMENTO E VIGAS BALDRAME, FCK 30 MPA, COM USO DE JERICA LANÇAMENTO, ADENSAMENTO E ACABAMENTO. AF_06/2017 | P267: ok
A269: LOCAL | E269: QUANT. | F269: COMP. (M) | H269: LARG. (M) | J269: ÁREA (M²) | L269: VOL. (M³) | M269: OBS
A270: Baldrame | E270: 1 | L270: 52.86 | M270: Conforme projeto estrutural
L272: Total levantado | O272: =SUM(L270:L270) -> 52.86
A274: 5.15 | B274: IMPERMEABILIZAÇÃO DE SUPERFÍCIE COM EMULSÃO ASFÁLTICA, 2 DEMÃOS AF_06/2018 | P274: ok
A276: LOCAL | E276: QUANT. | F276: COMP. (M) | H276: LARG. (M) | J276: ÁREA (M²) | L276: VOL. (M³) | M276: OBS
A277: Baldrame | E277: 1 | J277: =486.2+59.77 -> 545.97 | M277: Área de fôrmas do baldrame + área da superfície. Quantidades retiradas de projeto estrutural.
L279: Total levantado | O279: =J277 -> 545.97
A281: 5.16 | B281: ATERRO MANUAL DE VALAS COM SOLO ARGILO-ARENOSO E COMPACTAÇÃO MECANIZADA. | P281: ok
A283: LOCAL | E283: QUANT. | F283: ÁREA SEÇÃO 01 (M²) | H283: ÁREA SEÇÃO 02 (M²) | J283: SEMI-DIST (M) | L283: VOL. (M³) | M283: OBS
A284: Aterro da área sob as vigas baldrame | E284: 1 | F284: 56.5 | H284: 56.5 | J284: 10 | L284: =(F284+H284)*J284 -> 1130 | M284: Aterro sob a edificação, impossível de fazer com equipamento mecânico (rolo compactador). Área da seção = comprimento de 50 metros (comprimento da edificação) x 2,26 (desnível conforme levantamento topográfico) / 2 (seção triangular)
L286: Total levantado | O286: =L284 -> 1130
A288: 5.17 | B288: ALVENARIA DE BLOCO DE CONCRETO CHEIO COM ARMAÇÃO, EM CONCRETO COM FCK 15MPA , ESP. 14CM, PARA REVESTIMENTO, INCLUSIVE ARGAMASSA PARA ASSENTAMENTO | P288: ok
A290: LOCAL | E290: QUANT. | F290: ÁREA SEÇÃO 01 - LATERAL (M²) | H290: ÁREA SEÇÃO 02 - LATERAL (M²) | J290: ÁREA SEÇÃO 03 - FUNDO (M²) | L290: ÁREA TOTAL (M³) | M290: OBS
A291: Perímetro da edificação | E291: 1 | F291: =50*1.15/2 -> 28.75 | H291: =50*1.15/2 -> 28.75 | J291: =1.15*20 -> 23 | L291: =F291+H291+J291 -> 80.5 | M291: Muro de arrimo sob a edificação, necessário para conter o aterro. Área da seção 01, 02 e 03 = comprimento (50 ou 20 metros) (lateral ou fundo da edificação) x 1,15 (desnível conforme levantamento topográfico) / 2 (seção triangular). O desnível, nesse caso, corresponde a diferença de altura entre a camada de aterro na área externa e o nível que ficará a edificação.
L293: Total levantado | O293: =L291 -> 80.5
A295: 5.18 | B295: CAMADA SEPARADORA PARA EXECUÇÃO DE RADIER, PISO DE CONCRETO OU LAJE SOBRE SOLO, EM LONA PLÁSTICA. AF_09/2021 | P295: ok
A297: LOCAL | E297: QUANT. | F297: COMP. (M) | H297: LARG. (M) | J297: ÁREA (M²) | L297: VOL. (M³) | M297: OBS
A298: Impermeabilização do piso | E298: 1 | F298: 50 | H298: 20 | J298: =F298*H298 -> 1000
L300: Total levantado | O300: =SUM(J298) -> 1000
A302: 5.19 | B302: ARMAÇÃO DE LAJE DE ESTRUTURA CONVENCIONAL DE CONCRETO ARMADO UTILIZANDO AÇO CA-60 DE 5,0 MM - MONTAGEM. AF_06/2022
A304: LOCAL | E304: QUANT. | F304: PESO (KG) | H304: LARG. (M) | J304: ÁREA (M²) | L304: VOL. (M³) | M304: OBS | P304: ok
A305: Lajes | E305: 1 | F305: =530.86+1221.12 -> 1751.98 | M305: Conforme projeto estrutural
L307: Total levantado | O307: =SUM(F305:G305) -> 1751.98
A309: 5.20 | B309: CONCRETAGEM DE RADIER, PISO DE CONCRETO OU LAJE SOBRE SOLO, FCK 30 MPA - LANÇAMENTO, ADENSAMENTO E ACABAMENTO. AF_09/2021 | P309: ok
A311: LOCAL | E311: QUANT. | F311: COMP. (M) | H311: LARG. (M) | J311: ÁREA (M²) | L311: VOL. (M³) | M311: OBS
A312: Lajes | E312: 1 | L312: =94.12+17.04 -> 111.16 | M312: Conforme projeto estrutural
L314: Total levantado | O314: =L312 -> 111.16
A316: ='PLANILHA SEM DESONERAÇÃO'!A78 -> 6.1 | B316: ='PLANILHA SEM DESONERAÇÃO'!D78 -> VIGA METÁLICA EM PERFIL W 610 x 113, LAMINADO OU SOLDADO, EM AÇO ESTRUTURAL, COM CONEXÕES SOLDADAS, INCLUSOS MÃO DE OBRA, TRANSPORTE E IÇAMENTO UTILIZANDO GUINDASTE - FORNECIMENTO E INSTALAÇÃO. AF_01/2020_P | P316: ok
A318: LOCAL | E318: QUANT. | F318: PESO (KG) | H318: LARG. (M) | J318: ÁREA (M²) | L318: VOL. (M³) | M318: OBS
A319: Estrutura da edificação | E319: 1 | F319: 18976 | M319: Conforme projeto estrutural
L321: Total levantado | O321: =SUM(F319:G319) -> 18976
A323: ='PLANILHA SEM DESONERAÇÃO'!A79 -> 6.2 | B323: ='PLANILHA SEM DESONERAÇÃO'!D79 -> VIGA METÁLICA EM PERFIL W 530 x 101, LAMINADO OU SOLDADO, EM AÇO ESTRUTURAL, COM CONEXÕES SOLDADAS, INCLUSOS MÃO DE OBRA, TRANSPORTE E IÇAMENTO UTILIZANDO GUINDASTE - FORNECIMENTO E INSTALAÇÃO. AF_01/2020_P | P323: ok
A325: LOCAL | E325: QUANT. | F325: PESO (KG) | H325: LARG. (M) | J325: ÁREA (M²) | L325: VOL. (M³) | M325: OBS
A326: Estrutura da edificação | E326: 1 | F326: 8019 | M326: Conforme projeto estrutural
L328: Total levantado | O328: =SUM(F326:G326) -> 8019
A330: ='PLANILHA SEM DESONERAÇÃO'!A80 -> 6.3 | B330: ='PLANILHA SEM DESONERAÇÃO'!D80 -> VIGA METÁLICA EM PERFIL W 530 x 74, LAMINADO OU SOLDADO, EM AÇO ESTRUTURAL, COM CONEXÕES SOLDADAS, INCLUSOS MÃO DE OBRA, TRANSPORTE E IÇAMENTO UTILIZANDO GUINDASTE - FORNECIMENTO E INSTALAÇÃO. AF_01/2020_P | P330: ok
A332: LOCAL | E332: QUANT. | F332: PESO (KG) | H332: LARG. (M) | J332: ÁREA (M²) | L332: VOL. (M³) | M332: OBS
... 1385 more rows

Sheet Planilha de BDI S. DESON
C1: MINISTÉRIO DO DESENVOLVIMENTO REGIONAL
C2: COMPANHIA DE DESENVOLVIMENTO DOS VALES DO SÃO FRANCISCO E PARNAÍBA
A3: DEMONSTRATIVO DE CÁLCULO DOS BENEFÍCIOS E DESPESAS INDIRETAS - BDI
A5: PROPONENTE: COMPANHIA DE DESENVOLVIMENTO DOS VALES DO SÃO FRANCISCO E PARNAÍBA
A6: EMPREENDIMENTO: CONSTRUÇÃO DA SEDE DA 11ª SUPERINTENDÊNCIA REGIONAL DA CODEVASF NO MUNICÍPIO DE MACAPÁ/AP
A7: LOCAL: RODOVIA JOSMAR CHAVES PINTO, KM 05, S/N, UNIVERSIDADE, MACAPA/AP.
A8: ='MEMORIA DE CÁLCULO'!A4:C4 -> Data: Jan/23
A9: MEMÓRIA DE CÁLCULO
A11: Composição do BDI | D11: Intervalos de Referência | E11: Composição adotada | G11: BDI Proposto: | I11: =((((1+E12+E15+E16))*(1+E14)*(1+E13))/(1-(E17+E18+E19+E20))-1) -> 0.2308
A12: Administração Central (AC) | D12: De 3,00 % até 5,5% | E12: 0.04
A13: Lucro (L) | D13: De 6,16 % até 8,96% | E13: 0.076
A14: Despesas Financeiras (DF) | D14: De 0,59 % até 1,39% | E14: 0.0123
A15: Seguros (S) + Garantias (G) | D15: De 0,80 % até 1,00% | E15: 0.0085 | G15: Observação: Composição do BDI, intervalos admissíveis e Fórmula de Cálculo nos termos do Acórdão 2622/2013 do TCU.
A16: Riscos (R) | D16: De 0,97 % até 1,27% | E16: 0.012
A17: Tributos (I) | B17: PIS | D17: 0.0065 | E17: 0.0065
B18: COFINS | D18: 0.03 | E18: 0.03
B19: CPRB | D19: 0.045
B20: ISS | D20: De 2,0 % até 5,0% | E20: 0.025 | G20: Coloca-se 50% do valor do ISS do munícipio. Verificar primeiro a legislação municipal.
C21: _____________________________________________________ | E21: Obs.: Folha de pagamento sem desoneração.
C22: ='PLANILHA SEM DESONERAÇÃO'!C370 -> LUIS FERNANDO ANTUNES LIMA
B23: ='PLANILHA SEM DESONERAÇÃO'!C371 -> ANALISTA DE DESENVOLVIMENTO REGIONAL
B24: ='PLANILHA SEM DESONERAÇÃO'!C372 -> ENGENHEIRO CIVIL - CREA 186819/D

Sheet CRONOGRAMA (2)
C1: MINISTÉRIO DO DESENVOLVIMENTO REGIONAL
C2: COMPANHIA DE DESENVOLVIMENTO DOS VALES DO SÃO FRANCISCO E DO PARNAÍBA
A3: EMPREENDIMENTO: CONSTRUÇÃO DA SEDE DA 11ª SUPERINTENDÊNCIA REGIONAL DA CODEVASF NO MUNICÍPIO DE MACAPÁ/AP
